{"text_format":"1","workbook":"xlsx","n_sheets":22,"sheets":["Meni","ObrazacIB","ObrazacPR","ObrazacBS","ObrazacNT","ObrazacUS","ObrazacOB","ObrazacPO","ObrazacZA","K9OOSO","OZPR","Transferi","TransferiFP","BO","Krv1","Krv2a","Krv2b","DP","Asignacije","VP","KontrolaF","Kontrola"],"not_rendered":{"charts":0,"images":56,"macros":1,"external_links":2,"defined_names":202,"comments":0,"pivot_tables":0},"unopened":[],"bounds":{"document_bytes":16777216,"sheet_cells":100000,"rows_first":2000,"rows_last":500,"rows_between":2000,"halvings":0,"cell_chars":16384,"cell_head_chars":4096},"cells_cut":0,"cells_raw":0,"read":"whole","date_system":"1900"}

{"sheet":"Meni","index":0,"n_rows":383,"n_cols":7,"rows_kept":383,"cut":false,"hidden":false,"merged":[[1,0,1,5],[0,0,0,5],[17,4,17,5],[11,2,11,3],[9,2,9,3],[10,2,10,3],[12,2,12,3],[13,2,13,3]]}
["Годишњи финансијски извештај за 2025. годину"]
["Изаберите филијалу, здравствену установу, упишите датум попуњавања, попуните податке о здравственој установи, попуните обрасцe и податке сачувајте кликом на дугме САЧУВАЈ (назив документа треба да буде шифра установе)"]
[]
[]
[]
[]
[null,null,"19.02.2026."]
[]
[]
[null,null,"Дом здравља Уб"]
[null,null,"Уб"]
[null,null,"17211692"]
[null,null,"101349256"]
[null,null,"840-407661-24"]
[]
[]
[]
[]
[]
[]
[null,null,null,null,null,null,{"$f":" IF(KontrolaF!J12 =\"\",\"Filijala nije obavila dodatnu kontrolu!\", \"Filijala je obavila dodatnu kontrolu!\")","v":"Filijala nije obavila dodatnu kontrolu!"}]
[]
[]
[]
[]
[]
[]
[]
["09 ВАЉЕВО",{"$f":"LEFT(A29,2)","v":"09"},null,"100209001 ДЗ УБ",{"$f":"LEFT(D29,8)","v":"10020900"}]
["01 СУБОТИЦА","01","100201001 ДЗ БАЧКА ТОПОЛА","100209001 ДЗ УБ"]
["02 ЗРЕЊАНИН","01","100201002 ДЗ МАЛИ ИЂОШ","100209003 АП ВАЉЕВО"]
["03 КИКИНДА","01","100201004 ЗЈЗ СУБОТИЦА","100209004 ДЗ ЛАЈКОВАЦ"]
["04 ПАНЧЕВО","01","100201005 АП СУБОТИЦА","100209005 ЗЈЗ ВАЉЕВО"]
["05 СОМБОР","01","100201006 ДЗ СУБОТИЦА","100209008 ДЗ ОСЕЧИНА"]
["06 НОВИ САД","01","100201007 ОБ СУБОТИЦА","100209009 ДЗ ЉИГ"]
["07 СРЕМСКА МИТРОВИЦА","02","100202001 ДЗ ЖИТИШТЕ","100209010 ДЗ МИОНИЦА"]
["08 ШАБАЦ","02","100202003 ДЗ НОВИ БЕЧЕЈ","100209012 ЗЦ ВАЉЕВО"]
["09 ВАЉЕВО","02","100202004 ДЗ СЕЧАЊ"]
["10 СМЕДЕРЕВО","02","100202005 ДЗ СРПСКА ЦРЊА"]
["11 ПОЖАРЕВАЦ","02","100202007 СБ ЗА РЕХАБИЛИТАЦИЈУ РУСАНДА, МЕЛЕНЦИ"]
["12 КРАГУЈЕВАЦ","02","100202008 СБ ЗА ПЛУЋНЕ БОЛЕСТИ ЗРЕЊАНИН"]
["13 ЈАГОДИНА","02","100202009 ЗЈЗ ЗРЕЊАНИН"]
["14 БОР","02","100202010 АП ЗРЕЊАНИН"]
["15 ЗАЈЕЧАР","02","100202011 ДЗ ЗРЕЊАНИН"]
["16 УЖИЦЕ","02","100202012 ОБ ЗРЕЊАНИН"]
["17 ЧАЧАК","03","100203001 ДЗ АДА"]
["18 КРАЉЕВО","03","100203002 ДЗ КАЊИЖА"]
["19 КРУШЕВАЦ","03","100203003 ДЗ НОВИ КНЕЖЕВАЦ"]
["20 НИШ","03","100203004 ДЗ ЧОКА"]
["21 ПРОКУПЉЕ","03","100203007 СБ НОВИ КНЕЖЕВАЦ"]
["22 ПИРОТ","03","100203008 СБ ЗА РЕХАБИЛИТАЦИЈУ БАЊА КАЊИЖА"]
["23 ЛЕСКОВАЦ","03","100203009 ЗЈЗ КИКИНДА"]
["24 ВРАЊЕ","03","100203010 АП КИКИНДА"]
["25 ГРАЧАНИЦА","03","100203011 ДЗ КИКИНДА"]
["28 КОСОВСКА МИТРОВИЦА","03","100203012 OБ КИКИНДА"]
["29 ГЊИЛАНЕ","03","100203013 ДЗ СЕНТА"]
["30 БЕОГРАД","03","100203014 ОБ СЕНТА"]
["33 НОВИ ПАЗАР","03","100203015 АП СЕНТА"]
[null,"04","100204001 ДЗ АЛИБУНАР"]
[null,"04","100204002 ДЗ БЕЛА ЦРКВА"]
[null,"04","100204003 ДЗ КОВАЧИЦА"]
[null,"04","100204004 ДЗ КОВИН"]
[null,"04","100204005 ДЗ ОПОВО"]
[null,"04","100204006 ДЗ ПЛАНДИШТЕ"]
[null,"04","100204009 СБ ЗА ПЛУЋНЕ БОЛЕСТИ БЕЛА ЦРКВА"]
[null,"04","100204010 СБ ЗА ПСИХИЈАТРИЈСКЕ БОЛЕСТИ ВРШАЦ"]
[null,"04","100204011 СБ ЗА ПСИХИЈАТРИЈСКЕ БОЛЕСТИ КОВИН"]
[null,"04","100204012 ЗЈЗ ПАНЧЕВО"]
[null,"04","100204013 АП ПАНЧЕВО"]
[null,"04","100204014 АП ВРШАЦ"]
[null,"04","100204015 ДЗ ВРШАЦ"]
[null,"04","100204016 ОБ ВРШАЦ"]
[null,"04","100204017 ДЗ ПАНЧЕВО"]
[null,"04","100204018 ОБ ПАНЧЕВО"]
[null,"05","100205001 ДЗ АПАТИН"]
[null,"05","100205002 ДЗ КУЛА"]
[null,"05","100205003 ДЗ ОЏАЦИ"]
[null,"05","100205005 ЗЈЗ СОМБОР"]
[null,"05","100205006 АП СОМБОР"]
[null,"05","100205007 ДЗ СОМБОР"]
[null,"05","100205008 ОБ СОМБОР"]
[null,"05","100205009 СБ ЗА РЕХАБИЛИТАЦИЈУ ЈУНАКОВИЋ АПАТИН"]
[null,"06","100206001 ДЗ БАЧ"]
[null,"06","100206002 ДЗ БАЧКА ПАЛАНКА"]
[null,"06","100206003 ДЗ БАЧКИ ПЕТРОВАЦ"]
[null,"06","100206004 ДЗ БЕОЧИН"]
[null,"06","100206005 ДЗ БЕЧЕЈ"]
[null,"06","100206006 ДЗ ЖАБАЉ"]
[null,"06","100206007 ДЗ СРБОБРАН"]
[null,"06","100206008 ДЗ ТЕМЕРИН"]
[null,"06","100206009 ДЗ ТИТЕЛ"]
[null,"06","100206010 ДЗ НОВИ САД"]
[null,"06","100206012 ЗАВОД ЗА ТРАНСФУЗИЈУ КРВИ ВОЈВОДИНЕ"]
[null,"06","100206013 СБ ЗА РЕУМАТСКЕ БОЛЕСТИ НОВИ САД"]
[null,"06","100206014 ИЗЈЗ ВОЈВОДИНЕ"]
[null,"06","100206015 ИНСТИТУТ ЗА ОНКОЛОГИЈУ ВОЈВОДИНЕ"]
[null,"06","100206016 ИНСТИТУТ ЗА ПЛУЋНЕ БОЛЕСТИ ВОЈВОДИНЕ"]
[null,"06","100206017 ИКВБ ВОЈВОДИНЕ"]
[null,"06","100206018 ИНСТИТУТ ЗА ЗЗ ДЕЦЕ И ОМЛАДИНЕ ВОЈВОДИНЕ"]
[null,"06","100206019 КЛИНИКА ЗА ДЕНТАЛНУ МЕДИЦИНУ ВОЈВОДИНЕ"]
[null,"06","100206020 УНИВЕРЗИТЕТСКИ КЛИНИЧКИ ЦЕНТАР ВОЈВОДИНЕ"]
[null,"06","100206021 ЗЗЗ РАДНИКА НОВИ САД"]
[null,"06","100206022 ЗЗЗ СТУДЕНАТА НОВИ САД"]
[null,"06","100206023 ПАСТЕРОВ ЗАВОД НОВИ САД"]
[null,"06","100206024 АП НОВИ САД"]
[null,"06","100206025 ЗАВОД ЗА УРГЕНТНУ МЕДИЦИНУ НОВИ САД"]
[null,"06","100206026 ДЗ ВРБАС"]
[null,"06","100206027 ОБ ВРБАС"]
[null,"06","100206028 АП ВРБАС"]
[null,"06","100206029 ВМЦ НОВИ САД"]
[null,"07","100207001 ДЗ ИНЂИЈА"]
[null,"07","100207002 ДЗ ПЕЋИНЦИ"]
[null,"07","100207003 ДЗ РУМА"]
[null,"07","100207004 ДЗ СТАРА ПАЗОВА"]
[null,"07","100207005 ДЗ ШИД"]
[null,"07","100207007 СБ СТАРИ СЛАНКАМЕН"]
[null,"07","100207008 ЗЈЗ СРЕМСКА МИТРОВИЦА"]
[null,"07","100207009 СБ ЗА РЕХАБИЛИТАЦИЈУ ТЕРМАЛ ВРДНИК"]
[null,"07","100207010 АП СРЕМСКА МИТРОВИЦА"]
[null,"07","100207011 ДЗ ИРИГ"]
[null,"07","100207012 ДЗ СРЕМСКА МИТРОВИЦА"]
[null,"07","100207013 ОБ СРЕМСКА МИТРОВИЦА"]
[null,"08","100208001 ДЗ БОГАТИЋ"]
[null,"08","100208002 ДЗ ЉУБОВИЈА"]
[null,"08","100208005 СБ ЗА РЕХАБИЛИТАЦИЈУ БАЊА КОВИЉАЧА"]
[null,"08","100208006 ЗЈЗ ШАБАЦ"]
[null,"08","100208007 АУ ЛОЗНИЦА"]
[null,"08","100208008 АП ШАБАЦ"]
[null,"08","100208009 ОБ ШАБАЦ"]
[null,"08","100208010 ДЗ ШАБАЦ"]
[null,"08","100208011 ДЗ ВЛАДИМИРЦИ"]
[null,"08","100208012 ДЗ КОЦЕЉЕВА"]
[null,"08","100208014 ДЗ КРУПАЊ"]
[null,"08","100208015 ДЗ МАЛИ ЗВОРНИК"]
[null,"08","100208017 ЗЦ ЛОЗНИЦА"]
[null,"08","100208018 ЗЦ ШАБАЦ"]
[null,"09","100209001 ДЗ УБ"]
[null,"09","100209003 АП ВАЉЕВО"]
[null,"09","100209004 ДЗ ЛАЈКОВАЦ"]
[null,"09","100209005 ЗЈЗ ВАЉЕВО"]
[null,"09","100209008 ДЗ ОСЕЧИНА"]
[null,"09","100209009 ДЗ ЉИГ"]
[null,"09","100209010 ДЗ МИОНИЦА"]
[null,"09","100209012 ЗЦ ВАЉЕВО"]
[null,"10","100210002 ОБ СМЕДЕРЕВСКА ПАЛАНКА"]
[null,"10","100210003 АП СМЕДЕРЕВСКА ПАЛАНКА"]
[null,"10","100210004 АП СМЕДЕРЕВО"]
[null,"10","100210005 ДЗ ВЕЛИКА ПЛАНА"]
[null,"10","100210006 ДЗ СМЕДЕРЕВСКА ПАЛАНКА"]
[null,"10","100210007 АУ ВЕЛИКА ПЛАНА"]
[null,"10","100210008 ОБ СМЕДЕРЕВО"]
[null,"10","100210009 ДЗ СМЕДЕРЕВО"]
[null,"10","100210010 ЗЦ СМЕДЕРЕВО"]
[null,"11","100211001 ДЗ ВЕЛИКО ГРАДИШТЕ"]
[null,"11","100211002 ДЗ ЖАГУБИЦА"]
[null,"11","100211005 ЗЈЗ ПОЖАРЕВАЦ"]
[null,"11","100211006 АП ПОЖАРЕВАЦ"]
[null,"11","100211007 ДЗ ЖАБАРИ"]
[null,"11","100211008 ДЗ ГОЛУБАЦ"]
[null,"11","100211009 ДЗ КУЧЕВО"]
[null,"11","100211010 ДЗ МАЛО ЦРНИЋЕ"]
[null,"11","100211011 ДЗ ПОЖАРЕВАЦ"]
[null,"11","100211012 OБ ПОЖАРЕВАЦ"]
[null,"11","100211013 ДЗ ПЕТРОВАЦ НА МЛАВИ"]
[null,"11","100211014 ОБ ПЕТРОВАЦ НА МЛАВИ"]
[null,"12","100212001 ДЗ КРАГУЈЕВАЦ"]
[null,"12","100212002 ДЗ БАТОЧИНА"]
[null,"12","100212003 ДЗ КНИЋ"]
[null,"12","100212004 ДЗ ЛАПОВО"]
[null,"12","100212005 ДЗ РАЧА"]
[null,"12","100212006 ДЗ ТОПОЛА"]
[null,"12","100212007 ЗЦ АРАНЂЕЛОВАЦ"]
[null,"12","100212008 ЗАВОД ЗА ДЕНТАЛНУ МЕДИЦИНУ КРАГУЈЕВАЦ"]
[null,"12","100212009 СБ ЗА РЕХАБИЛИТАЦИЈУ БУКОВИЧКА БАЊА"]
[null,"12","100212010 УНИВЕРЗИТЕТСКИ КЛИНИЧКИ ЦЕНТАР КРАГУЈЕВАЦ"]
[null,"12","100212011 ИЗЈЗ КРАГУЈЕВАЦ"]
[null,"12","100212012 АП КРАГУЈЕВАЦ"]
[null,"12","100212013 АП АРАНЂЕЛОВАЦ"]
[null,"12","100212014 ЗАВОД ЗА УРГЕНТНУ МЕДИЦИНУ КРАГУЈЕВАЦ"]
[null,"13","100213001 ДЗ ДЕСПОТОВАЦ"]
[null,"13","100213002 ДЗ СВИЛАЈНАЦ"]
[null,"13","100213005 ЗЈЗ ЋУПРИЈА"]
[null,"13","100213007 ДЗ РЕКОВАЦ"]
[null,"13","100213008 ДЗ ЈАГОДИНА"]
[null,"13","100213009 ОБ ЈАГОДИНА"]
[null,"13","100213010 АП ЈАГОДИНА"]
[null,"13","100213011 ДЗ ЋУПРИЈА"]
[null,"13","100213012 ОБ ЋУПРИЈА"]
[null,"13","100213014 ДЗ ПАРАЋИН"]
[null,"13","100213015 АП ПАРАЋИН"]
[null,"13","100213016 ОБ ПАРАЋИН"]
[null,"14","100214002 ЗЦ НЕГОТИН"]
[null,"14","100214003 ЗЦ КЛАДОВО"]
[null,"14","100214005 АУ БОР"]
[null,"14","100214006 ДЗ МАЈДАНПЕК"]
[null,"14","100214007 ОБ МАЈДАНПЕК"]
[null,"14","100214008 ДЗ БОР"]
[null,"14","100214009 ОБ БОР"]
[null,"14","100214010 ЗЦ БОР"]
[null,"15","100215001 ДЗ БОЉЕВАЦ"]
[null,"15","100215002 ЗЦ КЊАЖЕВАЦ"]
[null,"15","100215003 ЗЦ ЗАЈЕЧАР"]
[null,"15","100215004 СБ ЗА РЕХАБИЛИТАЦИЈУ ГАМЗИГРАД"]
[null,"15","100215005 ЗЈЗ ЗАЈЕЧАР"]
[null,"15","100215006 АП ЗАЈЕЧАР"]
[null,"16","100216001 ЗЦ УЖИЦЕ"]
[null,"16","100216003 СБ ЗЛАТИБОР, ЧАЈЕТИНА"]
[null,"16","100216004 ЗЈЗ УЖИЦЕ"]
[null,"16","100216005 АП УЖИЦЕ"]
[null,"17","100217003 СБ ЗА РЕХАБИЛИТАЦИЈУ ИВАЊИЦА"]
[null,"17","100217004 ЗЈЗ ЧАЧАК"]
[null,"17","100217005 АП ЧАЧАК"]
[null,"17","100217006 АП ГОРЊИ МИЛАНОВАЦ"]
[null,"17","100217007 ДЗ ГОРЊИ МИЛАНОВАЦ"]
[null,"17","100217008 ОБ ГОРЊИ МИЛАНОВАЦ"]
[null,"17","100217009 ДЗ ЧАЧАК"]
[null,"17","100217010 ДЗ ИВАЊИЦА"]
[null,"17","100217011 ДЗ ЛУЧАНИ"]
[null,"17","100217012 ОБ ЧАЧАК"]
[null,"17","100217013 ЗЦ ГОРЊИ МИЛАНОВАЦ"]
[null,"18","100218001 ДЗ РАШКА"]
[null,"18","100218004 ЗЈЗ КРАЉЕВО"]
[null,"33","100218005 СБ НОВИ ПАЗАР"]
[null,"18","100218006 СБ ЗА ЛЕЧЕЊЕ И РХ МЕРКУР, ВРЊАЧКА БАЊА"]
[null,"18","100218007 СБ ЗА РЕХАБИЛИТАЦИЈУ АГЕНС, МАТАРУШКА БАЊА"]
[null,"18","100218008 АУ КРАЉЕВО"]
[null,"33","100218009 ДЗ ТУТИН"]
[null,"18","100218010 ДЗ ВРЊАЧКА БАЊА"]
[null,"18","100218011 СБ ЗА ИНТЕРНЕ БОЛЕСТИ ВРЊАЧКА БАЊА"]
[null,"33","100218012 ДЗ НОВИ ПАЗАР"]
[null,"33","100218013 ОБ НОВИ ПАЗАР"]
[null,"18","100218014 ДЗ КРАЉЕВО"]
[null,"18","100218015 ОБ КРАЉЕВО"]
[null,"33","100218016 ЗЈЗ НОВИ ПАЗАР"]
[null,"33","100218017 АУ НОВИ ПАЗАР"]
[null,"19","100219001 ДЗ ТРСТЕНИК"]
[null,"19","100219003 СБ ЗА РЕХАБИЛИТАЦИЈУ РИБАРСКА БАЊА"]
[null,"19","100219004 ЗЈЗ КРУШЕВАЦ"]
[null,"19","100219005 АУ КРУШЕВАЦ"]
[null,"19","100219006 ДЗ БРУС"]
[null,"19","100219007 ДЗ АЛЕКСАНДРОВАЦ"]
[null,"19","100219008 ДЗ ЋИЋЕВАЦ"]
[null,"19","100219009 ДЗ ВАРВАРИН"]
[null,"19","100219012 ОБ КРУШЕВАЦ"]
[null,"19","100219013 ДЗ КРУШЕВАЦ"]
[null,"20","100220001 ДЗ ГАЏИН ХАН"]
[null,"20","100220002 ДЗ ДОЉЕВАЦ"]
[null,"20","100220003 ДЗ СВРЉИГ"]
[null,"20","100220004 ДЗ СОКОБАЊА"]
[null,"20","100220005 ДЗ НИШ"]
[null,"20","100220006 ДЗ МЕРОШИНА"]
[null,"20","100220007 ДЗ РАЖАЊ"]
[null,"20","100220009 СБ ГОРЊА ТОПОНИЦА"]
[null,"20","100220010 СБ ЗА НЕСПЕЦИФИЧНЕ ПЛУЋНЕ БОЛЕСТИ СОКОБАЊА"]
[null,"20","100220011 СБ ЗА ПЛУЋНЕ  БОЛЕСТИ ОЗРЕН, СОКОБАЊА"]
[null,"20","100220012 ЗАВОД ЗА УРГЕНТНУ МЕДИЦИНУ НИШ"]
[null,"20","100220013 ЗЗЗ РАДНИКА НИШ"]
[null,"20","100220014 ЗЗЗ СТУДЕНАТА НИШ"]
[null,"20","100220015 ЗАВОД ЗА ПЛУЋНЕ БОЛЕСТИ И ТУБЕРКУЛОЗУ НИШ"]
[null,"20","100220016 ЗАВОД ЗА ТРАНСФУЗИЈУ КРВИ НИШ"]
[null,"20","100220017 ЗАВОД ЗА СУДСКУ МЕДИЦИНУ НИШ"]
[null,"20","100220018 ИНСТИТУТ ЗА ЛЕЧЕЊЕ И РХ НИШКА БАЊА"]
[null,"20","100220019 УНИВЕРЗИТЕТСКИ КЛИНИЧКИ ЦЕНТАР НИШ"]
[null,"20","100220020 КЛИНИКА ЗА ДЕНТАЛНУ МЕДИЦИНУ НИШ"]
[null,"20","100220021 ИЗЈЗ НИШ"]
[null,"20","100220022 АУ НИШ"]
[null,"20","100220024 ВОЈНА БОЛНИЦА НИШ"]
[null,"20","100220028 ЗЦ АЛЕКСИНАЦ"]
[null,"21","100221001 ДЗ КУРШУМЛИЈА"]
[null,"21","100221002 ДЗ БЛАЦЕ"]
[null,"21","100221005 АП ПРОКУПЉЕ"]
[null,"21","100221006 ДЗ ЖИТОРАЂА"]
[null,"21","100221009 ЗЦ ПРОКУПЉЕ"]
[null,"22","100222001 ДЗ БЕЛА ПАЛАНКА"]
[null,"22","100222003 ЗЈЗ ПИРОТ"]
[null,"22","100222004 АП ПИРОТ"]
[null,"22","100222005 ДЗ БАБУШНИЦА"]
[null,"22","100222006 ДЗ ДИМИТРОВГРАД"]
[null,"22","100222007 ДЗ ПИРОТ"]
[null,"22","100222008 ОБ ПИРОТ"]
[null,"23","100223001 ДЗ БОЈНИК"]
[null,"23","100223003 ЗЈЗ ЛЕСКОВАЦ"]
[null,"23","100223004 АП ЛЕСКОВАЦ"]
[null,"23","100223005 ДЗ ЛЕБАНЕ"]
[null,"23","100223006 СБ ЗА РЕХАБИЛИТАЦИЈУ ГЕЈЗЕР, СИЈАРИНСКА БАЊА"]
[null,"23","100223007 ДЗ ВЛАСОТИНЦЕ"]
[null,"23","100223008 ДЗ ЛЕСКОВАЦ"]
[null,"23","100223009 ОБ ЛЕСКОВАЦ"]
[null,"23","100223010 ДЗ МЕДВЕЂА"]
[null,"24","100224001 ЗЦ ВРАЊЕ"]
[null,"24","100224002 ЗЦ СУРДУЛИЦА"]
[null,"24","100224003 СБ ЗА ПЛУЋНЕ БОЛЕСТИ СУРДУЛИЦА"]
[null,"24","100224004 СБ ЗА РЕХАБИЛИТАЦИЈУ БУЈАНОВАЧКА БАЊА"]
[null,"24","100224005 СБ ЗА РЕХАБИЛИТАЦИЈУ ВРАЊСКА БАЊА"]
[null,"24","100224006 ЗЈЗ ВРАЊЕ"]
[null,"24","100224007 АП ВРАЊЕ"]
[null,"24","100224008 ДЗ ВЛАДИЧИН ХАН"]
[null,"24","100224009 ДЗ БУЈАНОВАЦ"]
[null,"24","100224010 ДЗ БОСИЛЕГРАД"]
[null,"24","100224011 АП БУЈАНОВАЦ"]
[null,"24","100224012 ДЗ ПРЕШЕВО"]
[null,"24","100224013 ДЗ ТРГОВИШТЕ"]
[null,"25","100225001 ДЗ ГРАЧАНИЦА"]
[null,"25","100225002 ДЗ ДОЊА ГУШТЕРИЦА"]
[null,"25","100225003 ДЗ КОСОВО ПОЉЕ"]
[null,"25","100225004 ДЗ ОБИЛИЋ"]
[null,"25","100225005 ДЗ ШТРПЦЕ"]
[null,"25","100225006 КБЦ ПРИШТИНА"]
[null,"25","100225008 ЗЦ ПРИЗРЕН"]
[null,"25","100225009 ДЗ ПРИШТИНА"]
[null,"25","100225010 ДЗ ДРАГАШ"]
[null,"25","100225012 ДЗ ИСТОК"]
[null,"25","100225013 ЗЦ ПЕЋ"]
[null,"25","100225014 СБ ЗА ПЛУЋНЕ БОЛЕСТИ ПЕЋ"]
[null,"25","100225015 ЗЦ ЂАКОВИЦА"]
[null,"25","100225016 АУ ПЕЋ"]
[null,"25","100225017 ЗАВОД ЗА СПЕЦ. РЕХАБИЛИТАЦИЈУ ИСТОК"]
[null,"25","100225018 АУ ПРИШТИНА"]
[null,"25","100225019 АУ ПРИЗРЕН"]
[null,"28","100228001 ДЗ ЗВЕЧАН"]
[null,"28","100228004 ЗЈЗ К. МИТРОВИЦА"]
[null,"28","100228005 ДЗ ЗУБИН ПОТОК"]
[null,"28","100228006 КБЦ К.МИТРОВИЦА"]
[null,"28","100228007 АУ К.МИТРОВИЦА"]
[null,"29","100229002 ЗЦ ГЊИЛАНЕ"]
[null,"29","100229003 АУ ГЊИЛАНЕ"]
[null,"30","100230001 ДЗ БАРАЈЕВО"]
[null,"30","100230002 ДЗ ВОЖДОВАЦ"]
[null,"30","100230003 ДЗ ВРАЧАР"]
[null,"30","100230004 ДЗ ГРОЦКА"]
[null,"30","100230005 ДЗ ЗВЕЗДАРА"]
[null,"30","100230006 ДЗ ЗЕМУН"]
[null,"30","100230007 ДЗ ЛАЗАРЕВАЦ"]
[null,"30","100230008 ДЗ МЛАДЕНОВАЦ"]
[null,"30","100230009 ДЗ НОВИ БЕОГРАД"]
[null,"30","100230010 ДЗ ОБРЕНОВАЦ"]
[null,"30","100230011 ДЗ ПАЛИЛУЛА"]
[null,"30","100230012 ДЗ РАКОВИЦА"]
[null,"30","100230013 ДЗ САВСКИ ВЕНАЦ"]
[null,"30","100230014 ДЗ СОПОТ"]
[null,"30","100230015 ДЗ СТАРИ ГРАД"]
[null,"30","100230016 ДЗ ЧУКАРИЦА"]
[null,"30","100230017 СБ ЗА ИНТЕРНЕ БОЛЕСТИ МЛАДЕНОВАЦ"]
[null,"30","100230018 СБ ЗА ЦЕРЕБРАЛНУ ПАРАЛИЗУ БГД"]
[null,"30","100230019 ИНСТИТУТ ЗА НЕОНАТОЛОГИЈУ БГД"]
[null,"30","100230020 СБ СВЕТИ САВА БГД"]
[null,"30","100230021 ЗАВОД ЗА УРГЕНТНУ МЕДИЦИНУ БГД"]
[null,"30","100230022 ГЗ ЗА КОЖНЕ И ВЕНЕРИЧНЕ БОЛЕСТИ БГД"]
[null,"30","100230023 ГЗ ЗА ГЕРОНТОЛОГИЈУ БГД"]
[null,"30","100230024 ГЗЈЗ БЕОГРАД"]
[null,"30","100230025 ГЗ ЗА ПЛУЋНЕ БОЛЕСТИ БГД"]
[null,"30","100230026 СБ ЗА ИНТЕРНЕ БОЛЕСТИ ЛАЗАРЕВАЦ"]
[null,"30","100230027 ЗЗЗ СТУДЕНАТА БЕОГРАД"]
[null,"30","100230028 ЗЗЗ РАДНИКА МУП БЕОГРАД"]
[null,"30","100230029 ЗАВОД ЗА БИОЦИДЕ И МЕДИЦИНСКУ ЕКОЛОГИЈУ"]
[null,"30","100230030 СБ ЗА РЕХАБИЛИТАЦИЈУ И ОРТ ПРОТЕТИКУ БГД"]
[null,"30","100230031 ИНСТИТУТ ЗА ТРАНСФУЗИЈУ КРВИ СРБИЈЕ"]
[null,"30","100230032 СБ ЗА БОЛЕСТИ ЗАВИСНОСТИ БГД"]
[null,"30","100230033 ЗАВОД ЗА ГОВОРНУ ПАТОЛОГИЈУ БГД"]
[null,"30","100230034 ИНСТИТУТ ЗА ОРТОПЕДИЈУ БАЊИЦА"]
[null,"30","100230035 КЛИНИКА ДР ЛАЗА ЛАЗАРЕВИЋ БГД"]
[null,"30","100230036 ИКВБ ДЕДИЊЕ"]
[null,"30","100230037 ИНСТИТУТ ЗА ЗЗ МАЈКЕ И ДЕТЕТА СРБИЈЕ"]
[null,"30","100230038 ИНСТИТУТ ЗА МЕНТАЛНО ЗДРАВЉЕ"]
[null,"30","100230039 ИНСТИТУТ ЗА ОНКОЛОГИЈУ И РАДИОЛОГИЈУ СРБИЈЕ"]
[null,"30","100230040 ИНСТИТУТ ЗА РЕУМАТОЛОГИЈУ БГД"]
[null,"30","100230041 ИНСТИТУТ ЗА РЕХАБИЛИТАЦИЈУ БЕОГРАД"]
[null,"30","100230042 КЛИНИКА ЗА РЕХАБИЛИТАЦИЈУ ДР М. ЗОТОВИЋ"]
[null,"30","100230043 КЛИНИКА ЗА НЕУРОЛОГИЈУ ЗА ДЕЦУ И ОМЛАДИНУ"]
[null,"30","100230044 УНИВЕРЗИТЕТСКА ДЕЧЈА КЛИНИКА БГД"]
[null,"30","100230045 ГАК НАРОДНИ ФРОНТ"]
[null,"30","100230047 КБЦ БЕЖАНИЈСКА КОСА"]
[null,"30","100230048 КБЦ ДР ДРАГИША МИШОВИЋ ДЕДИЊЕ"]
[null,"30","100230049 КБЦ ЗЕМУН"]
[null,"30","100230050 КБЦ ЗВЕЗДАРА"]
[null,"30","100230051 УНИВЕРЗИТЕТСКИ КЛИНИЧКИ ЦЕНТАР СРБИЈЕ"]
[null,"30","100230052 АПОТЕКА БЕОГРАД"]
[null,"30","100230053 ИЗЈЗ СРБИЈЕ - БАТУТ"]
[null,30,"100230054 ИНСТИТУТ ТОРЛАК"]
[null,"30","100230055 ВМА БЕОГРАД"]
[null,"30","100230057 ИНСТИТУТ ЗА МЕДИЦИНУ РАДА СРБИЈЕ"]
[null,"30","100230059 ДЗ СУРЧИН"]
[null,"12","100312001 ЗЗЗ РАДНИКА КРАГУЈЕВАЦ"]

{"sheet":"ObrazacIB","index":1,"n_rows":559,"n_cols":11,"rows_kept":559,"cut":false,"hidden":false,"merged":[[17,0,19,0],[17,1,19,1],[26,0,28,0],[27,5,27,8],[26,1,28,1],[26,2,28,2],[26,3,28,3],[17,2,19,2],[17,4,17,10],[18,10,19,10],[17,3,19,3],[26,4,26,10],[27,10,28,10],[18,4,19,4],[18,5,18,8],[18,9,19,9],[27,4,28,4],[27,9,28,9],[216,3,218,3],[228,3,230,3],[228,1,230,1],[168,0,170,0],[168,1,170,1],[168,4,168,10],[195,9,196,9],[195,10,196,10],[115,0,117,0],[115,1,117,1],[168,2,170,2],[168,3,170,3],[141,3,143,3],[141,0,143,0],[115,2,117,2],[115,3,117,3],[141,1,143,1],[141,2,143,2],[115,4,115,10],[116,5,116,8],[116,10,117,10],[116,4,117,4],[116,9,117,9],[169,5,169,8],[194,3,196,3],[85,0,87,0],[85,1,87,1],[58,0,60,0],[58,1,60,1],[58,3,60,3],[59,5,59,8],[58,2,60,2],[169,4,170,4],[58,4,58,10],[86,5,86,8],[85,2,87,2],[86,4,87,4],[59,4,60,4],[86,9,87,9],[86,10,87,10],[85,4,85,10],[85,3,87,3],[59,10,60,10],[142,5,142,8],[142,9,143,9],[142,10,143,10],[141,4,141,10],[142,4,143,4],[229,10,230,10],[248,9,249,9],[248,10,249,10],[229,4,230,4],[248,5,248,8],[247,4,247,10],[248,4,249,4],[229,5,229,8],[59,9,60,9],[194,4,194,10],[217,10,218,10],[217,5,217,8],[229,9,230,9],[217,4,218,4],[217,9,218,9],[228,4,228,10],[216,4,216,10],[195,5,195,8],[195,4,196,4],[169,9,170,9],[169,10,170,10],[216,1,218,1],[194,0,196,0],[216,0,218,0],[216,2,218,2],[194,2,196,2],[194,1,196,1],[228,2,230,2],[228,0,230,0],[247,0,249,0],[457,0,459,0],[457,1,459,1],[423,0,425,0],[423,1,425,1],[344,1,346,1],[344,2,346,2],[344,0,346,0],[423,2,425,2],[395,0,397,0],[395,1,397,1],[283,2,285,2],[247,2,249,2],[314,0,316,0],[314,1,316,1],[247,1,249,1],[283,0,285,0],[283,1,285,1],[314,2,316,2],[315,10,316,10],[284,5,284,8],[315,5,315,8],[284,4,285,4],[284,9,285,9],[283,3,285,3],[314,4,314,10],[283,4,283,10],[284,10,285,10],[315,4,316,4],[315,9,316,9],[247,3,249,3],[512,0,514,0],[512,1,514,1],[512,2,514,2],[512,3,514,3],[485,0,487,0],[485,1,487,1],[314,3,316,3],[344,4,344,10],[423,3,425,3],[395,3,397,3],[395,4,395,10],[396,4,397,4],[344,3,346,3],[370,4,370,10],[345,4,346,4],[345,5,345,8],[370,2,372,2],[395,2,397,2],[486,10,487,10],[486,5,486,8],[457,2,459,2],[457,3,459,3],[370,3,372,3],[424,4,425,4],[539,0,541,0],[539,1,541,1],[539,2,541,2],[539,3,541,3],[540,4,541,4],[540,9,541,9],[540,5,540,8],[345,10,346,10],[371,10,372,10],[424,10,425,10],[345,9,346,9],[396,9,397,9],[396,10,397,10],[423,4,423,10],[371,9,372,9],[371,4,372,4],[370,0,372,0],[370,1,372,1],[485,2,487,2],[540,10,541,10],[457,4,457,10],[458,4,459,4],[458,10,459,10],[512,4,512,10],[513,4,514,4],[513,9,514,9],[485,3,487,3],[555,8,555,9],[555,4,555,5],[371,5,371,8],[396,5,396,8],[424,5,424,8],[539,4,539,10],[486,4,487,4],[513,10,514,10],[486,9,487,9],[458,9,459,9],[513,5,513,8],[458,5,458,8],[485,4,485,10],[424,9,425,9]]}
[null,null,null,null,null,null,null,null,null,null,"Образац ИБ"]
[]
[]
[]
[]
[]
["Назив корисника буџетских средстава"]
[{"$f":"NazivKorisnika","v":"Дом здравља Уб"}]
[{"$f":"\"Седиште:   \" & biop","v":"Седиште:   Уб"},null,null,{"$f":" \"Матични број:   \" & MaticniBroj","v":"Матични број:   17211692"}]
[{"$f":"\"ПИБ:   \" & bip","v":"ПИБ:   101349256"},null,null,{"$f":"\"Број подрачуна:  \" & BrojPodracuna","v":"Број подрачуна:  840-407661-24"}]
["Назив надлежног директног корисника буџетских средстава"]
["_______________________________________________________________________"]
["(Попуњава само индиректни корисник буџетских средстава)"]
["ИЗВЕШТАЈ О ИЗВРШЕЊУ БУЏЕТА"]
["у периоду од 01.01.2025. - 31.12.2025. године"]
["I. УКУПНИ ПРИХОДИ И ПРИМАЊА"]
[null,null,null,null,null,null,null,null,null,null,"(У хиљадама динара)"]
["Ознака ОП","Број конта","Опис","Износ планираних прихода и примања","Износ остварених прихода и примања"]
[null,null,null,null,"Укупно                        (од 6 до 11)","Приходи и примања из буџета",null,null,null,"Из донација и помоћи","Из осталих извора"]
[null,null,null,null,null,"Републике","Аутономне покрајине","Општине / \nграда","ООСО"]
[1,2,3,4,5,6,7,8,9,10,11]
[5001,null,"ТЕКУЋИ ПРИХОДИ И ПРИМАЊА ОД ПРОДАЈЕ НЕФИНАНСИЈСКЕ ИМОВИНЕ (5002 + 5106)",{"$f":"D23+D147","v":439000},{"$f":"SUM(F22:K22)","v":426484},{"$f":"F23+F147","v":7691},0,18412,394453,0,5928]
[5002,700000,"ТЕКУЋИ ПРИХОДИ (5003 + 5047 + 5057 + 5069 + 5094 + 5099 + 5103)",{"$f":"D24+D76+D90+D102+D131+D136+D140","v":438950},426479,{"$f":"F24+F76+F90+F102+F131+F136+F140","v":7691},0,18412,394453,0,5923]
[5003,710000,"ПОРЕЗИ (5004 + 5008 + 5010 + 5017 + 5023 + 5030 + 5033 + 5040)",{"$f":"D25+D33+D35+D42+D48+D55+D58+D69","v":0},0,{"$f":"F25+F33+F35+F42+F48+F55+F58+F69","v":0},0,0,0,0,0]
[5004,711000,"ПОРЕЗ НА ДОХОДАК, ДОБИТ И КАПИТАЛНЕ ДОБИТКЕ (од 5005 до 5007)",{"$f":"SUM(D26:D32)","v":0},0,{"$f":"SUM(F26:F32)","v":0},0,0,0,0,0]
[5005,711100,"Порези на доходак и капиталнe добиткe које плаћају физичка лица",null,0]
["Ознака ОП","Број конта","Опис","Износ планираних прихода и примања","Износ остварених прихода и примања"]
[null,null,null,null,"Укупно                        (од 6 до 11)","Приходи и примања из буџета",null,null,null,"Из донација и помоћи","Из осталих извора"]
[null,null,null,null,null,"Републике","Аутономне покрајине","Општине / \nграда","ООСО"]
["1","2","3","4","5","6","7","8","9","10","11"]
[5006,711200,"Порези на добит и капиталне добитке које плаћају предузећа и друга правна лица",null,0]
[5007,711300,"Порези на доходак, добит и капиталне добитке који се не могу разврстати између физичких и правних лица",null,0]
[5008,712000,"ПОРЕЗ НА ФОНД ЗАРАДА (5009)",{"$f":"D34","v":0},0,{"$f":"F34","v":0},0,0,0,0,0]
[5009,712100,"Порез на фонд зарада",null,0]
[5010,713000,"ПОРЕЗ НА ИМОВИНУ (од 5011 до 5016)",{"$f":"SUM(D36:D41)","v":0},0,{"$f":"SUM(F36:F41)","v":0},0,0,0,0,0]
[5011,713100,"Периодични порези на непокретности",null,0]
[5012,713200,"Периодични порези на нето имовину",null,0]
[5013,713300,"Порези на заоставштину, наслеђе и поклон",null,0]
[5014,713400,"Порези на финансијске и капиталне трансакције",null,0]
[5015,713500,"Други једнократни порези на имовину",null,0]
[5016,713600,"Други периодични порези на имовину",null,0]
[5017,714000,"ПОРЕЗ НА ДОБРА И УСЛУГЕ (од 5018 до 5022)",{"$f":"SUM(D43:D47)","v":0},0,{"$f":"SUM(F43:F47)","v":0},0,0,0,0,0]
[5018,714100,"Општи порези на добра и услуге",null,0]
[5019,714300,"Добит фискалних монопола",null,0]
[5020,714400,"Порези на појединачне услуге",null,0]
[5021,714500,"Порези, таксе и накнаде на употребу добара, на дозволу да се добра употребљавају или делатности обављају",null,0]
[5022,714600,"Други порези на добра и услуге",null,0]
[5023,715000,"ПОРЕЗ НА МЕЂУНАРОДНУ ТРГОВИНУ И ТРАНСАКЦИЈЕ (од 5024 до 5029)",{"$f":"SUM(D49:D54)","v":0},0,{"$f":"SUM(F49:F54)","v":0},0,0,0,0,0]
[5024,715100,"Царине и друге увозне дажбине",null,0]
[5025,715200,"Порези на извоз",null,0]
[5026,715300,"Добит извозних или увозних монопола",null,0]
[5027,715400,"Добит по основу разлике између куповног и продајног девизног курса",null,0]
[5028,715500,"Порези на продају или куповину девиза",null,0]
[5029,715600,"Други порези на међународну трговину и трансакције",null,0]
[5030,716000,"ДРУГИ ПОРЕЗИ (5031 + 5032)",{"$f":"D56+D57","v":0},0,{"$f":"F56+F57","v":0},0,0,0,0,0]
[5031,716100,"Други порези које искључиво плаћају предузећа, односно предузетници",null,0]
[5032,716200,"Други порези које плаћају остала лица или који се не могу идентификовати",null,0]
[5033,717000,"АКЦИЗЕ (од 5034 до 5039)",{"$f":"SUM(D63:D68)","v":0},{"$f":"SUM(F58:K58)","v":0},{"$f":"SUM(F63:F68)","v":0},0,0,0,0,0]
["Ознака ОП","Број конта","Опис","Износ планираних прихода и примања","Износ остварених прихода и примања"]
[null,null,null,null,"Укупно                        (од 6 до 11)","Приходи и примања из буџета",null,null,null,"Из донација и помоћи","Из осталих извора"]
[null,null,null,null,null,"Републике","Аутономне покрајине","Општине / \nграда","ООСО"]
["1","2","3","4","5","6","7","8","9","10","11"]
[5034,717100,"Акцизе на деривате нафте",null,0]
[5035,717200,"Акцизе на дуванске прерађевине",null,0]
[5036,717300,"Акцизе на алкохолна пића",null,0]
[5037,717400,"Акцизе на освежавајућа безалкохолна пића",null,0]
[5038,717500,"Акциза на кафу",null,0]
[5039,717600,"Друге акцизе",null,0]
[5040,719000,"ЈЕДНОКРАТНИ ПОРЕЗ НА ЕКСТРА ПРОФИТ И ЕКСТРА ИМОВИНУ СТЕЧЕНУ КОРИШЋЕЊЕМ ПОСЕБНИХ ПОГОДНОСТИ (од 5041 до 5046)",{"$f":"SUM(D70:D75)","v":0},0,{"$f":"SUM(F70:F75)","v":0},0,0,0,0,0]
[5041,719100,"Порез на доходак, добит и капиталну добит на терет физичких лица",null,0]
[5042,719200,"Порез на доходак, добит и капиталну добит на терет предузећа и осталих правних лица",null,0]
[5043,719300,"Порез на доходак, добит и капиталну добит нераспоредив између физичких и правних лица",null,0]
[5044,719400,"Остали једнократни порези на имовину",null,0]
[5045,719500,"Остали порези које плаћају искључиво предузећа и предузетници",null,0]
[5046,719600,"Остали порези које плаћају друга или неидентификована лица",null,0]
[5047,720000,"СОЦИЈАЛНИ ДОПРИНОСИ (5048 + 5053)",{"$f":"D77+D82","v":0},0,{"$f":"F77+F82","v":0},0,0,0,0,0]
[5048,721000,"ДОПРИНОСИ ЗА СОЦИЈАЛНО ОСИГУРАЊЕ (од 5049 до 5052)",{"$f":"SUM(D78:D81)","v":0},0,{"$f":"SUM(F78:F81)","v":0},0,0,0,0,0]
[5049,721100,"Доприноси за социјално осигурање на терет запослених",null,0]
[5050,721200,"Доприноси за социјално осигурање на терет послодавца",null,0]
[5051,721300,"Доприноси за социјално осигурање лица која обављају самосталну делатност и незапослених лица",null,0]
[5052,721400,"Доприноси за социјално осигурање који се не могу разврстати",null,0]
[5053,722000,"ОСТАЛИ СОЦИЈАЛНИ ДОПРИНОСИ (од 5054 до 5056)",{"$f":"SUM(D83:D85)","v":0},0,{"$f":"SUM(F83:F85)","v":0},0,0,0,0,0]
[5054,722100,"Социјални доприноси на терет осигураника",null,0]
[5055,722200,"Социјални доприноси на терет послодаваца",null,0]
[5056,722300,"Импутирани социјални доприноси",null,0]
["Ознака ОП","Број конта","Опис","Износ планираних прихода и примања","Износ остварених прихода и примања"]
[null,null,null,null,"Укупно                        (од 6 до 11)","Приходи и примања из буџета",null,null,null,"Из донација и помоћи","Из осталих извора"]
[null,null,null,null,null,"Републике","Аутономне покрајине","Општине / \nграда","ООСО"]
["1","2","3","4","5","6","7","8","9","10","11"]
[5057,730000,"ДОНАЦИЈЕ, ПОМОЋИ И ТРАНСФЕРИ (5058 + 5061 + 5066)",{"$f":"D91+D94+D99","v":20000},18412,{"$f":"F91+F94+F99","v":0},0,18412,0,0,0]
[5058,731000,"ДОНАЦИЈЕ ОД ИНОСТРАНИХ ДРЖАВА (5059 + 5060)",{"$f":"D92+D93","v":0},0,{"$f":"F92+F93","v":0},0,0,0,0,0]
[5059,731100,"Текуће донације од иностраних држава",null,0]
[5060,731200,"Капиталне донације од иностраних држава",null,0]
[5061,732000,"ДОНАЦИЈЕ И ПОМОЋИ ОД МЕЂУНАРОДНИХ ОРГАНИЗАЦИЈА (од 5062 до 5065)",{"$f":"D95+D96+D97+D98","v":0},0,{"$f":"F95+F96+F97+F98","v":0},0,0,0,0,0]
[5062,732100,"Текуће донације од међународних организација",null,0]
[5063,732200,"Капиталне донације од међународних организација",null,0]
[5064,732300,"Текуће помоћи од ЕУ",null,0]
[5065,732400,"Капиталне помоћи од ЕУ",null,0]
[5066,733000,"ТРАНСФЕРИ ОД ДРУГИХ НИВОА ВЛАСТИ (5067 + 5068)",{"$f":"D100+D101","v":20000},18412,{"$f":"F100+F101","v":0},0,18412,0,0,0]
[5067,733100,"Текући трансфери од других нивоа власти",20000,{"$f":"SUM(F100:K100)","v":18412},null,null,18412]
[5068,733200,"Капитални трансфери од других нивоа власти",null,0]
[5069,740000,"ДРУГИ ПРИХОДИ (5070 + 5077 + 5082 + 5089 + 5092)",{"$f":"D103+D110+D115+D126+D129","v":10000},6219,{"$f":"F103+F110+F115+F126+F129","v":0},0,0,296,0,5923]
[5070,741000,"ПРИХОДИ ОД ИМОВИНЕ (од 5071 до 5076)",{"$f":"SUM(D104:D109)","v":750},296,{"$f":"SUM(F104:F109)","v":0},0,0,296,0,0]
[5071,741100,"Камате",null,0]
[5072,741200,"Дивиденде",null,0]
[5073,741300,"Повлачење прихода од квази корпорација",null,0]
[5074,741400,"Приход од имовине који припада имаоцима полиса осигурања",750,296,null,null,null,296]
[5075,741500,"Закуп непроизведене имовине",null,0]
[5076,741600,"Финансијске промене на финансијским лизинзима",null,0]
[5077,742000,"ПРИХОДИ ОД ПРОДАЈЕ ДОБАРА И УСЛУГА (од 5078 до 5081)",{"$f":"SUM(D111:D114)","v":9000},5907,{"$f":"SUM(F111:F114)","v":0},0,0,0,0,5907]
[5078,742100,"Приходи од продаје добара и услуга или закупа од стране тржишних организација",1500,687,null,null,null,null,null,687]
[5079,742200,"Таксе и накнаде",null,0]
[5080,742300,"Споредне продаје добара и услуга које врше државне нетржишне јединице",7500,5220,null,null,null,null,null,5220]
[5081,742400,"Импутиране продаје добара и услуга",null,0]
[5082,743000,"НОВЧАНЕ КАЗНЕ И ОДУЗЕТА ИМОВИНСКА КОРИСТ (од 5083 до 5088)",{"$f":"SUM(D120:D125)","v":0},0,{"$f":"SUM(F120:F125)","v":0},0,0,0,0,0]
["Ознака ОП","Број конта","Опис","Износ планираних прихода и примања","Износ остварених прихода и примања"]
[null,null,null,null,"Укупно                        (од 6 до 11)","Приходи и примања из буџета",null,null,null,"Из донација и помоћи","Из осталих извора"]
[null,null,null,null,null,"Републике","Аутономне покрајине","Општине / \nграда","ООСО"]
["1","2","3","4","5","6","7","8","9","10","11"]
[5083,743100,"Приходи од новчаних казни за кривична дела",null,0]
[5084,743200,"Приходи од новчаних казни за привредне преступе",null,0]
[5085,743300,"Приходи од новчаних казни за прекршаје",null,0]
[5086,743400,"Приходи од пенала",null,0]
[5087,743500,"Приходи од одузете имовинске користи",null,0]
[5088,743900,"Остале новчане казне, пенали и приходи од одузете имовинске користи",null,0]
[5089,744000,"ДОБРОВОЉНИ ТРАНСФЕРИ ОД ФИЗИЧКИХ И ПРАВНИХ ЛИЦА (5090 + 5091)",{"$f":"D127+D128","v":0},0,{"$f":"F127+F128","v":0},0,0,0,0,0]
[5090,744100,"Текући добровољни трансфери од физичких и правних лица",null,0]
[5091,744200,"Капитални добровољни трансфери од физичких и правних лица",null,0]
[5092,745000,"МЕШОВИТИ И НЕОДРЕЂЕНИ ПРИХОДИ (5093)",{"$f":"D130","v":250},16,{"$f":"F130","v":0},0,0,0,0,16]
[5093,745100,"Мешовити и неодређени приходи",250,16,null,null,null,null,null,16]
[5094,770000,"МЕМОРАНДУМСКЕ СТАВКЕ ЗА РЕФУНДАЦИЈУ РАСХОДА (5095 + 5097)",{"$f":"D132+D134","v":0},0,{"$f":"F132+F134","v":0},0,0,0,0,0]
[5095,771000,"МЕМОРАНДУМСКЕ СТАВКЕ ЗА РЕФУНДАЦИЈУ РАСХОДА (5096)",{"$f":"D133","v":0},0,{"$f":"F133","v":0},0,0,0,0,0]
[5096,771100,"Меморандумске ставке за рефундацију расхода",null,0]
[5097,772000,"МЕМОРАНДУМСКЕ СТАВКЕ ЗА РЕФУНДАЦИЈУ РАСХОДА ИЗ ПРЕТХОДНЕ ГОДИНЕ (5098)",{"$f":"D135","v":0},0,{"$f":"F135","v":0},0,0,0,0,0]
[5098,772100,"Меморандумске ставке за рефундацију расхода из претходне године",null,0]
[5099,780000,"ТРАНСФЕРИ ИЗМЕЂУ БУЏЕТСКИХ КОРИСНИКА НА ИСТОМ НИВОУ (5100)",{"$f":"D137","v":408950},{"$f":"SUM(F136:K136)","v":401848},{"$f":"F137","v":7691},0,0,394157,0,0]
[5100,781000,"ТРАНСФЕРИ ИЗМЕЂУ БУЏЕТСКИХ КОРИСНИКА НА ИСТОМ НИВОУ (5101 + 5102)",{"$f":"D138+D139","v":408950},401848,{"$f":"F138+F139","v":7691},0,0,394157,0,0]
[5101,781100,"Трансфери између буџетских корисника на истом нивоу",408950,{"$f":"SUM(F138:K138)","v":401848},7691,null,null,394157]
[5102,781300,"Трансфери између организација обавезног социјалног осигурања",null,0]
[5103,790000,"ПРИХОДИ ИЗ БУЏЕТА (5104)",{"$f":"D141","v":0},0,{"$f":"F141","v":0},0,0,0,0,0]
[5104,791000,"ПРИХОДИ ИЗ БУЏЕТА (5105)",{"$f":"D146","v":0},0,{"$f":"F146","v":0},0,0,0,0,0]
["Ознака ОП","Број конта","Опис","Износ планираних прихода и примања","Износ остварених прихода и примања"]
[null,null,null,null,"Укупно                        (од 6 до 11)","Приходи и примања из буџета",null,null,null,"Из донација и помоћи","Из осталих извора"]
[null,null,null,null,null,"Републике","Аутономне покрајине","Општине / \nграда","ООСО"]
["1","2","3","4","5","6","7","8","9","10","11"]
[5105,791100,"Приходи из буџета",null,0]
[5106,800000,"ПРИМАЊА ОД ПРОДАЈЕ НЕФИНАНСИЈСКЕ ИМОВИНЕ (5107 + 5114 + 5121 + 5124)",{"$f":"D148+D155+D162+D165","v":50},5,{"$f":"F148+F155+F162+F165","v":0},0,0,0,0,5]
[5107,810000,"ПРИМАЊА ОД ПРОДАЈЕ ОСНОВНИХ СРЕДСТАВА (5108 + 5110 + 5112)",{"$f":"D149+D151+D153","v":50},5,{"$f":"F149+F151+F153","v":0},0,0,0,0,5]
[5108,811000,"ПРИМАЊА ОД ПРОДАЈЕ НЕПОКРЕТНОСТИ (5109)",{"$f":"D150","v":50},5,{"$f":"F150","v":0},0,0,0,0,5]
[5109,811100,"Примања од продаје непокретности",50,5,null,null,null,null,null,5]
[5110,812000,"ПРИМАЊА ОД ПРОДАЈЕ ПОКРЕТНЕ ИМОВИНЕ (5111)",{"$f":"D152","v":0},0,{"$f":"F152","v":0},0,0,0,0,0]
[5111,812100,"Примања од продаје покретне имовине",null,0]
[5112,813000,"ПРИМАЊА ОД ПРОДАЈЕ ОСТАЛИХ ОСНОВНИХ СРЕДСТАВА (5113)",{"$f":"D154","v":0},0,{"$f":"F154","v":0},0,0,0,0,0]
[5113,813100,"Примања од продаје осталих основних средстава",null,0]
[5114,820000,"ПРИМАЊА ОД ПРОДАЈЕ ЗАЛИХА (5115 + 5117 + 5119)",{"$f":"D156+D158+D160","v":0},0,{"$f":"F156+F158+F160","v":0},0,0,0,0,0]
[5115,821000,"ПРИМАЊА ОД ПРОДАЈЕ РОБНИХ РЕЗЕРВИ (5116)",{"$f":"D157","v":0},0,{"$f":"F157","v":0},0,0,0,0,0]
[5116,821100,"Примања од продаје робних резерви",null,0]
[5117,822000,"ПРИМАЊА ОД ПРОДАЈЕ ЗАЛИХА  ПРОИЗВОДЊЕ (5118)",{"$f":"D159","v":0},0,{"$f":"F159","v":0},0,0,0,0,0]
[5118,822100,"Примања од продаје залиха производње",null,0]
[5119,823000,"ПРИМАЊА ОД ПРОДАЈЕ РОБЕ ЗА ДАЉУ ПРОДАЈУ (5120)",{"$f":"D161","v":0},0,{"$f":"F161","v":0},0,0,0,0,0]
[5120,823100,"Примања од продаје робе за даљу продају",null,0]
[5121,830000,"ПРИМАЊА ОД ПРОДАЈЕ ДРАГОЦЕНОСТИ (5122)",{"$f":"D163","v":0},0,{"$f":"F163","v":0},0,0,0,0,0]
[5122,831000,"ПРИМАЊА ОД ПРОДАЈЕ ДРАГОЦЕНОСТИ (5123)",{"$f":"D164","v":0},0,0,0,0,0,0,0]
[5123,831100,"Примања од продаје драгоцености",null,0]
[5124,840000,"ПРИМАЊА ОД ПРОДАЈЕ ПРИРОДНЕ ИМОВИНЕ (5125 + 5127 + 5129)",{"$f":"D166+D168+D174","v":0},0,{"$f":"F166+F168+F174","v":0},0,0,0,0,0]
[5125,841000,"ПРИМАЊА ОД ПРОДАЈЕ ЗЕМЉИШТА (5126)",{"$f":"D167","v":0},0,{"$f":"F167","v":0},0,0,0,0,0]
[5126,841100,"Примања од продаје земљишта",null,0]
[5127,842000,"ПРИМАЊА ОД ПРОДАЈЕ ПОДЗЕМНИХ БЛАГА (5128)",{"$f":"D173","v":0},0,{"$f":"F173","v":0},0,0,0,0,0]
["Ознака ОП","Број конта","Опис","Износ планираних прихода и примања","Износ остварених прихода и примања"]
[null,null,null,null,"Укупно                        (од 6 до 11)","Приходи и примања из буџета",null,null,null,"Из донација и помоћи","Из осталих извора"]
[null,null,null,null,null,"Републике","Аутономне покрајине","Општине / \nграда","ООСО"]
["1","2","3","4","5","6","7","8","9","10","11"]
[5128,842100,"Примања од продаје подземних блага",null,0]
[5129,843000,"ПРИМАЊА ОД ПРОДАЈЕ ШУМА И ВОДА (5130)",{"$f":"D175","v":0},0,{"$f":"F175","v":0},0,0,0,0,0]
[5130,843100,"Примања од продаје шума и вода",null,0]
[5131,900000,"ПРИМАЊА ОД ЗАДУЖИВАЊА И ПРОДАЈЕ ФИНАНСИЈСКЕ ИМОВИНЕ (5132 + 5151)",{"$f":"D177+D200","v":0},{"$f":"SUM(F176:K176)","v":0},{"$f":"F177+F200","v":0},0,0,0,0,0]
[5132,910000,"ПРИМАЊА ОД ЗАДУЖИВАЊА (5133 + 5143)",{"$f":"D178+D188","v":0},0,{"$f":"F178+F188","v":0},0,0,0,0,0]
[5133,911000,"ПРИМАЊА ОД ДОМАЋИХ ЗАДУЖИВАЊА (од 5134 до 5142)",{"$f":"SUM(D179:D187)","v":0},0,{"$f":"SUM(F179:F187)","v":0},0,0,0,0,0]
[5134,911100,"Примања од емитовања домаћих хартија од вредности, изузев акција",null,0]
[5135,911200,"Примања од задуживања од осталих нивоа власти",null,0]
[5136,911300,"Примања од задуживања од јавних финансијских институција у земљи",null,0]
[5137,911400,"Примања од задуживања од пословних банака у земљи",null,0]
[5138,911500,"Примања од задуживања код осталих поверилаца у земљи",null,0]
[5139,911600,"Примања од задуживања од домаћинстава у земљи",null,0]
[5140,911700,"Примања од домаћих финансијских деривата",null,0]
[5141,911800,"Примања од домаћих меница",null,0]
[5142,911900,"Исправка унутрашњег дуга",null,0]
[5143,912000,"ПРИМАЊА ОД ИНОСТРАНОГ ЗАДУЖИВАЊА (од 5144 до 5150)",{"$f":"SUM(D189:D199)","v":0},0,{"$f":"SUM(F189:F199)","v":0},0,0,0,0,0]
[5144,912100,"Примања од емитовања хартија од вредности, изузев акција, на иностраном финансијском тржишту",null,0]
[5145,912200,"Примања од задуживања од иностраних држава",null,0]
[5146,912300,"Примања од задуживања од мултилатералних институција",null,0]
[5147,912400,"Примања од задуживања од иностраних пословних банака",null,0]
[5148,912500,"Примања од задуживања од осталих иностраних поверилаца",null,0]
[5149,912600,"Примања од иностраних финансијских деривата",null,0]
["Ознака ОП","Број конта","Опис","Износ планираних прихода и примања","Износ остварених прихода и примања"]
[null,null,null,null,"Укупно                        (од 6 до 11)","Приходи и примања из буџета",null,null,null,"Из донација и помоћи","Из осталих извора"]
[null,null,null,null,null,"Републике","Аутономне покрајине","Општине / \nграда","ООСО"]
["1","2","3","4","5","6","7","8","9","10","11"]
[5150,912900,"Исправка спољног дуга",null,0]
[5151,920000,"ПРИМАЊА ОД ПРОДАЈЕ ФИНАНСИЈСКЕ ИМОВИНЕ (5152 + 5162)",{"$f":"D201+D211","v":0},0,{"$f":"F201+F211","v":0},0,0,0,0,0]
[5152,921000,"ПРИМАЊА ОД ПРОДАЈЕ ДОМАЋЕ ФИНАНСИЈСКЕ ИМОВИНЕ (од 5153 до 5161) ",{"$f":"SUM(D202:D210)","v":0},0,{"$f":"SUM(F202:F210)","v":0},0,0,0,0,0]
[5153,921100,"Примања од продаје домаћих хартија од вредности, изузев акција",null,0]
[5154,921200,"Примања од отплате кредита датих осталим нивоима власти",null,0]
[5155,921300,"Примања од отплате кредита датих домаћим јавним финансијским институцијама",null,0]
[5156,921400,"Примања од отплате кредита домаћим пословним банкама",null,0]
[5157,921500,"Примања од отплате кредита датих домаћим јавним нефинансијским институцијама",null,0]
[5158,921600,"Примања од отплате кредита датих физичким лицима и домаћинствима у земљи",null,0]
[5159,921700,"Примања од отплате кредита датих удружењима грађана у земљи",null,0]
[5160,921800,"Примања од отплате кредита датих нефинансијским приватним предузећима у земљи",null,0]
[5161,921900,"Примања од продаје домаћих акција и осталог капитала",null,0]
[5162,922000,"ПРИМАЊА ОД ПРОДАЈЕ СТРАНЕ ФИНАНСИЈСКЕ ИМОВИНЕ (од 5163 до 5170)",{"$f":"SUM(D212:D223)","v":0},0,{"$f":"SUM(F212:F223)","v":0},0,0,0,0,0]
[5163,922100,"Примања од продаје страних хартија од вредности, изузев акција",null,{"$f":"SUM(F212:K212)","v":0}]
[5164,922200,"Примања од отплате кредита датих страним владама",null,0]
[5165,922300,"Примања од отплате кредита датих међународним организацијама",null,0]
[5166,922400,"Примања од отплате кредита датих страним пословним банкама",null,0]
[5167,922500,"Примања од отплате кредита датих страним нефинансијским институцијама",null,0]
["Ознака ОП","Број конта","Опис","Износ планираних прихода и примања","Износ остварених прихода и примања"]
[null,null,null,null,"Укупно                        (од 6 до 11)","Приходи и примања из буџета",null,null,null,"Из донација и помоћи","Из осталих извора"]
[null,null,null,null,null,"Републике","Аутономне покрајине","Општине / \nграда","ООСО"]
["1","2","3","4","5","6","7","8","9","10","11"]
[5168,922600,"Примања од отплате кредита датих страним невладиним организацијама",null,0]
[5169,922700,"Примања од продаје страних акција и осталог капитала",null,0]
[5170,922800,"Примања од продаје стране валуте",null,0]
[5171,null,"УКУПНИ ПРИХОДИ И ПРИМАЊА (5001 + 5131)",{"$f":"D22+D176","v":439000},426484,{"$f":"F22+F176","v":7691},0,18412,394453,0,5928]
[]
[]
["II. УКУПНИ РАСХОДИ И ИЗДАЦИ"]
[null,null,null,null,null,null,null,null,null,"(У хиљадама динара)"]
["Ознака ОП","Број конта","Опис","Износ одобрених апропријација ","Износ извршених расхода и издатака"]
[null,null,null,null,"Укупно           (од 6 до 11)","Расходи и издаци на терет буџета",null,null,null,"Из донација и помоћи","Из осталих извора"]
[null,null,null,null,null,"Републике ","Аутономне покрајине","Општине / \nграда","ООСО"]
[1,2,3,4,5,6,7,8,9,10,11]
[5172,null,"ТЕКУЋИ РАСХОДИ И ИЗДАЦИ ЗА НЕФИНАНСИЈСКЕ ИМОВИНЕ (5173 + 5341)",{"$f":"D234+D430","v":439000},{"$f":"SUM(F233:K233)","v":428258},{"$f":"F234+F430","v":7691},0,18412,395161,0,6994]
[5173,400000,"ТЕКУЋИ РАСХОДИ (5174 + 5196 + 5241 + 5256 + 5280 + 5293 + 5309 + 5324)",{"$f":"D235+D261+D310+D329+D357+D370+D390+D409","v":428700},418805,{"$f":"F235+F261+F310+F329+F357+F370+F390+F409","v":0},0,17016,395161,0,6628]
[5174,410000,"РАСХОДИ ЗА ЗАПОСЛЕНЕ (5175 + 5177 + 5181 + 5183 + 5188 + 5190 + 5192 + 5194)",{"$f":"D236+D238+D242+D244+D253+D255+D257+D259","v":338348},336746,{"$f":"F236+F238+F242+F244+F253+F255+F257+F259","v":0},0,82,334306,0,2358]
[5175,411000,"ПЛАТЕ, ДОДАЦИ И НАКНАДЕ ЗАПОСЛЕНИХ (ЗАРАДЕ) (5176)",{"$f":"D237","v":280327},279111,{"$f":"F237","v":0},0,0,277393,0,1718]
[5176,411100,"Плате, додаци и накнаде запослених",280327,279111,null,null,null,277393,null,1718]
[5177,412000,"СОЦИЈАЛНИ ДОПРИНОСИ НА ТЕРЕТ ПОСЛОДАВЦА (од 5178 до 5180)",{"$f":"SUM(D239:D241)","v":42471},42318,{"$f":"SUM(F239:F241)","v":0},0,0,42025,0,293]
[5178,412100,"Допринос за пензијско и инвалидско осигурање",28033,27932,null,null,null,27739,null,193]
[5179,412200,"Допринос за здравствено осигурање",14438,14386,null,null,null,14286,null,100]
[5180,412300,"Допринос за незапосленост",null,0]
[5181,413000,"НАКНАДЕ У НАТУРИ (5182)",{"$f":"D243","v":250},201,{"$f":"F243","v":0},0,0,0,0,201]
[5182,413100,"Накнаде у натури",250,201,null,null,null,null,null,201]
[5183,414000,"СОЦИЈАЛНА ДАВАЊА ЗАПОСЛЕНИМА (од 5184 до 5187)",{"$f":"SUM(D245:D252)","v":3995},3358,{"$f":"SUM(F245:F252)","v":0},0,56,3252,0,50]
[5184,414100,"Исплата накнада за време одсуствовања с посла на терет фондова",50,50,null,null,null,null,null,50]
[5185,414200,"Расходи за образовање деце запослених",null,0]
[5186,414300,"Отпремнине и помоћи",3000,2478,null,null,null,2478]
["Ознака ОП","Број конта","Опис","Износ одобрених апропријација","Износ извршених расхода и издатака"]
[null,null,null,null,"Укупно           (од 6 до 11)","Расходи и издаци на терет буџета",null,null,null,"Из донација и помоћи","Из осталих извора"]
[null,null,null,null,null,"Републике ","Аутономне покрајине","Општине / \nграда","ООСО"]
["1","2","3","4","5","6","7","8","9","10","11"]
[5187,414400,"Помоћ у медицинском лечењу запосленог или чланова уже породице и друге помоћи запосленом",945,830,null,null,56,774]
[5188,415000,"НАКНАДА ТРОШКОВА ЗА ЗАПОСЛЕНЕ (5189)",{"$f":"D254","v":7600},8071,{"$f":"F254","v":0},0,0,7975,0,96]
[5189,415100,"Накнаде трошкова за запослене",7600,8071,null,null,null,7975,null,96]
[5190,416000,"НАГРАДЕ ЗАПОСЛЕНИМА И ОСТАЛИ ПОСЕБНИ РАСХОДИ (5191)",{"$f":"D256","v":3705},3687,{"$f":"F256","v":0},0,26,3661,0,0]
[5191,416100,"Награде запосленима и остали посебни расходи",3705,3687,null,null,26,3661]
[5192,417000,"ПОСЛАНИЧКИ ДОДАТАК (5193)",{"$f":"D258","v":0},0,{"$f":"F258","v":0},0,0,0,0,0]
[5193,417100,"Посланички додатак",null,0]
[5194,418000,"СУДИЈСКИ ДОДАТАК (5195)",{"$f":"D260","v":0},0,{"$f":"F260","v":0},0,0,0,0,0]
[5195,418100,"Судијски додатак",null,0]
[5196,420000,"КОРИШЋЕЊЕ УСЛУГА И РОБА (5197 + 5205 + 5211 + 5220 + 5228 + 5231) ",{"$f":"D262+D270+D276+D289+D297+D300","v":87585},80106,{"$f":"F262+F270+F276+F289+F297+F300","v":0},0,16934,58910,0,4262]
[5197,421000,"СТАЛНИ ТРОШКОВИ (од 5198 до 5204)",{"$f":"SUM(D263:D269)","v":15500},13538,{"$f":"SUM(F263:F269)","v":0},0,279,11869,0,1390]
[5198,421100,"Трошкови платног промета и банкарских услуга",490,454,null,null,null,420,null,34]
[5199,421200,"Енергетске услуге",9850,8190,null,null,279,7173,null,738]
[5200,421300,"Комуналне услуге",1850,1658,null,null,null,1372,null,286]
[5201,421400,"Услуге комуникација",1900,1884,null,null,null,1800,null,84]
[5202,421500,"Трошкови осигурања",1160,1110,null,null,null,1104,null,6]
[5203,421600,"Закуп имовине и опреме",null,0]
[5204,421900,"Остали трошкови",250,242,null,null,null,null,null,242]
[5205,422000,"ТРОШКОВИ ПУТОВАЊА (од 5206 до 5210)",{"$f":"SUM(D271:D275)","v":600},418,{"$f":"SUM(F271:F275)","v":0},0,0,0,0,418]
[5206,422100,"Трошкови службених путовања у земљи",550,418,null,null,null,null,null,418]
[5207,422200,"Трошкови службених путовања у иностранство",null,0]
[5208,422300,"Трошкови путовања у оквиру редовног рада",null,0]
[5209,422400,"Трошкови путовања ученика",null,0]
[5210,422900,"Остали трошкови транспорта",50,0]
[5211,423000,"УСЛУГЕ ПО УГОВОРУ (од 5212 до 5219)",{"$f":"SUM(D277:D288)","v":10485},9344,{"$f":"SUM(F277:F288)","v":0},0,5189,3248,0,907]
[5212,423100,"Административне услуге",25,0]
[5213,423200,"Компјутерске услуге",2750,2470,null,null,199,1970,null,301]
[5214,423300,"Услуге образовања и усавршавања запослених",2850,2344,null,null,887,1278,null,179]
[5215,423400,"Услуге информисања",50,0]
[5216,423500,"Стручне услуге",3700,3514,null,null,3514]
[5217,423600,"Услуге за домаћинство и угоститељство",null,0]
[5218,423700,"Репрезентација",350,344,null,null,null,null,null,344]
["Ознака ОП","Број конта","Опис","Износ одобрених апропријација","Износ извршених расхода и издатака"]
[null,null,null,null,"Укупно           (од 6 до 11)","Расходи и издаци на терет буџета",null,null,null,"Из донација и помоћи","Из осталих извора"]
[null,null,null,null,null,"Републике ","Аутономне покрајине","Општине / \nграда","ООСО"]
["1","2","3","4","5","6","7","8","9","10","11"]
[5219,423900,"Остале опште услуге",760,672,null,null,589,null,null,83]
[5220,424000,"СПЕЦИЈАЛИЗОВАНЕ УСЛУГЕ (од 5221 до 5227)",{"$f":"SUM(D290:D296)","v":9350},8692,{"$f":"SUM(F290:F296)","v":0},0,8312,252,0,128]
[5221,424100,"Пољопривредне услуге",null,0]
[5222,424200,"Услуге образовања, културе и спорта",null,0]
[5223,424300,"Медицинске услуге",9100,8464,null,null,8212,252]
[5224,424400,"Услуге одржавања аутопутева",null,0]
[5225,424500,"Услуге одржавања националних паркова и природних површина",null,0]
[5226,424600,"Услуге очувања животне средине, науке и геодетске услуге",null,0]
[5227,424900,"Остале специјализоване услуге",250,228,null,null,100,null,null,128]
[5228,425000,"ТЕКУЋЕ ПОПРАВКЕ И ОДРЖАВАЊЕ (5229 + 5230)",{"$f":"D298+D299","v":5100},3917,{"$f":"F298+F299","v":0},0,801,2962,0,154]
[5229,425100,"Текуће поправке и одржавање зграда и објеката",1050,965,null,null,412,553]
[5230,425200,"Текуће поправке и одржавање опреме",4050,2952,null,null,389,2409,null,154]
[5231,426000,"МАТЕРИЈАЛ (од 5232 до 5240)",{"$f":"SUM(D301:D309)","v":46550},44197,{"$f":"SUM(F301:F309)","v":0},0,2353,40579,0,1265]
[5232,426100,"Административни материјал",2750,2518,null,null,1097,1381,null,40]
[5233,426200,"Материјали за пољопривреду",null,0]
[5234,426300,"Материјали за образовање и усавршавање запослених",500,345,null,null,null,null,null,345]
[5235,426400,"Материјали за саобраћај",9400,9136,null,null,null,8919,null,217]
[5236,426500,"Материјали за очување животне средине и науку",null,{"$f":"SUM(F305:K305)","v":0}]
[5237,426600,"Материјали за образовање, културу и спорт",null,0]
[5238,426700,"Медицински и лабораторијски материјали",28250,26965,null,null,615,26252,null,98]
[5239,426800,"Материјали за одржавање хигијене и угоститељство",3050,2792,null,null,null,2343,null,449]
[5240,426900,"Материјали за посебне намене",2600,2441,null,null,641,1684,null,116]
[5241,430000,"АМОРТИЗАЦИЈА И УПОТРЕБА СРЕДСТАВА ЗА РАД (5242 + 5246 + 5248 + 5250 + 5254)",{"$f":"D311+D319+D321+D323+D327","v":492},0,{"$f":"F311+F319+F321+F323+F327","v":0},0,0,0,0,0]
[5242,431000,"АМОРТИЗАЦИЈА НЕКРЕТНИНА И ОПРЕМЕ (од 5243 до 5245)",{"$f":"SUM(D312:D314)","v":462},0,{"$f":"SUM(F312:F314)","v":0},0,0,0,0,0]
[5243,431100,"Амортизација зграда и грађевинскиx објеката",140,0]
[5244,431200,"Амортизација опреме",322,0]
[5245,431300,"Амортизација осталих некретнина и опреме",null,0]
["Ознака ОП","Број конта","Опис","Износ одобрених апропријација","Износ извршених расхода и издатака"]
[null,null,null,null,"Укупно           (од 6 до 11)","Расходи и издаци на терет буџета",null,null,null,"Из донација и помоћи","Из осталих извора"]
[null,null,null,null,null,"Републике ","Аутономне покрајине","Општине / \nграда","ООСО"]
["1","2","3","4","5","6","7","8","9","10","11"]
[5246,432000,"АМОРТИЗАЦИЈА КУЛТИВИСАНЕ ИМОВИНЕ (5247)",{"$f":"D320","v":0},0,{"$f":"F320","v":0},0,0,0,0,0]
[5247,432100,"Амортизација култивисане имовине",null,0]
[5248,433000,"УПОТРЕБА ДРАГОЦЕНОСТИ (5249)",{"$f":"D322","v":0},0,{"$f":"F322","v":0},0,0,0,0,0]
[5249,433100,"Употреба драгоцености",null,0]
[5250,434000,"УПОТРЕБА ПРИРОДНЕ ИМОВИНЕ (од 5251 до 5253)",{"$f":"SUM(D324:D326)","v":0},0,{"$f":"SUM(F324:F326)","v":0},0,0,0,0,0]
[5251,434100,"Употреба земљишта",null,0]
[5252,434200,"Употреба подземног блага",null,0]
[5253,434300,"Употреба шума и вода",null,0]
[5254,435000,"АМОРТИЗАЦИЈА НЕМАТЕРИЈАЛНЕ ИМОВИНЕ (5255)",{"$f":"D328","v":30},0,{"$f":"F328","v":0},0,0,0,0,0]
[5255,435100,"Амортизација нематеријалне имовине",30,0]
[5256,440000,"ОТПЛАТА КАМАТА И ПРАТЕЋИ ТРОШКОВИ ЗАДУЖИВАЊА (5257 + 5267 + 5274 + 5276)",{"$f":"D330+D340+D351+D353","v":0},0,{"$f":"F330+F340+F351+F353","v":0},0,0,0,0,0]
[5257,441000,"ОТПЛАТА ДОМАЋИХ КАМАТА (од 5258 до 5266)",{"$f":"SUM(D331:D339)","v":0},0,{"$f":"SUM(F331:F339)","v":0},0,0,0,0,0]
[5258,441100,"Отплата камата на домаће хартије од вредности",null,0]
[5259,441200,"Отплата камата осталим нивоима власти",null,0]
[5260,441300,"Отплата камата домаћим јавним финансијским институцијама",null,0]
[5261,441400,"Отплата камата домаћим пословним банкама",null,0]
[5262,441500,"Отплата камата осталим домаћим кредиторима",null,0]
[5263,441600,"Отплата камата домаћинствима у земљи",null,0]
[5264,441700,"Отплата камата на домаће финансијске деривате",null,0]
[5265,441800,"Отплата камата на домаће менице",null,0]
[5266,441900,"Финансијске промене на финансијским лизинзима",null,0]
[5267,442000,"ОТПЛАТА СТРАНИХ КАМАТА (од 5268 до 5273)",{"$f":"SUM(D341:D350)","v":0},0,{"$f":"SUM(F341:F350)","v":0},0,0,0,0,0]
[5268,442100,"Отплата камата на хартије од вредности емитоване на иностраном финансијском тржишту",null,0]
[5269,442200,"Отплата камата страним владама",null,0]
[5270,442300,"Отплата камата мултилатералним институцијама",null,0]
[5271,442400,"Отплата камата страним пословним банкама",null,0]
["Ознака ОП","Број конта","Опис","Износ одобрених апропријација","Износ извршених расхода и издатака"]
[null,null,null,null,"Укупно           (од 6 до 11)","Расходи и издаци на терет буџета",null,null,null,"Из донација и помоћи","Из осталих извора"]
[null,null,null,null,null,"Републике ","Аутономне покрајине","Општине / \nграда","ООСО"]
["1","2","3","4","5","6","7","8","9","10","11"]
[5272,442500,"Отплата камата осталим страним кредиторима",null,0]
[5273,442600,"Отплата камата на стране финансијске деривате",null,0]
[5274,443000,"ОТПЛАТА КАМАТА ПО ГАРАНЦИЈАМА (5275)",{"$f":"D352","v":0},0,{"$f":"F352","v":0},0,0,0,0,0]
[5275,443100,"Отплата камата по гаранцијама",null,0]
[5276,444000,"ПРАТЕЋИ ТРОШКОВИ ЗАДУЖИВАЊА (од 5277 до 5279)",{"$f":"SUM(D354:D356)","v":0},0,{"$f":"SUM(F354:F356)","v":0},0,0,0,0,0]
[5277,444100,"Негативне курсне разлике",null,0]
[5278,444200,"Казне за кашњење",null,0]
[5279,444300,"Остали пратећи трошкови задуживања",null,0]
[5280,450000,"СУБВЕНЦИЈЕ (5281 + 5284 + 5287 + 5290)",{"$f":"D358+D361+D364+D367","v":0},0,{"$f":"F358+F361+F364+F367","v":0},0,0,0,0,0]
[5281,451000,"СУБВЕНЦИЈЕ ЈАВНИМ НЕФИНАНСИЈСКИМ ПРЕДУЗЕЋИМА И ОРГАНИЗАЦИЈАМА (5282 + 5283)",{"$f":"D359+D360","v":0},0,{"$f":"F359+F360","v":0},0,0,0,0,0]
[5282,451100,"Текуће субвенције јавним нефинансијским предузећима и организацијама",null,0]
[5283,451200,"Капиталне субвенције јавним нефинансијским предузећима и организацијама",null,0]
[5284,452000,"СУБВЕНЦИЈЕ ПРИВАТНИМ ФИНАНСИЈСКИМ ИНСТИТУЦИЈАМА (5285 + 5286)",{"$f":"D362+D363","v":0},0,{"$f":"F362+F363","v":0},0,0,0,0,0]
[5285,452100,"Текуће субвенције приватним финансијским институцијама",null,0]
[5286,452200,"Капиталне субвенције приватним финансијским институцијама",null,0]
[5287,453000,"СУБВЕНЦИЈЕ ЈАВНИМ ФИНАНСИЈСКИМ ИНСТИТУЦИЈАМА (5288 + 5289)",{"$f":"D365+D366","v":0},0,{"$f":"F365+F366","v":0},0,0,0,0,0]
[5288,453100,"Текуће субвенције јавним финансијским институцијама",null,0]
[5289,453200,"Капиталне субвенције јавним финансијским институцијама",null,0]
[5290,454000,"СУБВЕНЦИЈЕ ПРИВАТНИМ ПРЕДУЗЕЋИМА (5291 + 5292)",{"$f":"D368+D369","v":0},0,{"$f":"F368+F369","v":0},0,0,0,0,0]
[5291,454100,"Текуће субвенције приватним предузећима",null,0]
[5292,454200,"Капиталне субвенције приватним предузећима",null,0]
[5293,460000,"ДОНАЦИЈЕ, ДОТАЦИЈЕ И ТРАНСФЕРИ (5294 + 5297 + 5300 + 5303 + 5306)",{"$f":"D375+D378+D381+D384+D387","v":1950},1759,{"$f":"F375+F378+F381+F384+F387","v":0},0,0,1759,0,0]
["Ознака ОП","Број конта","Опис","Износ одобрених апропријација","Износ извршених расхода и издатака"]
[null,null,null,null,"Укупно           (од 6 до 11)","Расходи и издаци на терет буџета",null,null,null,"Из донација и помоћи","Из осталих извора"]
[null,null,null,null,null,"Републике ","Аутономне покрајине","Општине / \nграда","ООСО"]
["1","2","3","4","5","6","7","8","9","10","11"]
[5294,461000,"ДОНАЦИЈЕ СТРАНИМ ВЛАДАМА (5295 + 5296)",{"$f":"D376+D377","v":0},0,{"$f":"F376+F377","v":0},0,0,0,0,0]
[5295,461100,"Текуће донације страним владама",null,0]
[5296,461200,"Капиталне донације страним владама",null,0]
[5297,462000,"ДОТАЦИЈЕ МЕЂУНАРОДНИМ ОРГАНИЗАЦИЈАМА (5298 + 5299)",{"$f":"D379+D380","v":0},0,{"$f":"F379+F380","v":0},0,0,0,0,0]
[5298,462100,"Текуће дотације међународним организацијама",null,0]
[5299,462200,"Капиталне дотације међународним организацијама",null,0]
[5300,463000,"ТРАНСФЕРИ ОСТАЛИМ НИВОИМА ВЛАСТИ (5301 + 5302)",{"$f":"D382+D383","v":0},{"$f":"SUM(F381:K381)","v":0},{"$f":"F382+F383","v":0},0,0,0,0,0]
[5301,463100,"Текући трансфери осталим нивоима власти",null,0]
[5302,463200,"Капитални трансфери осталим нивоима власти",null,0]
[5303,464000,"ДОТАЦИЈЕ ОРГАНИЗАЦИЈАМА ЗА ОБАВЕЗНО СОЦИЈАЛНО ОСИГУРАЊЕ (5304 + 5305)",{"$f":"D385+D386","v":0},0,{"$f":"F385+F386","v":0},0,0,0,0,0]
[5304,464100,"Текуће дотације организацијама за обавезно социјално осигурање",null,0]
[5305,464200,"Капиталне дотације организацијама за обавезно социјално осигурање",null,0]
[5306,465000,"ОСТАЛЕ ДОТАЦИЈЕ И ТРАНСФЕРИ (5307 + 5308)",{"$f":"D388+D389","v":1950},1759,{"$f":"F388+F389","v":0},0,0,1759,0,0]
[5307,465100,"Остале текуће дотације и трансфери",1950,1759,null,null,null,1759]
[5308,465200,"Остале капиталне дотације и трансфери",null,0]
[5309,470000,"СОЦИЈАЛНО ОСИГУРАЊЕ И СОЦИЈАЛНА ЗАШТИТА (5310 + 5314)",{"$f":"D391+D395","v":0},0,{"$f":"F391+F395","v":0},0,0,0,0,0]
[5310,471000,"ПРАВА ИЗ СОЦИЈАЛНОГ ОСИГУРАЊА (ОРГАНИЗАЦИЈЕ ЗА ОБАВЕЗНО СОЦИЈАЛНО ОСИГУРАЊЕ)) (од 5311 до 5313)",{"$f":"SUM(D392:D394)","v":0},0,{"$f":"SUM(F392:F394)","v":0},0,0,0,0,0]
[5311,471100,"Права из социјалног осигурања која се исплаћују непосредно домаћинствима",null,0]
[5312,471200,"Права из социјалног осигурања која се исплаћују непосредно пружаоцима услуга",null,0]
[5313,471900,"Трансфери другим организацијама за обавезно социјално осигурање за доприносе за осигурање",null,0]
[5314,472000,"НАКНАДЕ ЗА СОЦИЈАЛНУ ЗАШТИТУ ИЗ БУЏЕТА (од 5315 до 5323)",{"$f":"SUM(D400:D408)","v":0},0,{"$f":"SUM(F400:F408)","v":0},0,0,0,0,0]
["Ознака ОП","Број конта","Опис","Износ одобрених апропријација","Износ извршених расхода и издатака"]
[null,null,null,null,"Укупно           (од 6 до 11)","Расходи и издаци на терет буџета",null,null,null,"Из донација и помоћи","Из осталих извора"]
[null,null,null,null,null,"Републике ","Аутономне покрајине","Општине / \nграда","ООСО"]
["1","2","3","4","5","6","7","8","9","10","11"]
[5315,472100,"Накнаде из буџета у случају болести и инвалидности",null,0]
[5316,472200,"Накнаде из буџета за породиљско одсуство",null,0]
[5317,472300,"Накнаде из буџета за децу и породицу",null,0]
[5318,472400,"Накнаде из буџета за случај незапослености",null,0]
[5319,472500,"Старосне и породичне пензије из буџета",null,0]
[5320,472600,"Накнаде из буџета у случају смрти",null,0]
[5321,472700,"Накнаде из буџета за образовање, културу, науку и спорт",null,0]
[5322,472800,"Накнаде из буџета за становање и живот",null,0]
[5323,472900,"Остале накнаде из буџета",null,0]
[5324,480000,"ОСТАЛИ РАСХОДИ (5325 + 5328 + 5332 + 5334 + 5337 + 5339)",{"$f":"D410+D413+D417+D419+D422+D428","v":325},194,{"$f":"F410+F413+F417+F419+F422+F428","v":0},0,0,186,0,8]
[5325,481000,"ДОТАЦИЈЕ НЕВЛАДИНИМ ОРГАНИЗАЦИЈАМА (5326 + 5327)",{"$f":"D411+D412","v":0},0,{"$f":"F411+F412","v":0},0,0,0,0,0]
[5326,481100,"Дотације непрофитним организацијама које пружају помоћ домаћинствима",null,0]
[5327,481900,"Дотације осталим непрофитним институцијама",null,0]
[5328,482000,"ПОРЕЗИ, ОБАВЕЗНЕ ТАКСЕ, КАЗНЕ, ПЕНАЛИ И КАМАТЕ (од 5329 до 5331)",{"$f":"SUM(D414:D416)","v":275},194,{"$f":"SUM(F414:F416)","v":0},0,0,186,0,8]
[5329,482100,"Остали порези",245,192,null,null,null,186,null,6]
[5330,482200,"Обавезне таксе",30,2,null,null,null,null,null,2]
[5331,482300,"Новчане казне, пенали и камате",null,0]
[5332,483000,"НОВЧАНЕ КАЗНЕ И ПЕНАЛИ ПО РЕШЕЊУ СУДОВА (5333)",{"$f":"D418","v":0},0,{"$f":"F418","v":0},0,0,0,0,0]
[5333,483100,"Новчане казне и пенали по решењу судова",null,0]
[5334,484000,"НАКНАДА ШТЕТЕ ЗА ПОВРЕДЕ ИЛИ ШТЕТУ НАСТАЛУ УСЛЕД ЕЛЕМЕНТАРНИХ НЕПОГОДА ИЛИ ДРУГИХ ПРИРОДНИХ УЗРОКА (5335 + 5336)",{"$f":"D420+D421","v":0},0,{"$f":"F420+F421","v":0},0,0,0,0,0]
[5335,484100,"Накнада штете за повреде или штету насталу услед елементарних непогода",null,0]
[5336,484200,"Накнада штете од дивљачи",null,0]
[5337,485000,"НАКНАДА ШТЕТЕ ЗА ПОВРЕДЕ ИЛИ ШТЕТУ НАНЕТУ ОД СТРАНЕ ДРЖАВНИХ ОРГАНА (5338)",{"$f":"D423","v":50},0,{"$f":"F423","v":0},0,0,0,0,0]
[5338,485100,"Накнада штете за повреде или штету нанету од стране државних органа",50,0]
["Ознака ОП","Број конта","Опис","Износ одобрених апропријација","Износ извршених расхода и издатака"]
[null,null,null,null,"Укупно           (од 6 до 11)","Расходи и издаци на терет буџета",null,null,null,"Из донација и помоћи","Из осталих извора"]
[null,null,null,null,null,"Републике ","Аутономне покрајине","Општине / \nграда","ООСО"]
["1","2","3","4","5","6","7","8","9","10","11"]
[5339,489000,"РАСХОДИ КОЈИ СЕ ФИНАНСИРАЈУ ИЗ СРЕДСТАВА ЗА РЕАЛИЗАЦИЈУ НАЦИОНАЛНОГ ИНВЕСТИЦИОНОГ ПЛАНА (5340)",{"$f":"D429","v":0},0,{"$f":"F429","v":0},0,0,0,0,0]
[5340,489100,"Расходи који се финансирају из средстава за реализацију националног инвестиционог плана",null,0]
[5341,500000,"ИЗДАЦИ ЗА НЕФИНАНСИЈСКУ ИМОВИНУ (5342 + 5364 + 5373 + 5376 + 5384)",{"$f":"D431+D453+D466+D469+D477","v":10300},9453,{"$f":"F431+F453+F466+F469+F477","v":7691},0,1396,0,0,366]
[5342,510000,"ОСНОВНА СРЕДСТВА (5343 + 5348 + 5358 + 5360 + 5362)",{"$f":"D432+D437+D447+D449+D451","v":10300},9453,{"$f":"F432+F437+F447+F449+F451","v":7691},0,1396,0,0,366]
[5343,511000,"ЗГРАДЕ И ГРАЂЕВИНСКИ ОБЈЕКТИ (од 5344 до 5347)",{"$f":"SUM(D433:D436)","v":0},0,{"$f":"SUM(F433:F436)","v":0},0,0,0,0,0]
[5344,511100,"Куповина зграда и објеката",null,0]
[5345,511200,"Изградња зграда и објеката",null,0]
[5346,511300,"Капитално одржавање зграда и објеката",null,0]
[5347,511400,"Пројектно планирање",null,0]
[5348,512000,"МАШИНЕ И ОПРЕМА (од 5349 до 5357)",{"$f":"SUM(D438:D446)","v":10000},9173,{"$f":"SUM(F438:F446)","v":7691},0,1396,0,0,86]
[5349,512100,"Опрема за саобраћај",null,0]
[5350,512200,"Административна опрема",1600,1244,null,null,1158,null,null,86]
[5351,512300,"Опрема за пољопривреду",null,0]
[5352,512400,"Опрема за заштиту животне средине",null,0]
[5353,512500,"Медицинска и лабораторијска опрема",8400,7929,7691,null,238]
[5354,512600,"Опрема за образовање, науку, културу и спорт",null,0]
[5355,512700,"Опрема за војску",null,0]
[5356,512800,"Опрема за јавну безбедност",null,0]
[5357,512900,"Опрема за производњу, моторна, непокретна и немоторна опрема",null,0]
[5358,513000,"ОСТАЛЕ НЕКРЕТНИНЕ И ОПРЕМА (5359)",{"$f":"D448","v":300},280,{"$f":"F448","v":0},0,0,0,0,280]
[5359,513100,"Остале некретнине и опрема",300,280,null,null,null,null,null,280]
[5360,514000,"КУЛТИВИСАНА ИМОВИНА (5361)",{"$f":"D450","v":0},0,{"$f":"F450","v":0},0,0,0,0,0]
[5361,514100,"Култивисана имовина",null,0]
[5362,515000,"НЕМАТЕРИЈАЛНА ИМОВИНА (5363)",{"$f":"D452","v":0},0,{"$f":"F452","v":0},0,0,0,0,0]
[5363,515100,"Нематеријална имовина",null,0]
[5364,520000,"ЗАЛИХЕ (5365 + 5367 + 5371)",{"$f":"D454+D456+D464","v":0},{"$f":"SUM(F453:K453)","v":0},{"$f":"F454+F456+F464","v":0},0,0,0,0,0]
[5365,521000,"РОБНЕ РЕЗЕРВЕ (5366)",{"$f":"D455","v":0},0,{"$f":"F455","v":0},0,0,0,0,0]
[5366,521100,"Робне резерве",null,0]
[5367,522000,"ЗАЛИХЕ ПРОИЗВОДЊЕ (од 5368 до 5370)",{"$f":"SUM(D457:D463)","v":0},0,{"$f":"SUM(F457:F463)","v":0},0,0,0,0,0]
[5368,522100,"Залихе материјала",null,0]
["Ознака ОП","Број конта","Опис","Износ одобрених апропријација","Износ извршених расхода и издатака"]
[null,null,null,null,"Укупно           (од 6 до 11)","Расходи и издаци на терет буџета",null,null,null,"Из донација и помоћи","Из осталих извора"]
[null,null,null,null,null,"Републике ","Аутономне покрајине","Општине / \nграда","ООСО"]
["1","2","3","4","5","6","7","8","9","10","11"]
[5369,522200,"Залихе недовршене производње",null,0]
[5370,522300,"Залихе готових производа",null,0]
[5371,523000,"ЗАЛИХЕ РОБЕ ЗА ДАЉУ ПРОДАЈУ (5372)",{"$f":"D465","v":0},0,{"$f":"F465","v":0},0,0,0,0,0]
[5372,523100,"Залихе робе за даљу продају",null,0]
[5373,530000,"ДРАГОЦЕНОСТИ (5374)",{"$f":"D467","v":0},0,{"$f":"F467","v":0},0,0,0,0,0]
[5374,531000,"ДРАГОЦЕНОСТИ (5375)",{"$f":"D468","v":0},0,0,0,0,0,0,0]
[5375,531100,"Драгоцености",null,0]
[5376,540000,"ПРИРОДНА ИМОВИНА (5377 + 5379 + 5381)",{"$f":"D470+D472+D474","v":0},0,{"$f":"F470+F472+F474","v":0},0,0,0,0,0]
[5377,541000,"ЗЕМЉИШТЕ (5378)",{"$f":"D471","v":0},0,{"$f":"F471","v":0},0,0,0,0,0]
[5378,541100,"Земљиште",null,0]
[5379,542000,"РУДНА БОГАТСТВА (5380)",{"$f":"D473","v":0},0,{"$f":"F473","v":0},0,0,0,0,0]
[5380,542100,"Копови",null,0]
[5381,543000,"ШУМЕ И ВОДЕ (5382 + 5383)",{"$f":"D475+D476","v":0},0,{"$f":"F475+F476","v":0},0,0,0,0,0]
[5382,543100,"Шуме",null,0]
[5383,543200,"Воде",null,0]
[5384,550000,"НЕФИНАНСИЈСКА ИМОВИНА КОЈА СЕ ФИНАНСИРА ИЗ СРЕДСТАВА ЗА РЕАЛИЗАЦИЈУ НАЦИОНАЛНОГ ИНВЕСТИЦИОНОГ ПЛАНА (5385)",{"$f":"D478","v":0},0,{"$f":"F478","v":0},0,0,0,0,0]
[5385,551000,"НЕФИНАНСИЈСКА ИМОВИНА КОЈА СЕ ФИНАНСИРА ИЗ СРЕДСТАВА ЗА РЕАЛИЗАЦИЈУ НАЦИОНАЛНОГ ИНВЕСТИЦИОНОГ ПЛАНА (5386)",{"$f":"D479","v":0},0,0,0,0,0,0,0]
[5386,551100,"Нефинансијска имовина која се финансира из средстава за реализацију националног инвестиционог плана",null,0]
[5387,600000,"ИЗДАЦИ ЗА ОТПЛАТУ ГЛАВНИЦЕ И НАБАВКУ ФИНАНСИЈСКЕ ИМОВИНЕ (5388 + 5413)",{"$f":"D481+D510","v":0},0,{"$f":"F481+F510","v":0},0,0,0,0,0]
[5388,610000,"ОТПЛАТА ГЛАВНИЦЕ (5389 + 5399 + 5407 + 5409 + 5411)",{"$f":"D482+D496+D504+D506+D508","v":0},0,{"$f":"F482+F496+F504+F506+F508","v":0},0,0,0,0,0]
[5389,611000,"ОТПЛАТА ГЛАВНИЦЕ ДОМАЋИМ КРЕДИТОРИМА (од 5390 до 5398)",{"$f":"SUM(D483:D495)","v":0},0,{"$f":"SUM(F483:F495)","v":0},0,0,0,0,0]
[5390,611100,"Отплата главнице умањена за дисконт на домаће хартије од вредности, изузев акција",null,0]
[5391,611200,"Отплата главнице осталим нивоима власти",null,0]
[5392,611300,"Отплата главнице домаћим јавним финансијским институцијама",null,0]
["Ознака ОП","Број конта","Опис","Износ одобрених апропријација","Износ извршених расхода и издатака"]
[null,null,null,null,"Укупно           (од 6 до 11)","Расходи и издаци на терет буџета",null,null,null,"Из донација и помоћи","Из осталих извора"]
[null,null,null,null,null,"Републике ","Аутономне покрајине","Општине / \nграда","ООСО"]
["1","2","3","4","5","6","7","8","9","10","11"]
[5393,611400,"Отплата главнице домаћим пословним банкама",null,0]
[5394,611500,"Отплата главнице осталим домаћим кредиторима",null,0]
[5395,611600,"Отплата главнице домаћинствима у земљи",null,0]
[5396,611700,"Отплата главнице на домаће финансијске деривате",null,0]
[5397,611800,"Отплата домаћих меница",null,0]
[5398,611900,"Исправка унутрашњег дуга",null,0]
[5399,612000,"ОТПЛАТА ГЛАВНИЦЕ СТРАНИМ КРЕДИТОРИМА (од 5400 до 5406)",{"$f":"SUM(D497:D503)","v":0},0,{"$f":"SUM(F497:F503)","v":0},0,0,0,0,0]
[5400,612100,"Отплата главнице умањена за дисконт на хартије од вредности, изузев акција, емитоване на иностраном финансијском тржишту",null,0]
[5401,612200,"Отплата главнице страним владама",null,0]
[5402,612300,"Отплата главнице мултилатералним институцијама",null,0]
[5403,612400,"Отплате главнице страним пословним банкама",null,0]
[5404,612500,"Отплате главнице осталим страним кредиторима",null,0]
[5405,612600,"Отплата главнице на стране финансијске деривате",null,0]
[5406,612900,"Исправка спољног дуга",null,0]
[5407,613000,"ОТПЛАТА ГЛАВНИЦЕ ПО ГАРАНЦИЈАМА (5408)",{"$f":"D505","v":0},0,{"$f":"F505","v":0},0,0,0,0,0]
[5408,613100,"Отплата главнице по гаранцијама",null,0]
[5409,614000,"ОТПЛАТА ГЛАВНИЦЕ ЗА ФИНАНСИЈСКИ ЛИЗИНГ (5410)",{"$f":"D507","v":0},0,{"$f":"F507","v":0},0,0,0,0,0]
[5410,614100,"Отплата главнице за финансијски лизинг",null,0]
[5411,615000,"ОТПЛАТА ГАРАНЦИЈА ПО КОМЕРЦИЈАЛНИМ ТРАНСАКЦИЈАМА (5412)",{"$f":"D509","v":0},0,0,0,0,0,0,0]
[5412,615100,"Отплата гаранција по комерцијалним трансакцијама",null,0]
[5413,620000,"НАБАВКА ФИНАНСИЈСКЕ ИМОВИНЕ (5414 + 5424 + 5433)",{"$f":"D511+D525+D534","v":0},0,{"$f":"F511+F525+F534","v":0},0,0,0,0,0]
[5414,621000,"НАБАВКА ДОМАЋЕ ФИНАНСИЈСКЕ ИМОВИНЕ (од 5415 до 5423)",{"$f":"SUM(D512:D524)","v":0},0,{"$f":"SUM(F512:F524)","v":0},0,0,0,0,0]
[5415,621100,"Набавка домаћих хартија од вредности, изузев акција",null,0]
["Ознака ОП","Број конта","Опис","Износ одобрених апропријација","Износ извршених расхода и издатака"]
[null,null,null,null,"Укупно           (од 6 до 11)","Расходи и издаци на терет буџета",null,null,null,"Из донација и помоћи","Из осталих извора"]
[null,null,null,null,null,"Републике ","Аутономне покрајине","Општине / \nграда","ООСО"]
["1","2","3","4","5","6","7","8","9","10","11"]
[5416,621200,"Кредити осталим нивоима власти",null,0]
[5417,621300,"Кредити домаћим јавним финансијским институцијама",null,0]
[5418,621400,"Кредити домаћим пословним банкама",null,0]
[5419,621500,"Кредити домаћим нефинансијским јавним институцијама",null,0]
[5420,621600,"Кредити физичким лицима и домаћинствима у земљи",null,0]
[5421,621700,"Кредити невладиним организацијама у земљи",null,0]
[5422,621800,"Кредити домаћим нефинансијским приватним предузећима",null,0]
[5423,621900,"Набавка домаћих акција и осталог капитала",null,0]
[5424,622000,"НАБАВКА СТРАНЕ ФИНАНСИЈСКЕ ИМОВИНЕ (од 5425 до 5432)",{"$f":"SUM(D526:D533)","v":0},0,{"$f":"SUM(F526:F533)","v":0},0,0,0,0,0]
[5425,622100,"Набавка страних хартија од вредности, изузев акција",null,0]
[5426,622200,"Кредити страним владама",null,0]
[5427,622300,"Кредити међународним организацијама",null,0]
[5428,622400,"Кредити страним пословним банкама",null,0]
[5429,622500,"Кредити страним нефинансијским институцијама",null,0]
[5430,622600,"Кредити страним невладиним организацијама",null,{"$f":"SUM(F531:K531)","v":0}]
[5431,622700,"Набавка страних акција и осталог капитала",null,0]
[5432,622800,"Куповина стране валуте",null,0]
[5433,623000,"НАБАВКА ФИНАНСИЈСКЕ ИМОВИНЕ КОЈА СЕ ФИНАНСИРА ИЗ СРЕДСТАВА ЗА РЕАЛИЗАЦИЈУ НАЦИОНАЛНОГ ИНВЕСТИЦИОНОГ ПЛАНА (5434)",{"$f":"D535","v":0},0,{"$f":"F535","v":0},0,0,0,0,0]
[5434,623100,"Набавка финансијске имовине која се финансира из средстава за реализацију националног инвестиционог плана ",null,0]
[5435,null,"УКУПНИ РАСХОДИ И ИЗДАЦИ (5172 + 5387)",{"$f":"D233+D480","v":439000},428258,{"$f":"F233+F480","v":7691},0,18412,395161,0,6994]
[]
["III. УТВРЂИВАЊЕ РЕЗУЛТАТА"]
[]
["Ознака ОП","Број конта","Опис","Планирани приходи и примања / расходи и издаци","Остварени приходи и и примања / расходи и издаци"]
[null,null,null,null,"Укупно           (од 6 до 11)","Из буџета",null,null,null,"Из донација и помоћи","Из осталих извора"]
[null,null,null,null,null,"Републике","Аутономне покрајине","Општине / \nграда","ООСО"]
[1,2,3,4,5,6,7,8,9,10,11]
[5436,null,"ТЕКУЋИ ПРИХОДИ И ПРИМАЊА ОД ПРОДАЈЕ НЕФИНАНСИЈСКЕ ИМОВИНЕ (5001)",{"$f":"D22","v":439000},{"$f":"SUM(F544:K544)","v":426484},{"$f":"F22","v":7691},0,18412,394453,0,5928]
[5437,null,"ТЕКУЋИ РАСХОДИ И ИЗДАЦИ ЗА НЕФИНАНСИЈСКУ ИМОВИНУ (5172)",{"$f":"D233","v":439000},{"$f":"SUM(F545:K545)","v":428258},{"$f":"F233","v":7691},0,18412,395161,0,6994]
[5438,null,"Вишак прихода и примања – буџетски суфицит (5436 – 5437) > 0",{"$f":"IF((D544-D545)>0,D544-D545,0)","v":0},{"$f":"IF((E544-E545)>0,E544-E545,0)","v":0},{"$f":"IF((F544-F545)>0,F544-F545,0)","v":0},0,0,0,0,0]
[5439,null,"Мањак прихода и примања – буџетски дефицит (5437 – 5436) > 0",{"$f":"IF((D545-D544)>0,D545-D544,0)","v":0},{"$f":"IF((E545-E544)>0,E545-E544,0)","v":1774},{"$f":"IF((F545-F544)>0,F545-F544,0)","v":0},0,0,708,0,1066]
[5440,900000,"ПРИМАЊА ОД ЗАДУЖИВАЊА И ПРОДАЈЕ ФИНАНСИЈСКЕ ИМОВИНЕ (5131)",{"$f":"D176","v":0},{"$f":"SUM(F548:K548)","v":0},{"$f":"F176","v":0},0,0,0,0,0]
[5441,600000,"ИЗДАЦИ ЗА ОТПЛАТУ ГЛАВНИЦЕ И НАБАВКУ ФИНАНСИЈСКЕ ИМОВИНЕ (5387)",{"$f":"D480","v":0},{"$f":"SUM(F549:K549)","v":0},{"$f":"F480","v":0},0,0,0,0,0]
[5442,null,"ВИШАК ПРИМАЊА (5440 – 5441) > 0",{"$f":"IF((D548-D549)>0,D548-D549,0)","v":0},{"$f":"IF((E548-E549)>0,E548-E549,0)","v":0},{"$f":"IF((F548-F549)>0,F548-F549,0)","v":0},0,0,0,0,0]
[5443,null,"МАЊАК ПРИМАЊА (5441 – 5440) > 0",{"$f":"IF((D549-D548)>0,D549-D548,0)","v":0},{"$f":"IF((E549-E548)>0,E549-E548,0)","v":0},{"$f":"IF((F549-F548)>0,F549-F548,0)","v":0},0,0,0,0,0]
[5444,null,"ВИШАК НОВЧАНИХ ПРИЛИВА (5171 - 5435) > 0",{"$f":"IF(D224-D536>0,D224-D536,0)","v":0},0,0,0,0,0,0,0]
[5445,null,"МАЊАК НОВЧАНИХ ПРИЛИВА (5435 - 5171) > 0",{"$f":"IF(D536-D224>0,D536-D224,0)","v":0},1774,0,0,0,708,0,1066]
[]
[]
["Датум  _________________________",null,null,null,"Лице одговорно за\n попуњавање обрасца",null,null,null,"Наредбодавац"]
[]
[]
[null,null,null,null,"____________________________________",null,null,null,"_________________________________"]

{"sheet":"ObrazacPR","index":2,"n_rows":385,"n_cols":5,"rows_kept":385,"cut":false,"hidden":false,"merged":[[383,3,383,4],[13,0,13,4],[14,0,14,4],[17,0,18,0],[17,1,18,1],[17,2,18,2],[17,3,17,4]]}
[null,null,null,null,"Образац ПР"]
[]
[]
[]
[]
[]
["Назив корисника буџетских средстава"]
[{"$f":"NazKorisnika","v":"Дом здравља Уб"}]
[{"$f":"\"Седиште:   \" &biop","v":"Седиште:   Уб"},null,null,{"$f":" \"Матични број:   \" & MatBroj","v":"Матични број:   17211692"}]
[{"$f":"\"ПИБ:   \" & bip","v":"ПИБ:   101349256"},null,null,{"$f":"\"Број подрачуна:  \" & BrojPodr","v":"Број подрачуна:  840-407661-24"}]
["Назив надлежног директног корисника буџетских средстава"]
[]
[]
["БИЛАНС ПРИХОДА И РАСХОДА"]
["у периоду 01.01.2025. - 31.12.2025."]
[]
[null,null,null,null,"(У хиљадама динара)"]
["Ознака ОП","Број конта","Опис","Износ"]
[null,null,null,"Претходна година","Текућа година"]
[1,2,3,4,5]
[2001,null,"ТЕКУЋИ ПРИХОДИ И ПРИМАЊА ОД ПРОДАЈЕ НЕФИНАНСИЈСКЕ ИМОВИНЕ (2002 + 2106)",{"$f":"D22+D126","v":371562},{"$f":"E22+E126","v":426484}]
[2002,700000,"ТЕКУЋИ ПРИХОДИ (2003 + 2047 + 2057 + 2069 + 2094 + 2099 + 2103)",{"$f":"D23+D67+D77+D89+D114+D119+D123","v":371556},{"$f":"E23+E67+E77+E89+E114+E119+E123","v":426479}]
[2003,710000,"ПОРЕЗИ (2004 + 2008 + 2010 + 2017 + 2023 + 2030 + 2033 + 2040)",{"$f":"D24+D28+D30+D37+D43+D50+D53+D60","v":0},{"$f":"E24+E28+E30+E37+E43+E50+E53+E60","v":0}]
[2004,711000,"ПОРЕЗ НА ДОХОДАК, ДОБИТ И КАПИТАЛНЕ ДОБИТКЕ (од 2005 до 2007)",{"$f":"SUM(D25:D27)","v":0},{"$f":"SUM(E25:E27)","v":0}]
[2005,711100,"Порези на доходак и капиталне добитке које плаћају физичка лица"]
[2006,711200,"Порези на добит и капиталне добитке које плаћају правна лица"]
[2007,711300,"Порези на доходак, добит и капиталне добитке који се не могу разврстати између физичких и правних лица"]
[2008,712000,"ПОРЕЗ НА ФОНД ЗАРАДА (2009)",{"$f":"D29","v":0},{"$f":"E29","v":0}]
[2009,712100,"Порез на фонд зарада"]
[2010,713000,"ПОРЕЗ НА ИМОВИНУ (од 2011 до 2016)",{"$f":"SUM(D31:D36)","v":0},{"$f":"SUM(E31:E36)","v":0}]
[2011,713100,"Периодични порези на непокретности"]
[2012,713200,"Периодични порези на нето имовину"]
[2013,713300,"Порези на заоставштину, наслеђе и поклон"]
[2014,713400,"Порези на финансијске и капиталне трансакције"]
[2015,713500,"Други једнократни порези на имовину"]
[2016,713600,"Други периодични порези на имовину"]
[2017,714000,"ПОРЕЗ НА ДОБРА И УСЛУГЕ (од 2018 до 2022)",{"$f":"SUM(D38:D42)","v":0},{"$f":"SUM(E38:E42)","v":0}]
[2018,714100,"Општи порези на добра и услуге"]
[2019,714300,"Добит фискалних монопола"]
[2020,714400,"Порези на појединачне услуге"]
[2021,714500,"Порези, таксе и накнаде на употребу добара, на дозволу да се добра употребљавају или делатности обављају"]
[2022,714600,"Други порези на добра и услуге"]
[2023,715000,"ПОРЕЗ НА МЕЂУНАРОДНУ ТРГОВИНУ И ТРАНСАКЦИЈЕ (од 2024 до 2029)",{"$f":"SUM(D44:D49)","v":0},{"$f":"SUM(E44:E49)","v":0}]
[2024,715100,"Царине и друге увозне дажбине"]
[2025,715200,"Порези на извоз"]
[2026,715300,"Добит извозних или увозних монопола"]
[2027,715400,"Добит по основу разлике између куповног и продајног девизног курса"]
[2028,715500,"Порези на продају или куповину девиза"]
[2029,715600,"Други порези на међународну трговину и трансакције"]
[2030,716000,"ДРУГИ ПОРЕЗИ (2031 + 2032)",{"$f":"D51+D52","v":0},{"$f":"E51+E52","v":0}]
[2031,716100,"Други порези које искључиво плаћају предузећа, односно предузетници"]
[2032,716200,"Други порези које плаћају остала лица или који се не могу идентификовати"]
[2033,717000,"АКЦИЗЕ (од 2034 до 2039)",{"$f":"SUM(D54:D59)","v":0},{"$f":"SUM(E54:E59)","v":0}]
[2034,717100,"Акцизе на деривате нафте"]
[2035,717200,"Акцизе на дуванске прерађевине"]
[2036,717300,"Акцизе на алкохолна пића"]
[2037,717400,"Акцизе на освежавајућа безалкохолна пића"]
[2038,717500,"Акцизе на кафу"]
[2039,717600,"Друге акцизе"]
[2040,719000,"ЈЕДНОКРАТНИ ПОРЕЗ НА ЕКСТРА ПРОФИТ И ЕКСТРА ИМОВИНУ СТЕЧЕНУ КОРИШЋЕЊЕМ ПОСЕБНИХ ПОГОДНОСТИ (од 2041 до 2046)",{"$f":"SUM(D61:D66)","v":0},{"$f":"SUM(E61:E66)","v":0}]
[2041,719100,"Порез на доходак, добит и капиталну добит на терет физичких лица"]
[2042,719200,"Порез на доходак, добит и капиталну добит на терет предузећа и осталих правних лица"]
[2043,719300,"Порез на доходак, добит и капиталну добит нераспоредив између физичких и правних лица"]
[2044,719400,"Остали једнократни порези на имовину"]
[2045,719500,"Остали порези које плаћају искључиво предузећа и предузетници"]
[2046,719600,"Остали порези које плаћају друга или неидентификована лица"]
[2047,720000,"СОЦИЈАЛНИ ДОПРИНОСИ (2048 + 2053)",{"$f":"D68+D73","v":0},{"$f":"E68+E73","v":0}]
[2048,721000,"ДОПРИНОСИ ЗА СОЦИЈАЛНО ОСИГУРАЊЕ (од 2049 до 2052)",{"$f":"SUM(D69:D72)","v":0},{"$f":"SUM(E69:E72)","v":0}]
[2049,721100,"Доприноси за социјално осигурање на терет запослених"]
[2050,721200,"Доприноси за социјално осигурање на терет послодаваца"]
[2051,721300,"Доприноси за социјално осигурање лица која обављају самосталну делатност и незапослених лица"]
[2052,721400,"Доприноси за социјално осигурање који се не могу разврстати"]
[2053,722000,"ОСТАЛИ СОЦИЈАЛНИ ДОПРИНОСИ (од 2054 до 2056)",{"$f":"SUM(D74:D76)","v":0},{"$f":"SUM(E74:E76)","v":0}]
[2054,722100,"Социјални доприноси на терет осигураника"]
[2055,722200,"Социјални доприноси на терет послодавца"]
[2056,722300,"Импутирани социјални доприноси"]
[2057,730000,"ДОНАЦИЈЕ, ПОМОЋИ И ТРАНСФЕРИ (2058 + 2061 + 2066)",{"$f":"D78+D81+D86","v":18247},{"$f":"E78+E81+E86","v":18412}]
[2058,731000,"ДОНАЦИЈЕ ОД ИНОСТРАНИХ ДРЖАВА (2059 + 2060)",{"$f":"D79+D80","v":0},{"$f":"E79+E80","v":0}]
[2059,731100,"Текуће донације од иностраних држава"]
[2060,731200,"Капиталне донације од иностраних држава"]
[2061,732000,"ДОНАЦИЈЕ И ПОМОЋИ ОД МЕЂУНАРОДНИХ ОРГАНИЗАЦИЈА (од 2062 до 2065)",{"$f":"D82+D83+D84+D85","v":0},{"$f":"E82+E83+E84+E85","v":0}]
[2062,732100,"Текуће донације од међународних организација"]
[2063,732200,"Капиталне донације од међународних организација"]
[2064,732300,"Текуће помоћи од ЕУ"]
[2065,732400,"Капиталне помоћи од ЕУ"]
[2066,733000,"ТРАНСФЕРИ ОД ДРУГИХ НИВОА ВЛАСТИ (2067 + 2068)",{"$f":"D87+D88","v":18247},{"$f":"E87+E88","v":18412}]
[2067,733100,"Текући трансфери од других нивоа власти",18247,18412]
[2068,733200,"Капитални трансфери од других нивоа власти"]
[2069,740000,"ДРУГИ ПРИХОДИ (2070 + 2077 + 2082 + 2089 + 2092)",{"$f":"D90+D97+D102+D109+D112","v":6367},{"$f":"E90+E97+E102+E109+E112","v":6219}]
[2070,741000,"ПРИХОДИ ОД ИМОВИНЕ (од 2071 до 2076)",{"$f":"SUM(D91:D96)","v":120},{"$f":"SUM(E91:E96)","v":296}]
[2071,741100,"Камате"]
[2072,741200,"Дивиденде"]
[2073,741300,"Повлачење прихода од квази корпорација"]
[2074,741400,"Приход од имовине који припада имаоцима полиса осигурања",120,296]
[2075,741500,"Закуп непроизведене имовине"]
[2076,741600,"Финансијске промене на финансијским лизинзима"]
[2077,742000,"ПРИХОДИ ОД ПРОДАЈЕ ДОБАРА И УСЛУГА (од 2078 до 2081)",{"$f":"SUM(D98:D101)","v":6133},{"$f":"SUM(E98:E101)","v":5907}]
[2078,742100,"Приходи од продаје добара и услуга или закупа од стране тржишних организација",759,687]
[2079,742200,"Таксе и накнаде"]
[2080,742300,"Споредне продаје добара и услуга које врше државне нетржишне јединице",5374,5220]
[2081,742400,"Импутиране продаје добара и услуга"]
[2082,743000,"НОВЧАНЕ КАЗНЕ И ОДУЗЕТА ИМОВИНСКА КОРИСТ (од 2083 до 2088)",{"$f":"SUM(D103:D108)","v":0},{"$f":"SUM(E103:E108)","v":0}]
[2083,743100,"Приходи од новчаних казни за кривична дела "]
[2084,743200,"Приходи од новчаних казни за привредне преступе"]
[2085,743300,"Приходи од новчаних казни за прекршаје"]
[2086,743400,"Приходи од пенала"]
[2087,743500,"Приходи од одузете имовинске користи"]
[2088,743900,"Остале новчане казне, пенали и приходи од одузете имовинске користи"]
[2089,744000,"ДОБРОВОЉНИ ТРАНСФЕРИ ОД ФИЗИЧКИХ И ПРАВНИХ ЛИЦА (2090 + 2091)",{"$f":"D110+D111","v":0},{"$f":"E110+E111","v":0}]
[2090,744100,"Текући добровољни трансфери од физичких и правних лица"]
[2091,744200,"Капитални добровољни трансфери од физичких и правних лица"]
[2092,745000,"МЕШОВИТИ И НЕОДРЕЂЕНИ ПРИХОДИ (2093)",{"$f":"D113","v":114},{"$f":"E113","v":16}]
[2093,745100,"Мешовити и неодређени приходи",114,16]
[2094,770000,"МЕМОРАНДУМСКЕ СТАВКЕ ЗА РЕФУНДАЦИЈУ РАСХОДА (2095 + 2097)",{"$f":"D115+D117","v":0},{"$f":"E115+E117","v":0}]
[2095,771000,"МЕМОРАНДУМСКЕ СТАВКЕ ЗА РЕФУНДАЦИЈУ РАСХОДА (2096)",{"$f":"D116","v":0},{"$f":"E116","v":0}]
[2096,771100,"Меморандумске ставке за рефундацију расхода"]
[2097,772000,"МЕМОРАНДУМСКЕ СТАВКЕ ЗА РЕФУНДАЦИЈУ РАСХОДА ИЗ ПРЕТХОДНЕ ГОДИНЕ (2098)",{"$f":"D118","v":0},{"$f":"E118","v":0}]
[2098,772100,"Меморандумске ставке за рефундацију расхода из претходне године"]
[2099,780000,"ТРАНСФЕРИ ИЗМЕЂУ БУЏЕТСКИХ КОРИСНИКА НА ИСТОМ НИВОУ (2100)",{"$f":"D120","v":346942},{"$f":"E120","v":401848}]
[2100,781000,"ТРАНСФЕРИ ИЗМЕЂУ БУЏЕТСКИХ КОРИСНИКА НА ИСТОМ НИВОУ (2101 + 2102)",{"$f":"D121+D122","v":346942},{"$f":"E121+E122","v":401848}]
[2101,781100,"Трансфери између буџетских корисника на истом нивоу",346942,401848]
[2102,781300,"Трансфери између организација за обавезно социјално осигурање"]
[2103,790000,"ПРИХОДИ ИЗ БУЏЕТА (2104)",{"$f":"D124","v":0},{"$f":"E124","v":0}]
[2104,791000,"ПРИХОДИ ИЗ БУЏЕТА (2105)",{"$f":"D125","v":0},{"$f":"E125","v":0}]
[2105,791100,"Приходи из буџета"]
[2106,800000,"ПРИМАЊА ОД ПРОДАЈЕ НЕФИНАНСИЈСКЕ ИМОВИНЕ (2107 + 2114 + 2121 + 2124)",{"$f":"D127+D134+D141+D144","v":6},{"$f":"E127+E134+E141+E144","v":5}]
[2107,810000,"ПРИМАЊА ОД ПРОДАЈЕ ОСНОВНИХ СРЕДСТАВА (2108 + 2110 + 2112)",{"$f":"D128+D130+D132","v":6},{"$f":"E128+E130+E132","v":5}]
[2108,811000,"ПРИМАЊА ОД ПРОДАЈЕ НЕПОКРЕТНОСТИ (2109)",{"$f":"D129","v":6},{"$f":"E129","v":5}]
[2109,811100,"Примања од продаје непокретности",6,5]
[2110,812000,"ПРИМАЊА ОД ПРОДАЈЕ ПОКРЕТНЕ ИМОВИНЕ (2111)",{"$f":"D131","v":0},{"$f":"E131","v":0}]
[2111,812100,"Примања од продаје покретне имовине"]
[2112,813000,"ПРИМАЊА ОД ПРОДАЈЕ ОСТАЛИХ ОСНОВНИХ СРЕДСТАВА (2113)",{"$f":"D133","v":0},{"$f":"E133","v":0}]
[2113,813100,"Примања од продаје осталих основних средстава"]
[2114,820000,"ПРИМАЊА ОД ПРОДАЈЕ ЗАЛИХА (2115 + 2117 + 2119)",{"$f":"D135+D137+D139","v":0},{"$f":"E135+E137+E139","v":0}]
[2115,821000,"ПРИМАЊА ОД ПРОДАЈЕ РОБНИХ РЕЗЕРВИ (2116)",{"$f":"D136","v":0},{"$f":"E136","v":0}]
[2116,821100,"Примања од продаје робних резерви"]
[2117,822000,"ПРИМАЊА ОД ПРОДАЈЕ ЗАЛИХА ПРОИЗВОДЊЕ (2118)",{"$f":"D138","v":0},{"$f":"E138","v":0}]
[2118,822100,"Примања од продаје залиха производње"]
[2119,823000,"ПРИМАЊА ОД ПРОДАЈЕ РОБЕ ЗА ДАЉУ ПРОДАЈУ (2120)",{"$f":"D140","v":0},{"$f":"E140","v":0}]
[2120,823100,"Примања од продаје робе за даљу продају"]
[2121,830000,"ПРИМАЊА ОД ПРОДАЈЕ ДРАГОЦЕНОСТИ (2122)",{"$f":"D142","v":0},{"$f":"E142","v":0}]
[2122,831000,"ПРИМАЊА ОД ПРОДАЈЕ ДРАГОЦЕНОСТИ (2123)",{"$f":"D143","v":0},{"$f":"E143","v":0}]
[2123,831100,"Примања од продаје драгоцености"]
[2124,840000,"ПРИМАЊА ОД ПРОДАЈЕ ПРИРОДНЕ ИМОВИНЕ (2125 + 2127 + 2129)",{"$f":"D145+D147+D149","v":0},{"$f":"E145+E147+E149","v":0}]
[2125,841000,"ПРИМАЊА ОД ПРОДАЈЕ ЗЕМЉИШТА (2126)",{"$f":"D146","v":0},{"$f":"E146","v":0}]
[2126,841100,"Примања од продаје земљишта"]
[2127,842000,"ПРИМАЊА ОД ПРОДАЈЕ ПОДЗЕМНИХ БЛАГА (2128)",{"$f":"D148","v":0},{"$f":"E148","v":0}]
[2128,842100,"Примања од продаје подземних блага"]
[2129,843000,"ПРИМАЊА ОД ПРОДАЈЕ ШУМА И ВОДА (2130)",{"$f":"D150","v":0},{"$f":"E150","v":0}]
[2130,843100,"Примања од продаје шума и вода"]
[2131,null,"ТЕКУЋИ РАСХОДИ И ИЗДАЦИ ЗА НЕФИНАНСИЈСКУ ИМОВИНУ (2132 + 2300)",{"$f":"D152+D320","v":371345},{"$f":"E152+E320","v":428258}]
[2132,400000,"ТЕКУЋИ РАСХОДИ  (2133 + 2155 + 2200 + 2215 + 2239 + 2252 + 2268 + 2283)",{"$f":"D153+D175+D220+D235+D259+D272+D288+D303","v":369119},{"$f":"E153+E175+E220+E235+E259+E272+E288+E303","v":418805}]
[2133,410000,"РАСХОДИ ЗА ЗАПОСЛЕНЕ (2134 + 2136 + 2140 + 2142 + 2147 + 2149 + 2151 + 2153)",{"$f":"D154+D156+D160+D162+D167+D169+D171+D173","v":295631},{"$f":"E154+E156+E160+E162+E167+E169+E171+E173","v":336746}]
[2134,411000,"ПЛАТЕ, ДОДАЦИ И НАКНАДЕ ЗАПОСЛЕНИХ (ЗАРАДЕ) (2135)",{"$f":"D155","v":245071},{"$f":"E155","v":279111}]
[2135,411100,"Плате, додаци и накнаде запослених",245071,279111]
[2136,412000,"СОЦИЈАЛНИ ДОПРИНОСИ НА ТЕРЕТ ПОСЛОДАВЦА (од 2137 до 2139)",{"$f":"SUM(D157:D159)","v":37173},{"$f":"SUM(E157:E159)","v":42318}]
[2137,412100,"Допринос за пензијско и инвалидско осигурање ",24537,27932]
[2138,412200,"Допринос за здравствено осигурање",12636,14386]
[2139,412300,"Допринос за незапосленост"]
[2140,413000,"НАКНАДЕ У НАТУРИ (2141)",{"$f":"D161","v":392},{"$f":"E161","v":201}]
[2141,413100,"Накнаде у натури",392,201]
[2142,414000,"СОЦИЈАЛНА ДАВАЊА ЗАПОСЛЕНИМА (од 2143 до 2146)",{"$f":"SUM(D163:D166)","v":3822},{"$f":"SUM(E163:E166)","v":3358}]
[2143,414100,"Исплата накнада за време одсуствовања с посла на терет фондова",null,50]
[2144,414200,"Расходи за образовање деце запослених"]
[2145,414300,"Отпремнине и помоћи",3172,2478]
[2146,414400,"Помоћ у медицинском лечењу запосленог или чланова уже породице и друге помоћи запосленом",650,830]
[2147,415000,"НАКНАДЕ ТРОШКОВА ЗА ЗАПОСЛЕНЕ (2148)",{"$f":"D168","v":6552},{"$f":"E168","v":8071}]
[2148,415100,"Накнаде трошкова за запослене",6552,8071]
[2149,416000,"НАГРАДЕ ЗАПОСЛЕНИМА И ОСТАЛИ ПОСЕБНИ РАСХОДИ (2150)",{"$f":"D170","v":2621},{"$f":"E170","v":3687}]
[2150,416100,"Награде запосленима и остали посебни расходи",2621,3687]
[2151,417000,"ПОСЛАНИЧКИ ДОДАТАК (2152)",{"$f":"D172","v":0},{"$f":"E172","v":0}]
[2152,417100,"Посланички додатак"]
[2153,418000,"СУДИЈСКИ ДОДАТАК (2154)",{"$f":"D174","v":0},{"$f":"E174","v":0}]
[2154,418100,"Судијски додатак"]
[2155,420000,"КОРИШЋЕЊЕ УСЛУГА И РОБА (2156 + 2164 + 2170 + 2179 + 2187 + 2190)",{"$f":"D176+D184+D190+D199+D207+D210","v":71371},{"$f":"E176+E184+E190+E199+E207+E210","v":80106}]
[2156,421000,"СТАЛНИ ТРОШКОВИ (од 2157 до 2163)",{"$f":"SUM(D177:D183)","v":12974},{"$f":"SUM(E177:E183)","v":13538}]
[2157,421100,"Трошкови платног промета и банкарских услуга",435,454]
[2158,421200,"Енергетске услуге",8524,8190]
[2159,421300,"Комуналне услуге",1103,1658]
[2160,421400,"Услуге комуникација",1544,1884]
[2161,421500,"Трошкови осигурања",1087,1110]
[2162,421600,"Закуп имовине и опреме"]
[2163,421900,"Остали трошкови",281,242]
[2164,422000,"ТРОШКОВИ ПУТОВАЊА (од 2165 до 2169)",{"$f":"SUM(D185:D189)","v":671},{"$f":"SUM(E185:E189)","v":418}]
[2165,422100,"Трошкови службених путовања у земљи",612,418]
[2166,422200,"Трошкови службених путовања у иностранство"]
[2167,422300,"Трошкови путовања у оквиру редовног рада"]
[2168,422400,"Трошкови путовања ученика"]
[2169,422900,"Остали трошкови транспорта",59]
[2170,423000,"УСЛУГЕ ПО УГОВОРУ (од 2171 до 2178)",{"$f":"SUM(D191:D198)","v":8192},{"$f":"SUM(E191:E198)","v":9344}]
[2171,423100,"Административне услуге"]
[2172,423200,"Компјутерске услуге",1834,2470]
[2173,423300,"Услуге образовања и усавршавања запослених",1514,2344]
[2174,423400,"Услуге информисања"]
[2175,423500,"Стручне услуге",3527,3514]
[2176,423600,"Услуге за домаћинство и угоститељство"]
[2177,423700,"Репрезентација",275,344]
[2178,423900,"Остале опште услуге",1042,672]
[2179,424000,"СПЕЦИЈАЛИЗОВАНЕ УСЛУГЕ (од 2180 до 2186)",{"$f":"SUM(D200:D206)","v":6990},{"$f":"SUM(E200:E206)","v":8692}]
[2180,424100,"Пољопривредне услуге"]
[2181,424200,"Услуге образовања, културе и спорта"]
[2182,424300,"Медицинске услуге",6990,8464]
[2183,424400,"Услуге одржавања аутопутева"]
[2184,424500,"Услуге одржавања националних паркова и природних површина"]
[2185,424600,"Услуге очувања животне средине, науке и геодетске услуге"]
[2186,424900,"Остале специјализоване услуге",null,228]
[2187,425000,"ТЕКУЋЕ ПОПРАВКЕ И ОДРЖАВАЊЕ  (2188 + 2189)",{"$f":"D208+D209","v":3412},{"$f":"E208+E209","v":3917}]
[2188,425100,"Текуће поправке и одржавање зграда и објеката",368,965]
[2189,425200,"Текуће поправке и одржавање опреме",3044,2952]
[2190,426000,"МАТЕРИЈАЛ (од 2191 до 2199)",{"$f":"SUM(D211:D219)","v":39132},{"$f":"SUM(E211:E219)","v":44197}]
[2191,426100,"Административни материјал",2203,2518]
[2192,426200,"Материјали за пољопривреду "]
[2193,426300,"Материјали за образовање и усавршавање запослених",322,345]
[2194,426400,"Материјали за саобраћај",7428,9136]
[2195,426500,"Материјали за очување животне средине и науку"]
[2196,426600,"Материјали за образовање, културу и спорт"]
[2197,426700,"Медицински и лабораторијски материјали",24191,26965]
[2198,426800,"Материјали за одржавање хигијене и угоститељство",2314,2792]
[2199,426900,"Материјали за посебне намене",2674,2441]
[2200,430000,"АМОРТИЗАЦИЈА И УПОТРЕБА СРЕДСТАВА ЗА РАД  (2201 + 2205 + 2207 + 2209 + 2213)",{"$f":"D221+D225+D227+D229+D233","v":382},{"$f":"E221+E225+E227+E229+E233","v":0}]
[2201,431000,"АМОРТИЗАЦИЈА НЕКРЕТНИНА И ОПРЕМЕ (од 2202 до 2204)",{"$f":"SUM(D222:D224)","v":381},{"$f":"SUM(E222:E224)","v":0}]
[2202,431100,"Амортизација зграда и грађевинских објеката",68]
[2203,431200,"Амортизација опреме",313]
[2204,431300,"Амортизација осталих некретнина и опреме"]
[2205,432000,"АМОРТИЗАЦИЈА КУЛТИВИСАНЕ ИМОВИНЕ (2206)",{"$f":"D226","v":0},{"$f":"E226","v":0}]
[2206,432100,"Амортизација култивисане имовине"]
[2207,433000,"УПОТРЕБА ДРАГОЦЕНОСТИ (2208)",{"$f":"D228","v":0},{"$f":"E228","v":0}]
[2208,433100,"Употреба драгоцености"]
[2209,434000,"УПОТРЕБА ПРИРОДНЕ ИМОВИНЕ (од 2210 до 2212)",{"$f":"SUM(D230:D232)","v":0},{"$f":"SUM(E230:E232)","v":0}]
[2210,434100,"Употребa земљишта"]
[2211,434200,"Употреба подземног блага"]
[2212,434300,"Употреба шума и вода"]
[2213,435000,"АМОРТИЗАЦИЈА НЕМАТЕРИЈАЛНЕ ИМОВИНЕ (2214)",{"$f":"D234","v":1},{"$f":"E234","v":0}]
[2214,435100,"Амортизација нематеријалне имовине",1]
[2215,440000,"ОТПЛАТА КАМАТА И ПРАТЕЋИ ТРОШКОВИ ЗАДУЖИВАЊА (2216 + 2226 + 2233 + 2235)",{"$f":"D236+D246+D253+D255","v":0},{"$f":"E236+E246+E253+E255","v":0}]
[2216,441000,"ОТПЛАТА ДОМАЋИХ КАМАТА (од 2217 до 2225)",{"$f":"SUM(D237:D245)","v":0},{"$f":"SUM(E237:E245)","v":0}]
[2217,441100,"Отплата камата на домаће хартије од вредности"]
[2218,441200,"Отплата камата осталим нивоима власти"]
[2219,441300,"Отплата камата домаћим јавним финансијским институцијама"]
[2220,441400,"Отплата камата домаћим пословним банкама"]
[2221,441500,"Отплата камата осталим домаћим кредиторима"]
[2222,441600,"Отплата камата домаћинствима у земљи"]
[2223,441700,"Отплата камата на домаће финансијске деривате"]
[2224,441800,"Отплата камата на домаће менице"]
[2225,441900,"Финансијске промене на финансијским лизинзима"]
[2226,442000,"ОТПЛАТА СТРАНИХ КАМАТА (од 2227 до 2232)",{"$f":"SUM(D247:D252)","v":0},{"$f":"SUM(E247:E252)","v":0}]
[2227,442100,"Отплата камата на хартије од вредности емитоване на иностраном финансијском тржишту"]
[2228,442200,"Отплата камата страним владама"]
[2229,442300,"Отплата камата мултилатералним институцијама"]
[2230,442400,"Отплата камата страним пословним банкама"]
[2231,442500,"Отплата камата осталим страним кредиторима"]
[2232,442600,"Отплата камата на стране финансијске деривате"]
[2233,443000,"ОТПЛАТА КАМАТА ПО ГАРАНЦИЈАМА (2234)",{"$f":"D254","v":0},{"$f":"E254","v":0}]
[2234,443100,"Отплата камата по гаранцијама"]
[2235,444000,"ПРАТЕЋИ ТРОШКОВИ ЗАДУЖИВАЊА (од 2236 до 2238)",{"$f":"SUM(D256:D258)","v":0},{"$f":"SUM(E256:E258)","v":0}]
[2236,444100,"Негативне курсне разлике"]
[2237,444200,"Казне за кашњење"]
[2238,444300,"Остали пратећи трошкови задуживања"]
[2239,450000,"СУБВЕНЦИЈЕ (2240 + 2243 + 2246 + 2249)",{"$f":"D260+D263+D266+D269","v":0},{"$f":"E260+E263+E266+E269","v":0}]
[2240,451000,"СУБВЕНЦИЈЕ ЈАВНИМ НЕФИНАНСИЈСКИМ ПРЕДУЗЕЋИМА И ОРГАНИЗАЦИЈАМА (2241 + 2242)",{"$f":"D261+D262","v":0},{"$f":"E261+E262","v":0}]
[2241,451100,"Текуће субвенције јавним нефинансијским предузећима и организацијама"]
[2242,451200,"Капиталне субвенције јавним нефинансијским предузећима и организацијама"]
[2243,452000,"СУБВЕНЦИЈЕ ПРИВАТНИМ ФИНАНСИЈСКИМ  ИНСТИТУЦИЈАМА (2244 + 2245)",{"$f":"D264+D265","v":0},{"$f":"E264+E265","v":0}]
[2244,452100,"Текуће субвенције приватним финансијским институцијама"]
[2245,452200,"Капиталне субвенције приватним финансијским институцијама"]
[2246,453000,"СУБВЕНЦИЈЕ ЈАВНИМ ФИНАНСИЈСКИМ  ИНСТИТУЦИЈАМА (2247 + 2248)",{"$f":"D267+D268","v":0},{"$f":"E267+E268","v":0}]
[2247,453100,"Текуће субвенције јавним финансијским институцијама"]
[2248,453200,"Капиталне субвенције јавним финансијским институцијама"]
[2249,454000,"СУБВЕНЦИЈЕ ПРИВАТНИМ ПРЕДУЗЕЋИМА (2250 + 2251)",{"$f":"D270+D271","v":0},{"$f":"E270+E271","v":0}]
[2250,454100,"Текуће субвенције приватним предузећима"]
[2251,454200,"Капиталне субвенције приватним предузећима"]
[2252,460000,"ДОНАЦИЈЕ, ДОТАЦИЈЕ И ТРАНСФЕРИ (2253 + 2256 + 2259 + 2262 + 2265)",{"$f":"D273+D276+D279+D282+D285","v":1575},{"$f":"E273+E276+E279+E282+E285","v":1759}]
[2253,461000,"ДОНАЦИЈЕ СТРАНИМ ВЛАДАМА (2254 + 2255)",{"$f":"D274+D275","v":0},{"$f":"E274+E275","v":0}]
[2254,461100,"Текуће донације страним владама"]
[2255,461200,"Капиталне донације страним владама"]
[2256,462000,"ДОТАЦИЈЕ МЕЂУНАРОДНИМ ОРГАНИЗАЦИЈАМА (2257 + 2258)",{"$f":"D277+D278","v":0},{"$f":"E277+E278","v":0}]
[2257,462100,"Текуће дотације међународним организацијама"]
[2258,462200,"Капиталне дотације међународним организацијама"]
[2259,463000,"ТРАНСФЕРИ ОСТАЛИМ НИВОИМА ВЛАСТИ (2260 + 2261)",{"$f":"D280+D281","v":0},{"$f":"E280+E281","v":0}]
[2260,463100,"Текући трансфери осталим нивоима власти"]
[2261,463200,"Капитални трансфери осталим нивоима власти"]
[2262,464000,"ДОТАЦИЈЕ ОРГАНИЗАЦИЈАМА ЗА ОБАВЕЗНО СОЦИЈАЛНО ОСИГУРАЊЕ (2263 + 2264)",{"$f":"D283+D284","v":0},{"$f":"E283+E284","v":0}]
[2263,464100,"Текуће дотације организацијама за обавезно социјално осигурање"]
[2264,464200,"Капиталне дотације организацијама за обавезно социјално осигурање"]
[2265,465000,"ОСТАЛЕ ДОТАЦИЈЕ И ТРАНСФЕРИ (2266 + 2267)",{"$f":"D286+D287","v":1575},{"$f":"E286+E287","v":1759}]
[2266,465100,"Остале текуће дотације и трансфери",1575,1759]
[2267,465200,"Остале капиталне дотације и трансфери"]
[2268,470000,"СОЦИЈАЛНО ОСИГУРАЊЕ И СОЦИЈАЛНА ЗАШТИТА (2269 + 2273)",{"$f":"D289+D293","v":0},{"$f":"E289+E293","v":0}]
[2269,471000,"ПРАВА ИЗ СОЦИЈАЛНОГ ОСИГУРАЊА (ОРГАНИЗАЦИЈЕ ЗА ОБАВЕЗНО СОЦИЈАЛНО ОСИГУРАЊЕ) (од 2270 до 2272)",{"$f":"SUM(D290:D292)","v":0},{"$f":"SUM(E290:E292)","v":0}]
[2270,471100,"Права из социјалног осигурања која се исплаћују непосредно домаћинствима"]
[2271,471200,"Права из социјалног осигурања која се исплаћују непосредно пружаоцима услуга"]
[2272,471900,"Трансфери другим организацијама за обавезно социјално осигурање за доприносе за осигурање"]
[2273,472000,"НАКНАДЕ ЗА СОЦИЈАЛНУ ЗАШТИТУ ИЗ БУЏЕТА (од 2274 до 2282)",{"$f":"SUM(D294:D302)","v":0},{"$f":"SUM(E294:E302)","v":0}]
[2274,472100,"Накнаде из буџета у случају болести и инвалидности"]
[2275,472200,"Накнаде из буџета за породиљско одсуство "]
[2276,472300,"Накнаде из буџета за децу и породицу "]
[2277,472400,"Накнаде из буџета за случај незапослености "]
[2278,472500,"Старосне и породичне пензије из буџета"]
[2279,472600,"Накнаде из буџета у случају смрти"]
[2280,472700,"Накнаде из буџета за образовање, културу, науку и спорт "]
[2281,472800,"Накнаде из буџета за становање и живот "]
[2282,472900,"Остале накнаде из буџета"]
[2283,480000,"ОСТАЛИ РАСХОДИ (2284 + 2287 + 2291 + 2293 + 2296 + 2298)",{"$f":"D304+D307+D311+D313+D316+D318","v":160},{"$f":"E304+E307+E311+E313+E316+E318","v":194}]
[2284,481000,"ДОТАЦИЈЕ НЕВЛАДИНИМ ОРГАНИЗАЦИЈАМА (2285 + 2286)",{"$f":"D305+D306","v":0},{"$f":"E305+E306","v":0}]
[2285,481100,"Дотације непрофитним организацијама које пружају помоћ домаћинствима"]
[2286,481900,"Дотације осталим непрофитним институцијама"]
[2287,482000,"ПОРЕЗИ, ОБАВЕЗНЕ ТАКСЕ, КАЗНЕ, ПЕНАЛИ И КАМАТЕ (од 2288 до 2290)",{"$f":"SUM(D308:D310)","v":160},{"$f":"SUM(E308:E310)","v":194}]
[2288,482100,"Остали порези",148,192]
[2289,482200,"Обавезне таксе",12,2]
[2290,482300,"Новчане казне, пенали и камате"]
[2291,483000,"НОВЧАНЕ КАЗНЕ И ПЕНАЛИ ПО РЕШЕЊУ СУДОВА (2292)",{"$f":"D312","v":0},{"$f":"E312","v":0}]
[2292,483100,"Новчане казне и пенали по решењу судова"]
[2293,484000,"НАКНАДА ШТЕТЕ ЗА ПОВРЕДЕ ИЛИ ШТЕТУ НАСТАЛУ УСЛЕД ЕЛЕМЕНТАРНИХ НЕПОГОДА ИЛИ ДРУГИХ ПРИРОДНИХ УЗРОКА (2294 + 2295)",{"$f":"D314+D315","v":0},{"$f":"E314+E315","v":0}]
[2294,484100,"Накнада штете за повреде или штету насталу услед елементарних непогода"]
[2295,484200,"Накнада штете од дивљачи"]
[2296,485000,"НАКНАДА ШТЕТЕ ЗА ПОВРЕДЕ ИЛИ ШТЕТУ НАНЕТУ ОД СТРАНЕ ДРЖАВНИХ ОРГАНА (2297)",{"$f":"D317","v":0},{"$f":"E317","v":0}]
[2297,485100,"Накнада штете за повреде или штету нанету од стране државних органа"]
[2298,489000,"РАСХОДИ КОЈИ СЕ ФИНАНСИРАЈУ ИЗ СРЕДСТАВА ЗА РЕАЛИЗАЦИЈУ НАЦИОНАЛНОГ ИНВЕСТИЦИОНОГ ПЛАНА (2299)",{"$f":"D319","v":0},{"$f":"E319","v":0}]
[2299,489100,"Расходи који се финансирају из средстава за реализацију националног инвестиционог плана"]
[2300,500000,"ИЗДАЦИ ЗА НЕФИНАНСИЈСКУ ИМОВИНУ (2301 + 2323 + 2332 + 2335 + 2343)",{"$f":"D321+D343+D352+D355+D363","v":2226},{"$f":"E321+E343+E352+E355+E363","v":9453}]
[2301,510000,"ОСНОВНА СРЕДСТВА (2302 + 2307 + 2317 + 2319 + 2321)",{"$f":"D322+D327+D337+D339+D341","v":2226},{"$f":"E322+E327+E337+E339+E341","v":9453}]
[2302,511000,"ЗГРАДЕ И ГРАЂЕВИНСКИ ОБЈЕКТИ (од 2303 до 2306)",{"$f":"SUM(D323:D326)","v":0},{"$f":"SUM(E323:E326)","v":0}]
[2303,511100,"Куповина зграда и објеката"]
[2304,511200,"Изградња зграда и објеката"]
[2305,511300,"Капитално одржавање зграда и објеката"]
[2306,511400,"Пројектно планирање"]
[2307,512000,"МАШИНЕ И ОПРЕМА (од 2308 до 2316)",{"$f":"SUM(D328:D336)","v":2226},{"$f":"SUM(E328:E336)","v":9173}]
[2308,512100,"Опрема за саобраћај"]
[2309,512200,"Административна опрема",1157,1244]
[2310,512300,"Опрема за пољопривреду"]
[2311,512400,"Опрема за заштиту животне средине"]
[2312,512500,"Медицинска и лабораторијска опрема",1069,7929]
[2313,512600,"Опрема за образовање, науку, културу и спорт"]
[2314,512700,"Опрема за војску"]
[2315,512800,"Опрема за јавну безбедност"]
[2316,512900,"Опрема за производњу, моторна, непокретна и немоторна опрема"]
[2317,513000,"ОСТАЛЕ НЕКРЕТНИНЕ И ОПРЕМА (2318)",{"$f":"D338","v":0},{"$f":"E338","v":280}]
[2318,513100,"Остале некретнине и опрема",null,280]
[2319,514000,"КУЛТИВИСАНА ИМОВИНА (2320)",{"$f":"D340","v":0},{"$f":"E340","v":0}]
[2320,514100,"Култивисана имовина"]
[2321,515000,"НЕМАТЕРИЈАЛНА ИМОВИНА (2322)",{"$f":"D342","v":0},{"$f":"E342","v":0}]
[2322,515100,"Нематеријална имовина"]
[2323,520000,"ЗАЛИХЕ (2324 + 2326 + 2330)",{"$f":"D344+D346+D350","v":0},{"$f":"E344+E346+E350","v":0}]
[2324,521000,"РОБНЕ РЕЗЕРВЕ (2325)",{"$f":"D345","v":0},{"$f":"E345","v":0}]
[2325,521100,"Робне резерве"]
[2326,522000,"ЗАЛИХЕ ПРОИЗВОДЊЕ (од 2327 до 2329)",{"$f":"SUM(D347:D349)","v":0},{"$f":"SUM(E347:E349)","v":0}]
[2327,522100,"Залихе материјала"]
[2328,522200,"Залихе недовршене производње"]
[2329,522300,"Залихе готових производа"]
[2330,523000,"ЗАЛИХЕ РОБЕ ЗА ДАЉУ ПРОДАЈУ (2331)",{"$f":"D351","v":0},{"$f":"E351","v":0}]
[2331,523100,"Залихе робе за даљу продају"]
[2332,530000,"ДРАГОЦЕНОСТИ (2333)",{"$f":"D353","v":0},{"$f":"E353","v":0}]
[2333,531000,"ДРАГОЦЕНОСТИ (2334)",{"$f":"D354","v":0},{"$f":"E354","v":0}]
[2334,531100,"Драгоцености"]
[2335,540000,"ПРИРОДНА ИМОВИНА (2336 + 2338 + 2340)",{"$f":"D356+D358+D360","v":0},{"$f":"E356+E358+E360","v":0}]
[2336,541000,"ЗЕМЉИШТЕ (2337)",{"$f":"D357","v":0},{"$f":"E357","v":0}]
[2337,541100,"Земљиште"]
[2338,542000,"РУДНА БОГАТСТВА (2339)",{"$f":"D359","v":0},{"$f":"E359","v":0}]
[2339,542100,"Копови"]
[2340,543000,"ШУМЕ И ВОДЕ (2341 + 2342)",{"$f":"D361+D362","v":0},{"$f":"E361+E362","v":0}]
[2341,543100,"Шуме"]
[2342,543200,"Воде"]
[2343,550000,"НЕФИНАНСИЈСКА ИМОВИНА КОЈА СЕ ФИНАНСИРА ИЗ СРЕДСТАВА ЗА РЕАЛИЗАЦИЈУ НАЦИОНАЛНОГ ИНВЕСТИЦИОНОГ ПЛАНА (2344)",{"$f":"D364","v":0},{"$f":"E364","v":0}]
[2344,551000,"НЕФИНАНСИЈСКА ИМОВИНА КОЈА СЕ ФИНАНСИРА ИЗ СРЕДСТАВА ЗА РЕАЛИЗАЦИЈУ НАЦИОНАЛНОГ ИНВЕСТИЦИОНОГ ПЛАНА (2345)",{"$f":"D365","v":0},{"$f":"E365","v":0}]
[2345,551100,"Нефинансијска имовина која се финансира из средстава за реализацију националног инвестиционог плана"]
[null,null,"УТВРЂИВАЊЕ РЕЗУЛТАТА ПОСЛОВАЊА "]
[2346,null,"Вишак прихода и примања - буџетски суфицит (2001 - 2131) > 0",{"$f":"IF((D21-D151)>0,D21-D151,0)","v":217},{"$f":"IF((E21-E151)>0,E21-E151,0)","v":0}]
[2347,null,"Мањак прихода и примања - буџетски дефицит (2131 - 2001) > 0",{"$f":"IF((D151-D21)>0,D151-D21,0)","v":0},{"$f":"IF((E151-E21)>0,E151-E21,0)","v":1774}]
[2348,null,"КОРИГОВАЊЕ ВИШКА, ОДНОСНО МАЊКА ПРИХОДА И ПРИМАЊА (од 2349 до 2353)",{"$f":"D370+D371+D372+D373+D374","v":942},{"$f":"E370+E371+E372+E373+E374","v":1924}]
[2349,null,"Део нераспоређеног вишка прихода и примања из ранијих година који је коришћен за покриће расхода и издатака текуће године",845,1557]
[2350,null,"Део новчаних средстава амортизације који је коришћен за набавку нефинансијске имовине",97,367]
[2351,null,"Део пренетих неутрошених средстава из ранијих година коришћен за покриће расхода и издатака текуће године"]
[2352,null,"Износ расхода и издатака за нефинансијску имовину, финансираних из кредита"]
[2353,null,"Износ приватизационих примања и примања од отплате датих кредита коришћен за покриће расхода и издатака текуће године"]
[2354,null,"ПОКРИЋЕ ИЗВРШЕНИХ ИЗДАТАКА ИЗ ТЕКУЋИХ ПРИХОДА И ПРИМАЊА (2355 + 2356)",{"$f":"D376+D377","v":0},{"$f":"E376+E377","v":0}]
[2355,null,"Утрошена средства текућих прихода и примања од продаје нефинансијске имовине за отплату обавеза по кредитима"]
[2356,null,"Утрошена средства текућих прихода и примања од продаје нефинансијске имовине за набавку финансијске имовине"]
[2357,321121,"ВИШАК ПРИХОДА И ПРИМАЊА – СУФИЦИТ (2346+2348-2347-2354)>0",{"$f":"IF((D367+D369-D368-D375)>0,D367+D369-D368-D375,0)","v":1159},{"$f":"IF((E367+E369-E368-E375)>0,E367+E369-E368-E375,0)","v":150}]
[2358,321122,"МАЊАК ПРИХОДА И ПРИМАЊА – ДЕФИЦИТ (2347+2354-2346-2348)>0",{"$f":"IF((D368+D375-D367-D369)>0,D368+D375-D367-D369,0)","v":0},{"$f":"IF((E368+E375-E367-E369)>0,E368+E375-E367-E369,0)","v":0}]
[2359,null,"ВИШАК ПРИХОДА И ПРИМАЊА – СУФИЦИТ (ЗА ПРЕНОС У НАРЕДНУ ГОДИНУ) (2360 + 2361 = 2357)",{"$f":"D381+D382","v":1159},{"$f":"E381+E382","v":150}]
[2360,null,"Део вишка прихода и примања наменски опредељен за наредну годину",1159,150]
[2361,null,"Нераспоређени део вишка прихода и примања за пренос у наредну годину "]
[]
["Датум ",null,"                                                               Лице одговорно за      ","              Наредбодавац"]
[null,null,"                                                          попуњавање обрасца"]

{"sheet":"ObrazacBS","index":3,"n_rows":291,"n_cols":7,"rows_kept":291,"cut":false,"hidden":false,"merged":[[13,0,13,6],[14,0,14,6],[17,0,19,0],[17,1,19,1],[17,2,19,2],[17,4,17,6],[18,3,19,3],[18,4,19,4],[18,5,19,5],[18,6,19,6],[86,0,88,0],[86,1,88,1],[86,2,88,2],[86,4,86,6],[87,3,88,3],[87,4,88,4],[87,5,88,5],[87,6,88,6],[44,0,46,0],[44,1,46,1],[44,2,46,2],[44,4,44,6],[45,3,46,3],[45,4,46,4],[45,5,46,5],[45,6,46,6],[103,0,104,0],[103,1,104,1],[103,2,104,4],[103,5,103,6],[105,2,105,4],[106,2,106,4],[107,2,107,4],[108,2,108,4],[109,2,109,4],[110,2,110,4],[111,2,111,4],[112,2,112,4],[113,2,113,4],[114,2,114,4],[115,2,115,4],[116,2,116,4],[117,2,117,4],[118,2,118,4],[119,2,119,4],[120,2,120,4],[121,2,121,4],[122,2,122,4],[123,2,123,4],[124,2,124,4],[125,2,125,4],[126,2,126,4],[127,2,127,4],[142,5,142,6],[128,2,128,4],[129,2,129,4],[130,2,130,4],[131,2,131,4],[132,2,132,4],[133,2,133,4],[134,2,134,4],[135,2,135,4],[136,2,136,4],[137,2,137,4],[138,2,138,4],[139,2,139,4],[140,2,140,4],[141,2,141,4],[157,2,157,4],[158,2,158,4],[159,2,159,4],[152,2,152,4],[142,0,143,0],[142,1,143,1],[142,2,143,4],[150,2,150,4],[151,2,151,4],[153,2,153,4],[154,2,154,4],[155,2,155,4],[156,2,156,4],[144,2,144,4],[145,2,145,4],[146,2,146,4],[147,2,147,4],[148,2,148,4],[149,2,149,4],[160,2,160,4],[161,2,161,4],[167,2,167,4],[171,2,171,4],[172,2,172,4],[173,2,173,4],[162,2,162,4],[163,2,163,4],[164,2,164,4],[165,2,165,4],[166,2,166,4],[168,2,168,4],[169,2,169,4],[170,2,170,4],[174,2,174,4],[175,2,175,4],[187,2,187,4],[177,2,177,4],[178,0,179,0],[178,1,179,1],[178,2,179,4],[176,2,176,4],[188,2,188,4],[196,2,196,4],[178,5,178,6],[180,2,180,4],[181,2,181,4],[182,2,182,4],[183,2,183,4],[184,2,184,4],[185,2,185,4],[186,2,186,4],[195,2,195,4],[189,2,189,4],[190,2,190,4],[191,2,191,4],[192,2,192,4],[193,2,193,4],[194,2,194,4],[212,2,212,4],[213,2,213,4],[214,2,214,4],[197,2,197,4],[198,2,198,4],[199,2,199,4],[200,2,200,4],[201,2,201,4],[202,2,202,4],[203,2,203,4],[206,2,206,4],[207,2,207,4],[208,2,208,4],[209,2,209,4],[210,2,210,4],[211,2,211,4],[204,2,204,4],[205,2,205,4],[215,2,215,4],[216,0,217,0],[216,1,217,1],[216,2,217,4],[216,5,216,6],[218,2,218,4],[219,2,219,4],[220,2,220,4],[221,2,221,4],[222,2,222,4],[223,2,223,4],[224,2,224,4],[225,2,225,4],[226,2,226,4],[227,2,227,4],[228,2,228,4],[229,2,229,4],[230,2,230,4],[246,2,246,4],[247,2,247,4],[248,2,248,4],[231,2,231,4],[232,2,232,4],[233,2,233,4],[234,2,234,4],[235,2,235,4],[236,2,236,4],[237,2,237,4],[240,2,240,4],[241,2,241,4],[242,2,242,4],[243,2,243,4],[244,2,244,4],[245,2,245,4],[238,2,238,4],[239,2,239,4],[263,5,263,6],[249,2,249,4],[250,2,250,4],[251,2,251,4],[252,2,252,4],[253,2,253,4],[254,2,254,4],[255,2,255,4],[256,2,256,4],[257,2,257,4],[258,2,258,4],[259,2,259,4],[260,2,260,4],[261,2,261,4],[262,2,262,4],[263,0,264,0],[263,1,264,1],[263,2,264,4],[282,2,282,4],[271,2,271,4],[272,2,272,4],[273,2,273,4],[274,2,274,4],[275,2,275,4],[276,2,276,4],[265,2,265,4],[266,2,266,4],[267,2,267,4],[268,2,268,4],[269,2,269,4],[270,2,270,4],[283,2,283,4],[284,2,284,4],[285,2,285,4],[286,2,286,4],[289,5,289,6],[277,2,277,4],[278,2,278,4],[279,2,279,4],[280,2,280,4],[281,2,281,4]]}
[null,null,null,null,null,null,"Образац БС"]
[]
[]
[]
[]
[]
["Назив корисника буџетских средстава"]
[{"$f":"NazKorisnika","v":"Дом здравља Уб"}]
[{"$f":"\"Седиште:   \" &biop","v":"Седиште:   Уб"},null,null,null,{"$f":" \"Матични број:   \" & MatBroj","v":"Матични број:   17211692"}]
[{"$f":"\"ПИБ:   \" & bip","v":"ПИБ:   101349256"},null,null,null,{"$f":"\"Број подрачуна:  \" & BrojPodr","v":"Број подрачуна:  840-407661-24"}]
["Назив надлежног директног корисника буџетских средстава"]
[]
[]
["БИЛАНС СТАЊА"]
["на дан 31.12.2025. "]
[]
[null,null,null,null,null,null,"(У хиљадама динара)"]
["Ознака ОП","Број конта","Опис","Износ из претходне    године","Износ текуће године"]
[null,null,null,"(почетно      стање)","Бруто","Исправка вредности","Нето                           (5 – 6)"]
[]
[1,2,3,4,5,6,7]
[null,null,"АКТИВА"]
["1001","000000","НEФИНАНСИЈСКА ИМОВИНА        (1002 + 1020)",{"$f":"D24+D42","v":286870},{"$f":"E24+E42","v":494939},{"$f":"F24+F42","v":219378},{"$f":"E23-F23","v":275561}]
["1002","010000","НЕФИНАНСИЈСКА ИМОВИНА У СТАЛНИМ СРЕДСТВИМА  (1003 + 1007 + 1009 + 1011 + 1015 + 1018)",{"$f":"D25+D29+D31+D33+D37+D40","v":283169},{"$f":"E25+E29+E31+E33+E37+E40","v":451457},{"$f":"F25+F29+F31+F33+F37+F40","v":179354},272103]
["1003","011000","НЕКРЕТНИНЕ И ОПРЕМА                     (од 1004 до 1006)",{"$f":"SUM(D26:D28)","v":283169},{"$f":"SUM(E26:E28)","v":449969},{"$f":"SUM(F26:F28)","v":177866},272103]
["1004","011100","Зграде и грађевински објекти",235670,273160,41585,231575]
["1005","011200","Опрема",47499,176809,136281,40528]
["1006","011300","Остале некретнине и опрема",null,null,null,0]
[1007,"012000","КУЛТИВИСАНА ИМОВИНА (1008)",{"$f":"D30","v":0},{"$f":"E30","v":0},{"$f":"F30","v":0},0]
[1008,"012100","Култивисана имовина",null,null,null,0]
[1009,"013000","ДРАГОЦЕНОСТИ (1010)",{"$f":"D32","v":0},{"$f":"E32","v":0},{"$f":"F32","v":0},0]
[1010,"013100","Драгоцености",null,null,null,0]
[1011,"014000","ПРИРОДНА ИМОВИНА                                    (од 1012 до 1014)",{"$f":"SUM(D34:D36)","v":0},{"$f":"SUM(E34:E36)","v":0},{"$f":"SUM(F34:F36)","v":0},0]
[1012,"014100","Земљиште",null,null,null,0]
[1013,"014200","Подземна блага",null,null,null,0]
[1014,"014300","Шуме и воде",null,null,null,0]
[1015,"015000","НЕФИНАНСИЈСКА ИМОВИНА У ПРИПРЕМИ И АВАНСИ (1016 + 1017)",{"$f":"D38+D39","v":0},{"$f":"E38+E39","v":0},{"$f":"F38+F39","v":0},0]
[1016,"015100","Нефинансијска имовина у припреми",null,null,null,0]
[1017,"015200","Аванси за нефинансијску имовину",null,null,null,0]
[1018,"016000","НЕМАТЕРИЈАЛНА ИМОВИНА (1019)",{"$f":"D41","v":0},{"$f":"E41","v":1488},{"$f":"F41","v":1488},0]
[1019,"016100","Нематеријална имовина",null,1488,1488,0]
[1020,"020000","НЕФИНАНСИЈСКА ИМОВИНА У ЗАЛИХАМА (1021 + 1025)",{"$f":"D43+D51","v":3701},{"$f":"E43+E51","v":43482},{"$f":"F43+F51","v":40024},3458]
[1021,"021000","ЗАЛИХЕ (од 1022 до 1024)",{"$f":"SUM(D44:D50)","v":0},{"$f":"SUM(E44:E50)","v":0},{"$f":"SUM(F44:F50)","v":0},0]
[1022,"021100","Робне резерве",null,null,null,0]
["Ознака ОП","Број конта","Опис","Износ из претходне    године","Износ текуће године"]
[null,null,null,"(почетно      стање)","Бруто","Исправка вредности","Нето                       (5 – 6)"]
[]
[1,2,3,"4","5","6","7"]
[1023,"021200","Залихе производње",null,null,null,0]
[1024,"021300","Роба за даљу продају",null,null,null,0]
[1025,"022000","ЗАЛИХЕ СИТНОГ ИНВЕНТАРА И ПОТРОШНОГ МАТЕРИЈАЛА (1026 + 1027)",{"$f":"D52+D53","v":3701},{"$f":"E52+E53","v":43482},{"$f":"F52+F53","v":40024},3458]
[1026,"022100","Залихе ситног инвентара",null,8615,8615,0]
[1027,"022200","Залихе потрошног материјала",3701,34867,31409,3458]
[1028,100000,"ФИНАНСИЈСКА ИМОВИНА (1029 + 1049 + 1067)",{"$f":"D55+D75+D97","v":48634},{"$f":"E55+E75+E97","v":54205},{"$f":"F55+F75+F97","v":0},54205]
[1029,110000,"ДУГОРОЧНА ФИНАНСИЈСКА ИМОВИНА (1030 + 1040)",{"$f":"D56+D66","v":83},{"$f":"E56+E66","v":77},{"$f":"F56+F66","v":0},77]
[1030,111000,"ДУГОРОЧНА ДОМАЋА ФИНАНСИЈСКА ИМОВИНА                 (од 1031 до 1039)",{"$f":"SUM(D57:D65)","v":83},{"$f":"SUM(E57:E65)","v":77},{"$f":"SUM(F57:F65)","v":0},77]
[1031,111100,"Дугорочне домаће хартије од вредности, изузев акција",null,null,null,0]
[1032,111200,"Кредити осталим нивоима власти",null,null,null,0]
[1033,111300,"Кредити домаћим јавним финансијским институцијама",null,null,null,0]
[1034,111400,"Кредити домаћим пословним банкама",null,null,null,0]
[1035,111500,"Кредити домаћим јавним нефинансијским  институцијама",null,null,null,0]
[1036,111600,"Кредити физичким лицима и домаћинствима у земљи",83,77,null,77]
[1037,111700,"Кредити домаћим невладиним организацијама",null,null,null,0]
[1038,111800,"Кредити домаћим нефинансијским приватним предузећима",null,null,null,0]
[1039,111900,"Домаће акције и остали капитал",null,null,null,0]
[1040,112000,"ДУГОРОЧНA СТРАНА ФИНАНСИЈСКА ИМОВИНА (од 1041 до 1048)",{"$f":"SUM(D67:D74)","v":0},{"$f":"SUM(E67:E74)","v":0},{"$f":"SUM(F67:F74)","v":0},0]
[1041,112100,"Дугорочне стране хартије од вредности, изузев акција",null,null,null,0]
[1042,112200,"Кредити страним владама",null,null,null,0]
[1043,112300,"Кредити међународним организацијама",null,null,null,0]
[1044,112400,"Кредити страним пословним банкама",null,null,null,0]
[1045,112500,"Кредити страним нефинансијским институцијама",null,null,null,0]
[1046,112600,"Кредити страним невладиним организацијама",null,null,null,0]
[1047,112700,"Стране акције и остали капитал",null,null,null,0]
[1048,"112800","Страни финансијски деривати",null,null,null,0]
[1049,120000,"НОВЧАНА СРЕДСТВА, ПЛЕМЕНИТИ МЕТАЛИ, ХАРТИЈЕ ОД ВРЕДНОСТИ, ПОТРАЖИВАЊА И КРАТКОРОЧНИ ПЛАСМАНИ (1050+ 1060 + 1062)",{"$f":"D76+D86+D92","v":21552},{"$f":"E76+E86+E92","v":24619},{"$f":"F76+F86+F92","v":0},24619]
[1050,121000,"НОВЧАНА СРЕДСТВА, ПЛЕМЕНИТИ МЕТАЛИ, ХАРТИЈЕ ОД ВРЕДНОСТИ    (од 1051 до 1059)",{"$f":"D77+D78+D79+D80+D81+D82+D83+D84+D85","v":2523},{"$f":"E77+E78+E79+E80+E81+E82+E83+E84+E85","v":650},{"$f":"F77+F78+F79+F80+F81+F82+F83+F84+F85","v":0},650]
[1051,121100,"Жиро и текући рачуни",2104,650,null,650]
[1052,121200,"Издвојена новчана средства и акредитиви",419,null,null,0]
[1053,121300,"Благајна",null,null,null,0]
[1054,121400,"Девизни рачун",null,null,null,0]
[1055,121500,"Девизни акредитиви",null,null,null,0]
[1056,121600,"Девизна благајна",null,null,null,0]
[1057,121700,"Остала новчана средства",null,null,null,0]
[1058,121800,"Племенити метали",null,null,null,0]
[1059,121900,"Хартије од вредности",null,null,null,0]
[1060,122000,"КРАТКОРОЧНА ПОТРАЖИВАЊА (1061)",{"$f":"D91","v":18571},{"$f":"E91","v":23960},{"$f":"F91","v":0},23960]
["Ознака ОП","Број конта","Опис","Износ из претходне    године","Износ текуће године"]
[null,null,null,"(почетно      стање)","Бруто","Исправка вредности","Нето                        (5 – 6)"]
[]
[1,2,3,"4","5","6","7"]
[1061,122100,"Потраживања по основу продаје и друга потраживања",18571,23960,null,{"$f":"E91-F91","v":23960}]
[1062,123000,"КРАТКОРОЧНИ ПЛАСМАНИ               (од 1063 до 1066)",{"$f":"SUM(D93:D96)","v":458},{"$f":"SUM(E93:E96)","v":9},{"$f":"SUM(F93:F96)","v":0},9]
[1063,123100,"Краткорочни кредити",null,null,null,0]
[1064,123200,"Дати аванси, депозити и кауције",458,9,null,9]
[1065,123300,"Хартије од вредности намењене продаји",null,null,null,0]
[1066,123900,"Остали краткорочни пласмани",null,null,null,0]
[1067,130000,"АКТИВНА ВРЕМЕНСКА РАЗГРАНИЧЕЊА (1068)",{"$f":"D98","v":26999},{"$f":"E98","v":29509},{"$f":"F98","v":0},29509]
[1068,131000,"АКТИВНА ВРЕМЕНСКА РАЗГРАНИЧЕЊА                                             (од 1069 до 1071)",{"$f":"SUM(D99:D101)","v":26999},{"$f":"SUM(E99:E101)","v":29509},{"$f":"SUM(F99:F101)","v":0},29509]
[1069,131100,"Разграничени расходи до једне године",null,null,null,0]
[1070,131200,"Обрачунати неплаћени расходи и издаци",26999,29509,null,29509]
[1071,131300,"Остала активна временска разграничења",null,null,null,0]
[1072,null,"УКУПНА АКТИВА (1001 + 1028)",{"$f":"D23+D54","v":335504},{"$f":"E23+E54","v":549144},{"$f":"F23+F54","v":219378},329766]
[1073,"351000","ВАНБИЛАНСНА АКТИВА",3988,3988,null,3988]
["Ознака ОП","Број конта","Опис",null,null,"Износ"]
[null,null,null,null,null,"Претходна година","Текућа година"]
[1,2,3,null,null,"4","5"]
[null,null,"ПАСИВА"]
[1074,200000,"ОБАВЕЗЕ (1075 + 1099 + 1118 + 1173 + 1198 + 1212)",null,null,{"$f":"F109+F133+F155+F213+F241+F255","v":46028},{"$f":"G109+G133+G155+G213+G241+G255","v":53478}]
[1075,210000,"ДУГОРОЧНЕ ОБАВЕЗЕ (1076 + 1086 + 1093 + 1095 + 1097)",null,null,{"$f":"F110+F120+F127+F129+F131","v":0},{"$f":"G110+G120+G127+G129+G131","v":0}]
[1076,211000,"ДОМАЋЕ ДУГОРОЧНЕ ОБАВЕЗЕ (од 1077 до 1085)",null,null,{"$f":"SUM(F111:F119)","v":0},{"$f":"SUM(G111:G119)","v":0}]
[1077,211100,"Обавезе умањене за дисконт по основу емитованих хартија од вредности, изузев акција"]
[1078,211200,"Обавезе по основу дугорочних кредита од осталих нивоа власти"]
[1079,211300,"Обавезе по основу дугорочних кредита од домаћих јавних финансијских институција"]
[1080,211400,"Обавезе по основу дугорочних кредита од домаћих пословних банака"]
[1081,211500,"Обавезе по основу дугорочних кредита од осталих домаћих кредитора"]
[1082,211600,"Обавезе по основу дугорочних кредита од домаћинстава у земљи"]
[1083,"211700","Дугорочне обавезе по основу домаћих финансијских деривата"]
[1084,211800,"Дугорочне обавезе по основу домаћих меница"]
[1085,"211900","Дугорочне обавезе за финансијске лизинге"]
[1086,212000,"СТРАНЕ ДУГОРОЧНЕ ОБАВЕЗЕ (од 1087 до 1092)",null,null,{"$f":"SUM(F121:F126)","v":0},{"$f":"SUM(G121:G126)","v":0}]
[1087,212100,"Дугорочне стране обавезе умањене за дисконт по основу емитованих хартија од вредности, изузев акција"]
[1088,212200,"Обавезе по основу дугорочних кредита од страних влада"]
[1089,212300,"Обавезе по основу дугорочних кредита од мултилатералних институција"]
[1090,212400,"Обавезе по основу дугорочних кредита од страних пословних банака"]
[1091,212500,"Обавезе по основу дугорочних кредита од осталих страних кредитора"]
[1092,212600,"Дугорочне обавезе по основу страних финансијских деривата"]
[1093,213000,"ДУГОРОЧНЕ ОБАВЕЗЕ ПО ОСНОВУ ГАРАНЦИЈА (1094)",null,null,{"$f":"F128","v":0},{"$f":"G128","v":0}]
[1094,213100,"Дугорочне обавезе по основу гаранција"]
[1095,214000,"ОБАВЕЗЕ ПО ОСНОВУ ОТПЛАТЕ ГЛАВНИЦЕ ЗА ФИНАНСИЈСКИ ЛИЗИНГ (1096)",null,null,{"$f":"F130","v":0},{"$f":"G130","v":0}]
[1096,214100,"Обавезе по основу отплате главнице зa финансијски лизинг"]
[1097,215000,"ОБАВЕЗЕ ПО ОСНОВУ ОТПЛАТА ГАРАНЦИЈА ПО КОМЕРЦИЈАЛНИМ ТРАНСАКЦИЈАМА (1098)",null,null,{"$f":"F132","v":0},{"$f":"G132","v":0}]
[1098,215100,"Обавезе по основу отплата гаранција по комерцијалним трансакцијама"]
[1099,220000,"КРАТКОРОЧНЕ ОБАВЕЗЕ (1100 + 1109 + 1116)",null,null,{"$f":"F134+F146+F153","v":0},{"$f":"G134+G146+G153","v":0}]
[1100,221000,"КРАТКОРОЧНЕ ДОМАЋЕ ОБАВЕЗЕ (од 1101 до 1108)","КРАТКОРОЧНЕ ДОМАЋЕ ОБАВЕЗЕ (од 1101 до 1108)","КРАТКОРОЧНЕ ДОМАЋЕ ОБАВЕЗЕ (од 1101 до 1108)",{"$f":"SUM(F135:F142)","v":0},{"$f":"SUM(G135:G142)","v":0}]
[1101,221100,"Краткорочне домаће обавезе умањене за дисконт по основу емитованих хартија од вредности, изузев акција","Краткорочне домаће обавезе по основу емитованих хартија од вредности, изузев акција","Краткорочне домаће обавезе по основу емитованих хартија од вредности, изузев акција"]
[1102,221200,"Обавезе по основу краткорочних кредита од осталих нивоа власти","Обавезе по основу краткорочних кредита од осталих нивоа власти","Обавезе по основу краткорочних кредита од осталих нивоа власти"]
[1103,221300,"Обавезе по основу краткорочних кредита од домаћих јавних финансијских институција","Обавезе по основу краткорочних кредита од домаћих јавних финансијских институција","Обавезе по основу краткорочних кредита од домаћих јавних финансијских институција"]
[1104,221400,"Обавезе по основу краткорочних кредита од домаћих пословних банака","Обавезе по основу краткорочних кредита од домаћих пословних банака","Обавезе по основу краткорочних кредита од домаћих пословних банака"]
[1105,221500,"Обавезе по основу краткорочних кредита од осталих домаћих кредитора","Обавезе по основу краткорочних кредита од осталих домаћих кредитора","Обавезе по основу краткорочних кредита од осталих домаћих кредитора"]
[1106,221600,"Обавезе по основу краткорочних кредита од домаћинстава у земљи","Обавезе по основу краткорочних кредита од домаћинстава у земљи","Обавезе по основу краткорочних кредита од домаћинстава у земљи"]
[1107,221700,"Краткорочне обавезе по основу домаћих финансијских деривата","Краткорочне обавезе по основу домаћих финансијских деривата","Краткорочне обавезе по основу домаћих финансијских деривата"]
[1108,221800,"Краткорочне обавезе по основу домаћих меница","Краткорочне обавезе по основу домаћих меница","Краткорочне обавезе по основу домаћих меница"]
["Ознака ОП","Број конта","Опис",null,null,"Износ"]
[null,null,null,null,null,"Претходна година","Текућа година"]
[1,2,3,null,null,"4 ","5 "]
[1109,222000,"КРАТКОРОЧНЕ СТРАНЕ ОБАВЕЗЕ (од 1110 до 1115)","КРАТКОРОЧНЕ СТРАНЕ ОБАВЕЗЕ (од 1110 до 1115)","КРАТКОРОЧНЕ СТРАНЕ ОБАВЕЗЕ (од 1110 до 1115)",{"$f":"F147+F148+F149+F150+F151+F152","v":0},{"$f":"G147+G148+G149+G150+G151+G152","v":0}]
[1110,222100,"Краткорочне стране обавезе умањене за дисконт по основу емитованих хартија од вредности, изузев акција","Краткорочне стране обавезе по основу емитованих хартија од вредности, изузев акција","Краткорочне стране обавезе по основу емитованих хартија од вредности, изузев акција"]
[1111,222200,"Обавезе по основу краткорочних кредита од страних влада"]
[1112,222300,"Обавезе по основу краткорочних кредита од мултилатералних институција"]
[1113,222400,"Обавезе по основу краткорочних кредита од страних пословних банака"]
[1114,222500,"Обавезе по основу краткорочних кредита од осталих страних кредитора"]
[1115,222600,"Краткорочне обавезе по основу страних финансијских деривата"]
[1116,223000,"КРАТКОРОЧНЕ ОБАВЕЗЕ ПО ОСНОВУ ГАРАНЦИЈА (1117)",null,null,{"$f":"F154","v":0},{"$f":"G154","v":0}]
[1117,223100,"Краткорочне обавезе по основу гаранција"]
[1118,230000,"ОБАВЕЗЕ ПО ОСНОВУ РАСХОДА ЗА ЗАПОСЛЕНЕ (1119 + 1125 + 1131 + 1137 + 1141+ 1147 + 1153 + 1161 + 1167)",null,null,{"$f":"F156+F162+F168+F174+F178+F187+F193+F201+F207","v":15713},{"$f":"G156+G162+G168+G174+G178+G187+G193+G201+G207","v":16147}]
[1119,231000,"ОБАВЕЗЕ ЗА ПЛАТЕ И ДОДАТКЕ (од 1120 до 1124)",null,null,{"$f":"SUM(F157:F161)","v":12103},{"$f":"SUM(G157:G161)","v":12966}]
[1120,231100,"Обавезе за нето плате и додатке",null,null,8740,9391]
[1121,231200,"Обавезе по основу пореза на плате и додатке",null,null,960,1000]
[1122,231300,"Обавезе по основу доприноса за пензијско и инвалидско осигурање на плате и додатке",null,null,1694,1815]
[1123,231400,"Обавезе по основу доприноса за здравствено осигурање на плате и додатке",null,null,623,668]
[1124,231500,"Обавезе по основу доприноса за незапосленост на плате и додатке",null,null,86,92]
[1125,232000,"ОБАВЕЗЕ ПО ОСНОВУ НАКНАДА ЗАПОСЛЕНИМА (од 1126 до 1130)",null,null,{"$f":"SUM(F163:F167)","v":704},{"$f":"SUM(G163:G167)","v":70}]
[1126,232100,"Обавезе по основу нето накнада запосленима",null,null,636,66]
[1127,232200,"Обавезе по основу пореза за накнаде запосленима",null,null,68,4]
[1128,232300,"Обавезе по основу доприноса за пензијско и инвалидско осигурање за накнаде запосленима"]
[1129,232400,"Обавезе по основу доприноса за здравствено осигурање за накнаде запосленима"]
[1130,232500,"Обавезе по основу доприноса за незапосленост за накнаде запосленима"]
[1131,233000,"ОБАВЕЗЕ ЗА НАГРАДЕ И ОСТАЛЕ ПОСЕБНЕ РАСХОДЕ (од 1132 до 1136)",null,null,{"$f":"SUM(F169:F173)","v":0},{"$f":"SUM(G169:G173)","v":0}]
[1132,233100,"Обавезе по основу нето исплата награда и осталих посебних расхода"]
[1133,233200,"Обавезе по основу пореза на награде и остале посебне расходе"]
[1134,233300,"Обавезе по основу доприноса за пензијско и инвалидско осигурање за награде и остале посебне расходе"]
[1135,233400,"Обавезе по основу доприноса за здравствено осигурање за награде и остале посебне расходе"]
[1136,233500,"Обавезе по основу доприноса за случај незапослености за награде и остале посебне расходе"]
[1137,234000,"ОБАВЕЗЕ ПО ОСНОВУ СОЦИЈАЛНИХ ДОПРИНОСА НА ТЕРЕТ ПОСЛОДАВЦА (од 1138 до 1140) ",null,null,{"$f":"SUM(F175:F177)","v":1833},{"$f":"SUM(G175:G177)","v":1964}]
[1138,234100,"Обавезе по основу доприноса за пензијско и инвалидско осигурање на терет послодавца",null,null,1210,1296]
[1139,234200,"Обавезе по основу доприноса за здравствено осигурање на терет послодавца",null,null,623,668]
[1140,234300,"Обавезе по основу доприноса за случај незапослености на терет послодавца"]
[1141,235000,"ОБАВЕЗЕ ПО ОСНОВУ НАКНАДА У НАТУРИ (од 1142 до 1146)",null,null,{"$f":"F182+F183+F184+F185+F186","v":0},{"$f":"G182+G183+G184+G185+G186","v":0}]
["Ознака ОП","Број конта","Опис",null,null,"Износ"]
[null,null,null,null,null,"Претходна година","Текућа година"]
[1,2,3,null,null,"4 ","5 "]
[1142,235100,"Обавезе по основу нето накнада у натури"]
[1143,235200,"Обавезе по основу пореза на накнаде у натури"]
[1144,235300,"Обавезе по основу доприноса за пензијско и инвалидско осигурање за накнаде у натури"]
[1145,235400,"Обавезе по основу доприноса за здравствено осигурање за накнаде у натури"]
[1146,235500,"Обавезе по основу доприноса за случај незапослености за накнаде у натури"]
[1147,236000,"ОБАВЕЗЕ ПО ОСНОВУ СОЦИЈАЛНЕ ПОМОЋИ ЗАПОСЛЕНИМА (од 1148 до 1152)",null,null,{"$f":"SUM(F188:F192)","v":298},{"$f":"SUM(G188:G192)","v":337}]
[1148,236100,"Обавезе по основу нето исплата социјалне помоћи запосленима",null,null,187,215]
[1149,236200,"Обавезе по основу пореза на социјалну помоћ запосленима",null,null,20,20]
[1150,236300,"Обавезе по основу доприноса за пензијско и инвалидско осигурање за социјалну помоћ запосленима",null,null,62,70]
[1151,236400,"Обавезе по основу доприноса за здравствено осигурање за социјалну помоћ запосленима",null,null,27,30]
[1152,236500,"Обавезе по основу доприноса за случај незапослености за социјалну помоћ запосленима",null,null,2,2]
[1153,237000,"СЛУЖБЕНА ПУТОВАЊА И УСЛУГЕ ПО УГОВОРУ (од 1154 до 1160)",null,null,{"$f":"SUM(F194:F200)","v":775},{"$f":"SUM(G194:G200)","v":810}]
[1154,237100,"Обавезе по основу нето исплата за службена путовања"]
[1155,237200,"Обавезе по основу пореза на исплате за службена путовања "]
[1156,237300,"Обавезе по основу нето исплата за услуге по уговору",null,null,508,539]
[1157,237400,"Обавезе по основу пореза на исплате за услуге по уговору",null,null,89,107]
[1158,237500,"Обавезе по основу доприноса за пензијско и инвалидско осигурање за услуге по уговору",null,null,160,164]
[1159,237600,"Обавезе по основу доприноса за здравствено осигурање за услуге по уговору",null,null,17]
[1160,237700,"Обавезе по основу доприноса за случај незапослености за услуге по уговору",null,null,1]
[1161,238000,"ОБАВЕЗЕ ПО ОСНОВУ ПОСЛАНИЧКИХ ДОДАТАКА (од 1162 до 1166)",null,null,{"$f":"SUM(F202:F206)","v":0},{"$f":"SUM(G202:G206)","v":0}]
[1162,238100,"Обавезе за нето исплаћени посланички додатак"]
[1163,238200,"Обавезе по основу пореза на исплаћени посланички додатак"]
[1164,238300,"Обавезе по основу доприноса за пензијско и инвалидско осигурање за посланички додатак"]
[1165,238400,"Обавезе по основу доприноса за здравствено осигурање за посланички додатак"]
[1166,238500,"Обавезе по основу доприноса за случај незапослености за посланички додатак"]
[1167,239000,"ОБАВЕЗЕ ПО ОСНОВУ СУДИЈСКИХ ДОДАТАКА (од 1168 до 1172)",null,null,{"$f":"SUM(F208:F212)","v":0},{"$f":"SUM(G208:G212)","v":0}]
[1168,239100,"Обавезе за нето исплаћени судијски додатак"]
[1169,239200,"Обавезе по основу пореза на исплаћени судијски додатак"]
[1170,239300,"Обавезе по основу доприноса за пензијско и инвалидско осигурање за судијски додатак"]
[1171,239400,"Обавезе по основу доприноса за здравствено осигурање за судијски додатак"]
[1172,239500,"Обавезе по основу доприноса за случај незапослености за судијски додатак"]
[1173,240000,"ОБАВЕЗЕ ПО ОСНОВУ ОСТАЛИХ РАСХОДА, ИЗУЗЕВ РАСХОДА ЗА ЗАПОСЛЕНЕ (1174 + 1179+ 1184 + 1189 + 1192)",null,null,{"$f":"F214+F222+F227+F232+F235","v":93},{"$f":"G214+G222+G227+G232+G235","v":68}]
[1174,241000,"ОБАВЕЗЕ ПО ОСНОВУ ОТПЛАТЕ КАМАТА И ПРАТЕЋИХ ТРОШКОВА ЗАДУЖИВАЊА  (од 1175 до 1178)",null,null,{"$f":"SUM(F215:F221)","v":0},{"$f":"SUM(G215:G221)","v":0}]
[1175,241100,"Обавезе по основу отплате домаћих камата"]
[1176,241200,"Обавезе по основу отплате страних камата"]
["Ознака ОП","Број конта","Опис",null,null,"Износ"]
[null,null,null,null,null,"Претходна година","Текућа година"]
[1,2,3,null,null,"4","5"]
[1177,241300,"Обавезе по основу отплате камата по гаранцијама"]
[1178,241400,"Обавезе по основу пратећих трошкова задуживања"]
[1179,242000,"ОБАВЕЗЕ ПО ОСНОВУ СУБВЕНЦИЈА (од 1180 до 1183)",null,null,{"$f":"F223+F224+F225+F226","v":0},{"$f":"G223+G224+G225+G226","v":0}]
[1180,242100,"Обавезе по основу субвенција нефинансијским предузећима"]
[1181,242200,"Обавезе по основу субвенција приватним финансијским предузећима"]
[1182,242300,"Обавезе по основу субвенција јавним финансијским установама"]
[1183,242400,"Обавезе по основу субвенција приватним предузећима"]
[1184,243000,"ОБАВЕЗЕ ПО ОСНОВУ ДОНАЦИЈА, ДОТАЦИЈА И ТРАНСФЕРА (од 1185 до 1188)",null,null,{"$f":"SUM(F228:F231)","v":0},{"$f":"SUM(G228:G231)","v":0}]
[1185,243100,"Обавезе по основу донација страним владама"]
[1186,243200,"Обавезе по основу дотација међународним организацијама"]
[1187,243300,"Обавезе по основу трансфера осталим нивоима власти"]
[1188,243400,"Обавезе по основу дотација организацијама за обавезно социјално осигурање"]
[1189,244000,"ОБАВЕЗЕ ЗА СОЦИЈАЛНО ОСИГУРАЊЕ (1190 + 1191)",null,null,{"$f":"F233+F234","v":0},{"$f":"G233+G234","v":0}]
[1190,244100,"Обавезе по основу права из социјалног осигурања код организација за обавезно социјално осигурање"]
[1191,244200,"Обавезе по основу социјалне помоћи из буџета"]
[1192,245000,"ОБАВЕЗЕ ЗА ОСТАЛЕ РАСХОДЕ (од 1193 до 1197)",null,null,{"$f":"SUM(F236:F240)","v":93},{"$f":"SUM(G236:G240)","v":68}]
[1193,245100,"Обавезе по основу дотација невладиним организацијама"]
[1194,245200,"Обавезе за остале порезе, обавезне таксе, казне и камате",null,null,93,68]
[1195,245300,"Обавезе по основу казни и пенала по решењима судова"]
[1196,245400,"Обавезе по основу накнаде штете за повреде и штете услед елементарних непогода"]
[1197,245500,"Обавезе по основу накнаде штете или повреда нанетих од стране државних органа"]
[1198,250000,"ОБАВЕЗЕ ИЗ ПОСЛОВАЊА (1199+ 1203 + 1206 + 1208)",null,null,{"$f":"F242+F246+F249+F251","v":11643},{"$f":"G242+G246+G249+G251","v":14432}]
[1199,251000,"ПРИМЉЕНИ АВАНСИ, ДЕПОЗИТИ И КАУЦИЈЕ (од 1200 до 1202)",null,null,{"$f":"SUM(F243:F245)","v":0},{"$f":"SUM(G243:G245)","v":1163}]
[1200,251100,"Примљени аванси",null,null,null,1163]
[1201,251200,"Примљени депозити"]
[1202,251300,"Примљене кауције"]
[1203,252000,"ОБАВЕЗЕ ПРЕМА ДОБАВЉАЧИМА (1204 + 1205)",null,null,{"$f":"F247+F248","v":11643},{"$f":"G247+G248","v":13269}]
[1204,252100,"Добављачи у земљи",null,null,11643,13269]
[1205,252200,"Добављачи у иностранству"]
[1206,253000,"ОБАВЕЗЕ ЗА ИЗДАТЕ ЧЕКОВЕ И ОБВЕЗНИЦЕ (1207)",null,null,{"$f":"F250","v":0},{"$f":"G250","v":0}]
[1207,253100,"Обавезе за издате чекове и обвезнице"]
[1208,254000,"ОСТАЛЕ ОБАВЕЗЕ (1209 до 1211)",null,null,{"$f":"SUM(F252:F254)","v":0},{"$f":"SUM(G252:G254)","v":0}]
[1209,254100,"Обавезе из односа буџета и буџетских корисника"]
[1210,254200,"Остале обавезе буџета"]
[1211,254900,"Остале обавезе из пословања"]
[1212,290000,"ПАСИВНА ВРЕМЕНСКА РАЗГРАНИЧЕЊА (1213)",null,null,{"$f":"F256","v":18579},{"$f":"G256","v":22831}]
[1213,291000,"ПАСИВНА ВРЕМЕНСКА РАЗГРАНИЧЕЊА (од 1214 до 1217)",null,null,{"$f":"SUM(F257:F260)","v":18579},{"$f":"SUM(G257:G260)","v":22831}]
[1214,291100,"Разграничени приходи и примања"]
[1215,291200,"Разграничени плаћени расходи и издаци",null,null,9,9]
[1216,291300,"Обрачунати ненаплаћени приходи и примања",null,null,18272,22485]
[1217,291900,"Остала пасивна временска разграничења",null,null,298,337]
[1218,300000,"КАПИТАЛ, УТВРЂИВАЊЕ РЕЗУЛТАТА ПОСЛОВАЊА И ВАНБИЛАНСНА ЕВИДЕНЦИЈА (1219 + 1229 - 1230 + 1231 - 1232 + 1233 - 1234)",null,null,{"$f":"F262+F275-F276+F277-F278+F280-F281","v":289476},{"$f":"G262+G275-G276+G277-G278+G280-G281","v":276288}]
[1219,310000,"КАПИТАЛ (1220)",null,null,{"$f":"F263","v":288317},{"$f":"G263","v":276138}]
[1220,311000,"КАПИТАЛ (1221 + 1222 - 1223 + 1224 + 1225 - 1226 + 1227 + 1228)",null,null,{"$f":"F267+F268-F269+F270+F271-F272+F273+F274","v":288317},{"$f":"G267+G268-G269+G270+G271-G272+G273+G274","v":276138}]
["Ознака ОП","Број конта","Опис",null,null,"Износ"]
[null,null,null,null,null,"Претходна година","Текућа година"]
[1,2,3,null,null,"4","5"]
[1221,311100,"Нефинансијска имовина у сталним средствима",null,null,283169,272103]
[1222,311200,"Нефинансијска имовина у залихама",null,null,3701,3458]
[1223,311300,"Исправка вредности сопствених извора нефинансијске имовине, у сталним средствима, за набавке из кредита"]
[1224,311400,"Финансијска имовина",null,null,83,77]
[1225,311500,"Извори новчаних средстава",null,null,945,66]
[1226,311600,"Утрошена средства текућих прихода и примања од продаје нефинансијске имовине у току једне године"]
[1227,311700,"Пренета неутрошена средства из ранијих година",null,null,419,434]
[1228,311900,"Остали сопствени извори"]
[1229,321121,"Вишак прихода и примања – суфицит",null,null,1159,150]
[1230,321122,"Мањак прихода и примања – дефицит"]
[1231,321311,"Нераспоређени вишак прихода и примања  из ранијих година"]
[1232,321312,"Дефицит из ранијих година"]
[null,null,"ПРОМЕНЕ У ВРЕДНОСТИ И ОБИМУ"]
[1233,null,"ПОЗИТИВНЕ ПРОМЕНЕ У ВРЕДНОСТИ И ОБИМУ (1235 + 1237 - 1236 - 1238)",null,null,{"$f":"IF((F282+F284-F283-F285)>0,F282+F284-F283-F285,0)","v":0},{"$f":"IF((G282+G284-G283-G285)>0,G282+G284-G283-G285,0)","v":0}]
[1234,null,"НЕГАТИВНЕ ПРОМЕНЕ У ВРЕДНОСТИ И ОБИМУ (1236 + 1238 - 1235 - 1237)",null,null,{"$f":"IF((F283+F285-F282-F284)>0,F283+F285-F282-F284,0)","v":0},{"$f":"IF((G283+G285-G282-G284)>0,G283+G285-G282-G284,0)","v":0}]
[1235,330000,"ДОБИТИ КОЈЕ СУ РЕЗУЛТАТ ПРОМЕНЕ ВРЕДНОСТИ - ПОТРАЖНИ САЛДО"]
[1236,330000,"ДОБИТИ КОЈЕ СУ РЕЗУЛТАТ ПРОМЕНЕ ВРЕДНОСТИ - ДУГОВНИ САЛДО"]
[1237,340000,"ДРУГЕ ПРОМЕНЕ У ОБИМУ - ПОТРАЖНИ САЛДО"]
[1238,340000,"ДРУГЕ ПРОМЕНЕ У ОБИМУ - ДУГОВНИ САЛДО"]
[1239,null,"УКУПНА ПАСИВА (1074 + 1218)",null,null,{"$f":"F108+F261","v":335504},{"$f":"G108+G261","v":329766}]
[1240,352000,"ВАНБИЛАНСНА ПАСИВА ",null,null,3988,3988]
[]
[]
["Датум _______________________",null,null,"Лице одговорно за      ",null,"Наредбодавац"]
[null,null,null,"попуњавање обрасца"]

{"sheet":"ObrazacNT","index":4,"n_rows":163,"n_cols":6,"rows_kept":163,"cut":false,"hidden":false,"merged":[[17,4,18,4],[17,5,18,5],[17,3,18,3],[161,4,161,5],[13,0,13,5],[14,0,14,5],[17,0,18,0],[17,1,18,1],[17,2,18,2]]}
[null,null,null,null,null,"Образац НТ"]
[]
[]
[]
[]
[]
["Назив корисника буџетских средстава"]
[{"$f":"NazKorisnika","v":"Дом здравља Уб"}]
[{"$f":"\"Седиште:   \" &biop","v":"Седиште:   Уб"},null,null,null,{"$f":" \"Матични број:   \" & MatBroj","v":"Матични број:   17211692"}]
[{"$f":"\"ПИБ:   \" & bip","v":"ПИБ:   101349256"},null,null,null,{"$f":"\"Број подрачуна:  \" & BrojPodr","v":"Број подрачуна:  840-407661-24"}]
["Назив надлежног директног корисника буџетских средстава"]
[]
[]
["ИЗВЕШТАЈ О НОВЧАНИМ ТОКОВИМА"]
["у периоду 01.01.2025. - 31.12.2025."]
[]
[null,null,null,null,null,"(У хиљадама динара)"]
["Ознака ОП","Број конта","Опис","Напоемна","Претходна година","Текућа година"]
[]
[1,2,3,4,5,6]
[null,null,"ПОСЛОВНЕ АКТИВНОСТИ"]
[4001,700000,"ПРИЛИВИ ГОТОВИНЕ ИЗ ПОСЛОВНИХ АКТИВНОСТИ (4002+4011+4014+4018+4024+4027+4029)",null,{"$f":"E23+E32+E35+E39+E45+E48+E50","v":371936},{"$f":"F23+F32+F35+F39+F45+F48+F50","v":426839}]
[4002,710000,"ПРИЛИВИ ПО ОСНОВУ ПОРЕЗА (4003 до 4010)",null,{"$f":"E24+E25+E26+E27+E28+E29+E30+E31","v":0},{"$f":"F24+F25+F26+F27+F28+F29+F30+F31","v":0}]
[4003,711000,"ПРИЛИВИ ОД ПОРЕЗА НА ДОХОДАК, ДОБИТ И КАПИТАЛНЕ ДОБИТКЕ "]
[4004,712000,"ПРИЛИВИ ОД ПОРЕЗА НА ФОНД  ЗАРАДА"]
[4005,713000,"ПРИЛИВИ ОД ПОРЕЗА ОД ИМОВИНУ"]
[4006,714000,"ПРИЛИВИ ОД ПОРЕЗА НА ДОБРА И УСЛУГЕ  "]
[4007,715000,"ПРИЛИВИ ОД ПОРЕЗА  НА МЕЂУНАРОДНУ ТРГОВИНУ И ТРАНСАКЦИЈЕ "]
[4008,716000,"ПРИЛИВИ ОД ДРУГИХ ПОРЕЗА"]
[4009,717000,"ПРИЛИВИ ОД АКЦИЗА"]
[4010,719000,"ПРИЛИВИ ОД ЈЕДНОКРАТНИХ ПОРЕЗА НА ЕКСТРА ПРОФИТ И ЕКСТРА ИМОВИНУ СТЕЧЕНУ КОРИШЋЕЊЕМ ПОСЕБНИХ ПОГОДНОСТИ "]
[4011,720000,"ПРИЛИВИ ОД СОЦИЈАЛНИХ ДОПРИНОСА (4012+4013)",null,{"$f":"E33+E34","v":0},{"$f":"F33+F34","v":0}]
[4012,721000,"ПРИЛИВИ ОД ДОПРИНОСА ЗА СОЦИЈАЛНО ОСИГУРАЊЕ"]
[4013,722000,"ПРИЛИВИ ОД ОСТАЛИХ СОЦИЈАЛНИХ ДОПРИНОСА "]
[4014,730000,"ПРИЛИВИ ОД ДОНАЦИЈА, ПОМОЋИ И ТРАНСФЕРА (од 4015 до 4017)",null,{"$f":"E36+E37+E38","v":18247},{"$f":"F36+F37+F38","v":18412}]
[4015,731000,"ПРИЛИВИ ОД ДОНАЦИЈА ОД ИНОСТРАНИХ ДРЖАВА "]
[4016,732000,"ПРИЛИВИ ОД ДОНАЦИЈА И ПОМОЋИ ОД МЕЂУНАРОДНИХ ОРГАНИЗАЦИЈА"]
[4017,733000,"ПРИЛИВИ ОД ТРАНСФЕРА ОД ДРУГИХ НИВОА ВЛАСТИ",null,18247,18412]
[4018,740000,"ПРИЛИВИ ОД ДРУГИХ ПРИХОДА (од 4019 до 4023)",null,{"$f":"E40+E41+E42+E43+E44","v":6747},{"$f":"F40+F41+F42+F43+F44","v":6579}]
[4019,741000,"ПРИЛИВИ ОД  ИМОВИНЕ ",null,120,296]
[4020,742000,"ПРИЛИВИ ОД ПРОДАЈЕ ДОБАРА И УСЛУГА  ",2,6513,6267]
[4021,743000,"ПРИЛИВИ ОД НОВЧАНИХ КАЗНИ И ОДУЗЕТЕ ИМОВИНСКЕ КОРИСТИ"]
[4022,744000,"ПРИЛИВИ ОД ДОБРОВОЉНИХ ТРАНСФЕРА ОД ФИЗИЧКИХ И ПРАВНИХ ЛИЦА "]
[4023,745000,"ПРИЛИВИ ОД МЕШОВИТИХ И НЕОДРЕЂЕНИХ ПРИХОДА ",null,114,16]
[4024,770000,"ПРИЛИВИ ОД МЕМОРАНДУМСКИХ СТАВКИ  ЗА РЕФУНДАЦИЈУ РАСХОДА (4025+4026)",null,{"$f":"E46+E47","v":0},{"$f":"F46+F47","v":0}]
[4025,771000,"ПРИЛИВИ ОД МЕМОРАНДУМСКИХ СТАВКИ  ЗА РЕФУНДАЦИЈУ РАСХОДА"]
[4026,772000,"ПРИЛИВИ ОД МЕМОРАНДУМСКИХ СТАВКИ  ЗА РЕФУНДАЦИЈУ РАСХОДА ИЗ ПРЕТХОДНЕ ГОДИНЕ"]
[4027,780000,"ПРИЛИВИ ОД ТРАНСФЕРА ИЗМЕЂУ  КОРИСНИКА НА ИСТОМ НИВОУ (4028)",null,{"$f":"E49","v":346942},{"$f":"F49","v":401848}]
[4028,781000,"ПРИЛИВИ ОД ТРАНСФЕРА ИЗМЕЂУ КОРИСНИКА НА ИСТОМ НИВОУ ",null,346942,401848]
[4029,790000,"ПРИЛИВИ ИЗ БУЏЕТА (4030)",null,{"$f":"E51","v":0},{"$f":"F51","v":0}]
[4030,791000,"ПРИЛИВИ ИЗ БУЏЕТА"]
[4031,400000,"ОДЛИВИ ГОТОВИНЕ ИЗ ПОСЛОВНЕ АКТИВНОСТИ (4032+4041+4048+4053+4058+4064+4067)",null,{"$f":"E53+E62+E69+E74+E79+E85+E88","v":369136},{"$f":"F53+F62+F69+F74+F79+F85+F88","v":419264}]
[4032,410000,"ОДЛИВИ ПО ОСНОВУ РАСХОДА ЗА ЗАПОСЛЕНЕ (од 4033 до 4040)",null,{"$f":"E54+E55+E56+E57+E58+E59+E60+E61","v":295631},{"$f":"F54+F55+F56+F57+F58+F59+F60+F61","v":336746}]
[4033,411000,"ОДЛИВИ ЗА ПЛАТЕ, ДОДАТКЕ И НАКНАДЕ ЗАПОСЛЕНИХ (ЗАРАДЕ) ",null,245071,279111]
[4034,412000,"ОДЛИВИ ЗА СОЦИЈАЛНИ ДОПРИНОСИ НА ТЕРЕТ ПОСЛОДАВЦА ",null,37173,42318]
[4035,413000,"ОДЛИВИ ЗА НАКНАДЕ У НАТУРИ ",null,392,201]
[4036,414000,"ОДЛИВИ ЗА СОЦИЈАЛНА ДАВАЊА ЗАПОСЛЕНИМА ",null,3822,3358]
[4037,415000,"ОДЛИВИ ЗА НАКНАДЕ ТРОШКОВА ЗА ЗАПОСЛЕНЕ ",null,6552,8071]
[4038,416000,"ОДЛИВИ ЗА НАГРАДЕ ЗАПОСЛЕНИМА И ОСТАЛИ ПОСЕБНИ РАСХОДИ ",null,2621,3687]
[4039,417000,"ОДЛИВИ ЗА ПОСЛАНИЧКИ ДОДАТАК"]
[4040,418000,"ОДЛИВИ ЗА СУДИЈСКИ ДОДАТАК "]
[4041,420000,"ОДЛИВИ ПО ОСНОВУ КОРИШЋЕЊA УСЛУГА И РОБА (од 4042 до 4047)  ",null,{"$f":"E63+E64+E65+E66+E67+E68","v":71371},{"$f":"F63+F64+F65+F66+F67+F68","v":80106}]
[4042,421000,"ОДЛИВИ ЗА СТАЛНЕ ТРОШКОВЕ ",null,12974,13538]
[4043,422000,"ОДЛИВИ ЗА ТРОШКОВЕ ПУТОВАЊА  ",null,671,418]
[4044,423000,"ОДЛИВИ ЗА УСЛУГЕ ПО УГОВОРУ",null,8192,9344]
[4045,424000,"ОДЛИВИ ЗА СПЕЦИЈАЛИЗОВАНЕ УСЛУГЕ ",null,6990,8692]
[4046,425000,"ОДЛИВИ ЗА ТЕКУЋЕ ПОПРАВКЕ И ОДРЖАВАЊЕ",null,3412,3917]
[4047,426000,"ОДЛИВИ ЗА МАТЕРИЈАЛ ",null,39132,44197]
[4048,440000,"ОДЛИВИ ПО ОСНОВУ ОТПЛАТЕ КАМАТА И ПРАТЕЋИХ ТРОШКОВА ЗАДУЖИВАЊА (од 4049 до 4052)",null,{"$f":"E70+E71+E72+E73","v":0},{"$f":"F70+F71+F72+F73","v":0}]
[4049,441000,"ОДЛИВИ ЗА ОТПЛАТЕ ДОМАЋИХ КАМАТА "]
[4050,442000,"ОДЛИВИ ЗА ОТПЛАТЕ СТРАНИХ КАМАТА "]
[4051,443000,"ОДЛИВИ ЗА ОТПЛАТЕ КАМАТА ПО ГАРАНЦИЈАМА"]
[4052,444000,"ОДЛИВИ ЗА ПРАТЕЋЕ ТРОШКОВЕ ЗАДУЖИВАЊА  "]
[4053,450000,"ОДЛИВИ ЗА СУБВЕНЦИЈЕ (од 4054 до 4057)",null,{"$f":"E75+E76+E77+E78","v":0},{"$f":"F75+F76+F77+F78","v":0}]
[4054,451000,"ОДЛИВИ ЗА СУБВЕНЦИЈЕ ЈАВНИМ НЕФИНАНСИЈСКИМ ПРЕДУЗЕЋИМА И ОРГАНИЗАЦИЈАМА "]
[4055,452000,"ОДЛИВИ ЗА СУБВЕНЦИЈЕ ПРИВАТНИМ ФИНАНСИЈСКИМ ИНСТИТУЦИЈАМА "]
[4056,453000,"ОДЛИВИ ЗА СУБВЕНЦИЈЕ ЈАВНИМ ФИНАНСИЈСКИМ ИНСТИТУЦИЈАМА "]
[4057,454000,"ОДЛИВИ ЗА СУБВЕНЦИЈЕ ПРИВАТНИМ ПРЕДУЗЕЋИМА "]
[4058,460000,"ОДЛИВИ ЗА ДОНАЦИЈЕ, ДОТАЦИЈЕ И ТРАНСФЕРЕ (од 4059 до 4063)",null,{"$f":"E80+E81+E82+E83+E84","v":1575},{"$f":"F80+F81+F82+F83+F84","v":1759}]
[4059,461000,"ОДЛИВИ ЗА ДОНАЦИЈЕ СТРАНИМ ВЛАДАМА"]
[4060,462000,"ОДЛИВИ ЗА ДОТАЦИЈЕ МЕЂУНАРОДНИМ ОРГАНИЗАЦИЈАМА"]
[4061,463000,"ОДЛИВИ ЗА ТРАНСФЕРЕ ОСТАЛИМ НИВОИМА ВЛАСТИ "]
[4062,464000,"ОДЛИВИ ЗА ДОТАЦИЈЕ ОРГАНИЗАЦИЈАМА ЗА ОБАВЕЗНО СОЦИЈАЛНО ОСИГУРАЊЕ"]
[4063,465000,"ОДЛИВИ ЗА ОСТАЛЕ ДОТАЦИЈЕ И ТРАНСФЕРЕ ",null,1575,1759]
[4064,470000,"ОДЛИВИ ЗА СОЦИЈАЛНО ОСИГУРАЊЕ  И СОЦИЈАЛНУ ЗАШТИТУ (4065+4066)",null,{"$f":"E86+E87","v":0},{"$f":"F86+F87","v":0}]
[4065,471000,"ОДЛИВИ ПО ОСНОВУ ПРАВА ИЗ СОЦИЈАЛНОГ ОСИГУРАЊА (ОРГАНИЗАЦИЈЕ ЗА ОБАВЕЗНО СОЦИЈАЛНО ОСИГУРАЊЕ) "]
[4066,472000,"ОДЛИВИ ЗА НАКНАДЕ ЗА СОЦИЈАЛНУ ЗАШТИТУ ИЗ БУЏЕТА "]
[4067,480000,"ОДЛИВИ ЗА ОСТАЛЕ РАСХОДЕ (од 4068 до 4073)",null,{"$f":"E89+E90+E91+E92+E93+E94","v":559},{"$f":"F89+F90+F91+F92+F93+F94","v":653}]
[4068,481000,"ОДЛИВИ ЗА ДОТАЦИЈЕ НЕВЛАДИНИМ ОРГАНИЗАЦИЈАМА "]
[4069,482000,"ОДЛИВИ ЗА ПОРЕЗЕ, ОБАВЕЗНЕ ТАКСЕ, КАЗНЕ, ПЕНАЛИ И КАМАТЕ",2,559,653]
[4070,483000,"ОДЛИВИ ЗА НОВЧАНЕ КАЗНЕ И ПЕНАЛИ ПО РЕШЕЊУ СУДОВА"]
[4071,484000,"ОДЛИВИ ЗА НАКНАДЕ ШТЕТЕ ЗА ПОВРЕДЕ ИЛИ ШТЕТУ НАСТАЛУ УСЛЕД ЕЛЕМЕНТАРНИХ НЕПОГОДА ИЛИ ДРУГИХ ПРИРОДНИХ УЗРОКА"]
[4072,485000,"ОДЛИВИ ЗА НАКНАДЕ ШТЕТЕ ЗА ПОВРЕДЕ ИЛИ ШТЕТУ НАНЕТУ ОД СТРАНЕ ДРЖАВНИХ ОРГАНА"]
[4073,489000,"ОДЛИВИ ЗА РАСХОДЕ КОЈИ СЕ ФИНАНСИРАЈУ ИЗ СРЕДСТАВА ЗА РЕАЛИЗАЦИЈУ НАЦИОНАЛНОГ ИНВЕСТИЦИОНОГ ПЛАНА"]
[4074,null,"НЕТО ГОТОВИНСКИ ТОК ИЗ ПОСЛОВНИХ АКТИВНОСТИ        (4001-4031)",null,{"$f":"+E22-E52","v":2800},{"$f":"+F22-F52","v":7575}]
[null,null,"АКТИВНОСТИ ИНВЕСТИРАЊА"]
[4075,null,"ПРИЛИВИ ГОТОВИНЕ ИЗ АКТИВНОСТИ ИНВЕСТИРАЊА (4076+4091)",null,{"$f":"+E98+E113","v":6},{"$f":"+F98+F113","v":5}]
[4076,800000,"ПРИЛИВИ ОД ПРОДАЈЕ НЕФИНАНСИЈСКЕ ИМОВИНЕ (4077+4081+4085+4087)",null,{"$f":"E99+E103+E107+E109","v":6},{"$f":"F99+F103+F107+F109","v":5}]
[4077,810000,"ПРИЛИВИ ОД ПРОДАЈЕ ОСНОВНИХ СРЕДСТАВА (од 4078 до 4080)",null,{"$f":"E100+E101+E102","v":6},{"$f":"F100+F101+F102","v":5}]
[4078,811000,"ПРИЛИВИ ОД ПРОДАЈЕ НЕПОКРЕТНОСТИ",null,6,5]
[4079,812000,"ПРИЛИВИ ОД ПРОДАЈЕ ПОКРЕТНЕ ИМОВИНЕ  "]
[4080,813000,"ПРИЛИВИ ОД ПРОДАЈЕ ОСТАЛИХ ОСНОВНИХ СРЕДСТАВА"]
[4081,820000,"ПРИЛИВИ ОД ПРОДАЈЕ ЗАЛИХА (од 4082 до 4084)",null,{"$f":"E104+E105+E106","v":0},{"$f":"F104+F105+F106","v":0}]
[4082,821000,"ПРИЛИВИ ОД ПРОДАЈЕ РОБНИХ РЕЗЕРВИ"]
[4083,822000,"ПРИЛИВИ ОД ПРОДАЈЕ ЗАЛИХА ПРОИЗВОДЊЕ"]
[4084,823000,"ПРИЛИВИ ОД ПРОДАЈЕ РОБЕ ЗА ДАЉУ ПРОДАЈУ"]
[4085,830000,"ПРИЛИВИ ОД ПРОДАЈЕ ДРАГОЦЕНОСТИ (4086)",null,{"$f":"E108","v":0},{"$f":"F108","v":0}]
[4086,831000,"ПРИЛИВИ ОД ПРОДАЈЕ ДРАГОЦЕНОСТИ"]
[4087,840000,"ПРИЛИВИ ОД ПРОДАЈЕ ПРИРОДНЕ ИМОВИНЕ (од 4088 до 4090)",null,{"$f":"E110+E111+E112","v":0},{"$f":"F110+F111+F112","v":0}]
[4088,841000,"ПРИЛИВИ ОД ПРОДАЈЕ ЗЕМЉИШТА"]
[4089,842000,"ПРИЛИВИ ОД ПРОДАЈЕ ПОДЗЕМНИХ БЛАГА"]
[4090,843000,"ПРИЛИВИ ОД ПРОДАЈЕ ШУМА И ВОДА "]
[4091,920000,"ПРИЛИВИ ОД ПРОДАЈЕ ФИНАНСИЈСКЕ ИМОВИНЕ (4092+4093)",null,{"$f":"E114+E115","v":0},{"$f":"F114+F115","v":0}]
[4092,921000,"ПРИЛИВИ ОД ПРОДАЈЕ ДОМАЋЕ ФИНАНСИЈСКЕ ИМОВИНЕ "]
[4093,922000,"ПРИЛИВИ ОД ПРОДАЈЕ СТРАНЕ ФИНАНСИЈСКЕ ИМОВИНЕ "]
[4094,null,"ОДЛИВИ ГОТОВИНЕ ИЗ АКТИВНОСТИ ИНВЕСТИРАЊА (4095+4114)",null,{"$f":"+E117+E136","v":2226},{"$f":"+F117+F136","v":9453}]
[4095,500000,"ОДЛИВИ ЗА НЕФИНАНСИЈСКУ ИМОВИНУ (4096+4102+4106+4108+4112) ",null,{"$f":"E118+E124+E128+E130+E134","v":2226},{"$f":"F118+F124+F128+F130+F134","v":9453}]
[4096,510000,"ОДЛИВИ ЗА ОСНОВНА СРЕДСТВА (од 4097 до 4101)",null,{"$f":"E119+E120+E121+E122+E123","v":2226},{"$f":"F119+F120+F121+F122+F123","v":9453}]
[4097,511000,"ОДЛИВИ ЗА ЗГРАДЕ И ГРАЂЕВИНСКЕ ОБЈЕКТЕ "]
[4098,512000,"ОДЛИВИ ЗА МАШИНЕ И ОПРЕМУ ",null,2226,9173]
[4099,513000,"ОДЛИВИ ЗА ОСТАЛЕ НЕКРЕТНИНЕ И ОПРЕМУ",null,null,280]
[4100,514000,"ОДЛИВИ ЗА КУЛТИВИСАНУ ИМОВИНУ"]
[4101,515000,"ОДЛИВИ ЗА НЕМАТЕРИЈАЛНУ ИМОВИНУ"]
[4102,520000,"ОДЛИВИ ЗА ЗАЛИХЕ (од 4103 до 4105)",null,{"$f":"E125+E126+E127","v":0},{"$f":"F125+F126+F127","v":0}]
[4103,521000,"ОДЛИВИ ЗА РОБНЕ РЕЗЕРВЕ"]
[4104,522000,"ОДЛИВИ ЗА ЗАЛИХЕ ПРОИЗВОДЊЕ  "]
[4105,523000,"ОДЛИВИ ЗА ЗАЛИХЕ РОБЕ ЗА ДАЉУ ПРОДАЈУ "]
[4106,530000,"ОДЛИВИ ЗА ДРАГОЦЕНОСТИ (4107)",null,{"$f":"E129","v":0},{"$f":"F129","v":0}]
[4107,531000,"ОДЛИВИ ЗА ДРАГОЦЕНОСТИ"]
[4108,540000,"ОДЛИВИ ЗА ПРИРОДНУ ИМОВИНУ (од 4109 до 4111)",null,{"$f":"E131+E132+E133","v":0},{"$f":"F131+F132+F133","v":0}]
[4109,541000,"ОДЛИВИ ЗА ЗЕМЉИШТЕ"]
[4110,542000,"ОДЛИВИ ЗА РУДНА БОГАТСТВА"]
[4111,543000,"ОДЛИВИ ЗА ШУМЕ И ВОДЕ"]
[4112,550000,"ОДЛИВИ ЗА НЕФИНАНСИЈСКУ ИМОВИНУ КОЈА СЕ ФИНАНСИРА ИЗ СРЕДСТАВА ЗА РЕАЛИЗАЦИЈУ НАЦИОНАЛНОГ ИНВЕСТИЦИОНОГ ПЛАНА (4113)",null,{"$f":"E135","v":0},{"$f":"F135","v":0}]
[4113,551000,"ОДЛИВИ ЗА НЕФИНАНСИЈСКУ ИМОВИНУ КОЈА СЕ ФИНАНСИРА ИЗ СРЕДСТАВА ЗА РЕАЛИЗАЦИЈУ НАЦИОНАЛНОГ ИНВЕСТИЦИОНОГ ПЛАНА"]
[4114,620000,"ОДЛИВИ ЗА НАБАВКУ ФИНАНСИЈСКЕ ИМОВИНЕ (од 4115 до 4117)",null,{"$f":"E137+E138+E139","v":0},{"$f":"F137+F138+F139","v":0}]
[4115,621000,"ОДЛИВИ ЗА НАБАВКУ ДОМАЋЕ ФИНАНСИЈСКЕ ИМОВИНЕ "]
[4116,622000,"ОДЛИВИ ЗА НАБАВКУ СТРАНЕ ФИНАНСИЈСКЕ ИМОВИНЕ"]
[4117,623000,"ОДЛИВИ ЗА НАБАВКУ ФИНАНСИЈСКЕ ИМОВИНЕ КОЈА СЕ ФИНАНСИРА ИЗ СРЕДСТАВА ЗА РЕАЛИЗАЦИЈУ НАЦИОНАЛНОГ ИНВЕСТИЦИОНОГ ПЛАНА"]
[4118,null,"НЕТО ГОТОВИНСКИ ТОК ИЗ АКТИВНОСТИ ИНВЕСТИРАЊА (4075-4094)",null,{"$f":"+E97-E116","v":-2220},{"$f":"+F97-F116","v":-9448}]
[4119,null,"НЕТО ГОТОВИНСКИ ТОК ИЗ ПОСЛОВНИХ И АКТИВНОСТИ ИНВЕСТИРАЊА (4074+4118)",null,{"$f":"+E95+E140","v":580},{"$f":"+F95+F140","v":-1873}]
[null,null,"АКТИВНОСТИ ФИНАНСИРАЊА"]
[4120,null,"ПРИЛИВИ ГОТОВИНЕ ОД АКТИВНОСТИ ФИНАНСИРАЊА (4121)",null,{"$f":"+E144","v":0},{"$f":"+F144","v":0}]
[4121,910000,"ПРИЛИВИ ОД ЗАДУЖИВАЊА (4122+4123)",null,{"$f":"+E145+E146","v":0},{"$f":"+F145+F146","v":0}]
[4122,911000,"ПРИЛИВИ ОД ДОМАЋИХ ЗАДУЖИВАЊА "]
[4123,912000,"ПРИЛИВИ ОД ИНОСТРАНОГ ЗАДУЖИВАЊА "]
[4124,null,"ОДЛИВИ ПО ОСНОВУ АКТИВНОСТИ ФИНАНСИРАЊА (4125)",null,{"$f":"+E148","v":0},{"$f":"+F148","v":0}]
[4125,610000,"ОДЛИВИ ПО ОСНОВУ ОТПЛАТЕ ГЛАВНИЦЕ (од 4126 до 4130)",null,{"$f":"+E149+E150+E151+E152+E153","v":0},{"$f":"+F149+F150+F151+F152+F153","v":0}]
[4126,611000,"ОДЛИВИ ПО ОСНОВУ ОТПЛАТЕ ГЛАВНИЦЕ ДОМАЋИМ КРЕДИТОРИМА"]
[4127,612000,"ОДЛИВИ ПО ОСНОВУ ОТПЛАТЕ ГЛАВНИЦЕ СТРАНИМ КРЕДИТОРИМА"]
[4128,613000,"ОДЛИВИ ПО ОСНОВУ ОТПЛАТЕ ГЛАВНИЦЕ ПО ГАРАНЦИЈАМА"]
[4129,614000,"ОДЛИВИ ПО ОСНОВУ ОТПЛАТЕ ГЛАВНИЦЕ ЗА ФИНАНСИЈСКИ ЛИЗИНГ "]
[4130,615000,"ОДЛИВИ ПО ОСНОВУ ОТПЛАТЕ ГАРАНЦИЈА ПО КОМЕРЦИЈАЛНИМ ТРАНСАКЦИЈАМА "]
[4131,null,"НЕТО ГОТОВИНСКИ ТОК ИЗ АКТИВНОСТИ ФИНАНСИРАЊА (4120-4124) ",null,{"$f":"+E143-E147","v":0},{"$f":"+F143-F147","v":0}]
[4132,null,"УКУПНИ ПРИЛИВИ ГОТОВИНЕ (4001+4075+4120) ",null,{"$f":"+E22+E97+E143","v":371942},{"$f":"+F22+F97+F143","v":426844}]
[4133,null,"УКУПНИ ОДЛИВИ ГОТОВИНЕ (4031+4094+4124)",null,{"$f":"+E52+E116+E147","v":371362},{"$f":"+F52+F116+F147","v":428717}]
[4134,null,"НЕТО ГОТОВИНСКИ ТОК (4132-4133)",null,{"$f":"+E155-E156","v":580},{"$f":"+F155-F156","v":-1873}]
[4135,null,"САЛДО ГОТОВИНЕ И ГОТОВИНСКИХ ЕКВИВАЛЕНАТА НА ПОЧЕТКУ ГОДИНЕ",3,1943,2523]
[4136,null,"Ефекти курсних разлика на салдо готовине у девизама (и друге промене)"]
[4137,null,"САЛДО ГОТОВИНЕ И ГОТОВИНСКИХ ЕКВИВАЛЕНАТА НА КРАЈУ ГОДИНЕ  (4134+4135+4136)",null,{"$f":"+E157+E158+E159","v":2523},{"$f":"+F157+F158+F159","v":650}]
[]
["Датум",null,null,"      Лице одговорно за      ","                                Наредбодавац"]
[null,null,null,"попуњавање обрасца"]

{"sheet":"ObrazacUS","index":5,"n_rows":29,"n_cols":4,"rows_kept":29,"cut":false,"hidden":false,"merged":[[4,0,4,3],[5,0,5,3]]}
["РЕПУБЛИЧКИ ФОНД ЗА ЗДРАВСТВЕНО",null,null,"Образац УС"]
["ОСИГУРАЊЕ - БЕОГРАД"]
["Јована Мариновића 2"]
[]
["УСКЛАЂИВАЊЕ ПРИХОДА И ПРИМАЊА И РАСХОДА И ИЗДАТАКА (ОБРАЗАЦ ИБ) \nИ ПРИЛИВА И ОДЛИВА (ОБРАЗАЦ НТ)"]
["у периоду од 01.01.2025. - 31.12.2025. године"]
[{"$f":"\"ФИЛИЈАЛА:   \" & Filijala","v":"ФИЛИЈАЛА:   09 ВАЉЕВО"}]
[{"$f":"\"ЗДРАВСТВЕНА УСТАНОВА:  \" & ZU","v":"ЗДРАВСТВЕНА УСТАНОВА:  100209001 ДЗ УБ"}]
[]
[null,null,null,"у хиљадама (000) динара"]
["Ред. бр.","Опис","Укупни приходи и примања /приливи","Укупни расходи и издаци /одливи"]
["1",2,3,4]
["1.","Извештај о извршењу буџета",426484,428258]
["2.","Разлике у основама извештавања",360,459]
["3.","Разлике у периоду извештавања"]
["4.","Разлике у обухватању извештајних ентитета"]
["5.","Извештај о новчаним токовима",426844,428717]
[]
[null,{"$f":"+IF(C26=0,\"\",\"Грешка, подаци нису сложени са подацима у Обрасцу ИБ!!!\")","v":""}]
[null,{"$f":"+IF(C27=0,\"\",\"Грешка, подаци нису сложени са подацима у Обрасцу ИБ!!!\")","v":""}]
[null,{"$f":"+IF(C28=0,\"\",\"Грешка, подаци нису сложени са подацима у Обрасцу НТ!!!\")","v":""}]
[null,{"$f":"+IF(C29=0,\"\",\"Грешка, подаци нису сложени са подацима у Обрасцу НТ!!!\")","v":""}]
[]
[]
[]
[null,null,{"$f":"+C13-ObrazacIB!E224","v":0}]
[null,null,{"$f":"+D13-ObrazacIB!E536","v":0}]
[null,null,{"$f":"+C17-ObrazacNT!F155","v":0}]
[null,null,{"$f":"+D17-ObrazacNT!F156","v":0}]

{"sheet":"ObrazacOB","index":6,"n_rows":50,"n_cols":7,"rows_kept":50,"cut":false,"hidden":false,"merged":[[3,0,3,5],[44,0,44,6],[45,2,45,3]]}
["РЕПУБЛИЧКИ ФОНД ЗА ЗДРАВСТВЕНО",null,null,null,null,"Образац ОБ"]
["ОСИГУРАЊЕ - БЕОГРАД"]
["Јована Мариновића 2"]
["СТАЊЕ НЕИЗМИРЕНИХ ОБАВЕЗА ПРЕМА ДОБАВЉАЧИМА (252000) НА ДАН 31.12.2025."]
[{"$f":"\"ФИЛИЈАЛА:   \" & Fili","v":"ФИЛИЈАЛА:   09 ВАЉЕВО"}]
[{"$f":"\"ЗДРАВСТВЕНА УСТАНОВА:  \" & ZDU","v":"ЗДРАВСТВЕНА УСТАНОВА:  100209001 ДЗ УБ"}]
[null,null,null,null,null,"(У хиљадама динара)"]
["Ред. Бр.",null,"НАЗИВ ОБАВЕЗЕ","Стање дуга на дан 31.12.2025.","Доспели дуг на дан 31.12.2025.","Недоспели дуг на дан 31.12.2025."]
[1,null,2,"3=4+5",4,5]
["1.",null,"ЗА ЛЕКОВЕ И ПОМАГАЛА НА НАЛОГ У АПОТЕКАМА",{"$f":"SUM(D11:D12)","v":0},{"$f":"SUM(E11:E12)","v":0},{"$f":"SUM(F11:F12)","v":0}]
["1.1.",null,"ЗА ЛЕКОВЕ НА РЕЦЕПТ ",{"$f":"E11+F11","v":0}]
["1.2.",null,"ЗА ПОМАГАЛА НА НАЛОГ",{"$f":"E12+F12","v":0}]
["2.",null,"ЛЕКОВИ ",{"$f":"SUM(D14:D18)","v":2342},{"$f":"SUM(E14:E18)","v":15},{"$f":"SUM(F14:F18)","v":2327}]
["2.1.",null,"ЛЕКОВИ У ЗУ",{"$f":"E14+F14","v":2342},15,2327]
["2.2.",null,"ЦИТОСТАТИЦИ СА ЛИСТЕ ЛЕКОВА",{"$f":"E15+F15","v":0}]
["2.3.",null,"ЛЕКОВИ СА Ц ЛИСТЕ ПО ТЕНДЕРУ РФЗО",0]
["2.4.",null,"ЛЕКОВИ ЗА ХЕМОФИЛИЈУ",0]
["2.5.",null,"ОСТАЛИ ЛЕКОВИ (ВАН ЛИСТЕ)",0]
["3.",null,"КРВ И ПРОДУКТИ ОД КРВИ",0]
["4.",null,"УГРАДНИ МАТЕРИЈАЛ",{"$f":"SUM(D21:D27)","v":0},{"$f":"SUM(E21:E27)","v":0},{"$f":"SUM(F21:F27)","v":0}]
["4.1.",null,"ОСТАЛИ УГРАДНИ МАТЕРИЈАЛ У ОРТОПЕДИЈИ",0]
["4.2.",null,"ОРТОПЕДИЈА - ЕНДОПРОТЕЗЕ",0]
["4.3.",null," УГРАДНИ МАТЕРИЈАЛ У КАРДИОХИРУРГИЈИ",0]
["4.4.",null,"ПЕЈСМЕЈКЕРИ И ЕЛЕКТРОДЕ",0]
["4.5.",null,"СТЕНТОВИ",0]
["4.6.",null,"ГРАФТОВИ",0]
["4.7.",null,"ОСТАЛИ УГРАДНИ МАТЕРИЈАЛ",0]
["5.",null,"САНИТЕТСКИ И МЕДИЦИНСКИ ПОТРОШНИ МАТЕРИЈАЛ",1792,338,1454]
["6.",null,"РЕАГЕНСИ",1008,null,1008]
["7.",null,"МАТЕРИЈАЛ ЗА ДИЈАЛИЗУ СА ЛЕКОВИМА (РЕКОРМОН И ЕПРЕКС)",0]
["8.",null,"ИСХРАНА (НАМИРНИЦЕ И УСЛУГЕ)",0]
["9.",null,"ЕНЕРГЕНТИ",{"$f":"SUM(D33:D37)","v":4412},{"$f":"SUM(E33:E37)","v":311},{"$f":"SUM(F33:F37)","v":4101}]
["9.1.",null,"ДАЉИНСКО ГРЕЈАЊЕ",0]
["9.2.",null,"ГАС",0]
["9.3.",null,"ОБАВЕЗЕ ПРЕМА НИС-У",0]
["9.4.",null,"ЕЛЕКТРОПРИВРЕДА",1456,null,1456]
["9.5.",null,"ОБАВЕЗЕ ЗА ОСТАЛЕ ЕНЕРГЕНТЕ",2956,311,2645]
["10.",null,"ЈАВНО КОМУНАЛНО ПРЕДУЗЕЋЕ",{"$f":"SUM(D39:D41)","v":283},{"$f":"SUM(E39:E41)","v":161},{"$f":"SUM(F39:F41)","v":122}]
["10.1.",null,"ОБАВЕЗЕ ЗА ВОДУ",213,114,99]
["10.2.",null,"ОБАВЕЗЕ ПРЕМА ПТТ-У",70,47,23]
["10.3.",null,"ОБАВЕЗЕ ПРЕМА ОСТАЛИМ ЈКП",0]
["11.",null,"ОСТАЛЕ ОБАВЕЗЕ",3432,963,2469]
["12.",null,"УКУПНЕ ОБАВЕЗЕ - 252000 \n(1+2+3+4+5+6+7+8+9+10+11) ",{"$f":"+D10+D13+D19+D20+D28+D29+D30+D31+D32+D38+D42","v":13269},{"$f":"+E10+E13+E19+E20+E28+E29+E30+E31+E32+E38+E42","v":1788},{"$f":"+F10+F13+F19+F20+F28+F29+F30+F31+F32+F38+F42","v":11481},{"$f":"+IF(C46=0,\"\",\"Грешка, подаци нису сложени са подацима у Билансу стања!!!\")","v":""}]
[]
["Напомена: Подаци у овом обрасцу морају бити сложени са подацима у БИЛАНСУ СТАЊА"]
[null,null,{"$f":"+D43-ObrazacBS!G246","v":0}]
[]
[null,null,"ОБРАЗАЦ ПОПУНИО:",null,null,"ОДГОВОРНО ЛИЦЕ:"]
[null,null,"__________________________",null,null,"___________________"]
[null,null,"Телефон:__________________________"]

{"sheet":"ObrazacPO","index":7,"n_rows":34,"n_cols":10,"rows_kept":34,"cut":false,"hidden":false,"merged":[[23,6,24,6],[3,0,3,8],[7,3,7,5],[8,3,8,5],[9,3,9,5],[10,3,10,5],[11,3,11,5],[25,0,25,2],[26,0,26,2],[27,0,27,2],[12,3,12,5],[13,3,13,5],[14,3,14,5],[15,3,15,5],[16,3,16,5],[23,0,24,2],[23,3,23,5]]}
["РЕПУБЛИЧКИ ФОНД ЗА ЗДРАВСТВЕНО",null,null,null,null,null,"Образац ПО"]
["ОСИГУРАЊЕ - БЕОГРАД"]
["Јована Мариновића 2"]
["НЕНАПЛАЋЕНА ПОТРАЖИВАЊА ЗДРАВСТВЕНЕ УСТАНОВЕ НА ДАН  31.12.2025. ГОДИНЕ"]
[{"$f":"\"ФИЛИЈАЛА:   \" & Fili","v":"ФИЛИЈАЛА:   09 ВАЉЕВО"}]
[{"$f":"\"ЗДРАВСТВЕНА УСТАНОВА:  \" & ZDU","v":"ЗДРАВСТВЕНА УСТАНОВА:  100209001 ДЗ УБ"}]
[null,null,null,null,null,null,"(У хиљадама динара)"]
["Ред. бр.",null,"Конто","НАЗИВ",null,null,"31.12.2025."]
[1,null,2,3,null,null,4]
["I",null,122100,"Потраживања по основу продаје и друга потраживања (1+2+3+4+5+6+7)",null,null,{"$f":"SUM(G11:G17)","v":23960},null,null,{"$f":"+IF(G10=ObrazacBS!G91,\"\",\"Грешка, подаци нису сложени са подацима у Билансу стања!!!\")","v":""}]
[1,null,"део 122100","Од РФЗО",null,null,22858]
[2,null,"део 122100","Од Фонда за социјално осигурање војних осигураника"]
[3,null,"део 122100","Од Фонда здравства Црне Горе"]
[4,null,"део 122100","Од Фонда здравства Републике Српске"]
[5,null,"део 122100","Од Дистрикта Брчко"]
[6,null,"део 122100","Од других здравствених установа"]
[7,null,"део 122100","Остала потраживања",null,null,1102]
[]
["Напомена: Подаци у овом обрасцу морају бити сложени са подацима у БИЛАНСУ СТАЊА"]
[]
[]
["ПОДАЦИ О УКУПНОМ БРОЈУ ЗАПОСЛЕНИХ РАДНИКА"]
[]
["Период",null,null,"Укупан број запослених радника",null,null,"Укупан број запослених на бази остварених часова рада"]
[null,null,null,"На одређено","На неодређено","Укупно"]
[1,null,null,2,3,"4=2+3",5]
["31.12.2024.",null,null,19,140,{"$f":"SUM(D27:E27)","v":159},159]
["31.12.2025.",null,null,17,138,{"$f":"SUM(D28:E28)","v":155},168]
[]
[]
[]
["ОБРАЗАЦ ПОПУНИО:",null,null,null,null,null,"ОДГОВОРНО ЛИЦЕ:"]
["______________________",null,null,null,null,null,"__________________________"]
["Телефон:",null,"____________"]

{"sheet":"ObrazacZA","index":8,"n_rows":48,"n_cols":6,"rows_kept":48,"cut":false,"hidden":false,"merged":[[3,0,3,4]]}
["РЕПУБЛИЧКИ ФОНД ЗА ЗДРАВСТВЕНО",null,null,null,"Образац ЗА"]
["ОСИГУРАЊЕ - БЕОГРАД"]
["Јована Мариновића 2"]
["СТАЊЕ ЗАЛИХА НА ДАН 31.12.2025."]
[{"$f":"\"ФИЛИЈАЛА:   \" & Fili","v":"ФИЛИЈАЛА:   09 ВАЉЕВО"}]
[{"$f":"\"ЗДРАВСТВЕНА УСТАНОВА:  \" & ZDU","v":"ЗДРАВСТВЕНА УСТАНОВА:  100209001 ДЗ УБ"}]
[null,null,null,null,"(У хиљадама динара)"]
["Ред. Бр.",null,"Конто","Залихе","31.12.2025."]
[1,null,2,3,4]
["I",null,"020000","ЗАЛИХЕ (II+III+IV+V)",{"$f":"E11+E12+E13+E14","v":3458},{"$f":"+IF(E10=ObrazacBS!G42,\"\",\"Грешка, подаци нису сложени са подацима у Билансу стања!!!\")","v":""}]
["II",null,"021200","Залихе производње"]
["III",null,"021300","Залихе робе за даљу продају (лекови и помагала у апотекама)"]
["IV",null,"022100","Ситан инвентар"]
["V",null,"022200","Потрошни материјал (1+2+3+4)",{"$f":"+E15+E16+E17+E42","v":3458}]
[1,null,"022210","Материјал за сталне трошкове (грејање)",626]
[2,null,"022220","Материјал за поправке и одржавање"]
[3,null,"022230","Материјал за обављање делатности",{"$f":"E18+E19+E40+E41","v":2832}]
["3.1",null,"022231","Административни материјал"]
["3.2",null,"022237","Медицински и лабораторијски материјал",{"$f":"E20+E28+E29+E37+E38+E39","v":2816}]
["3.2.1",null,null,"Лекови (3.2.1.1+3.2.1.2+3.2.1.3+3.2.1.4+3.2.1.5+3.2.1.6+3.2.1.7)",{"$f":"SUM(E21:E27)","v":1351}]
["3.2.1.1",null,null,"Лекови у ЗУ",1351]
["3.2.1.2",null,null,"Вакцине"]
["3.2.1.3",null,null,"Цитостатици са листе лекова"]
["3.2.1.4",null,null,"Лекови са Ц листе по тендеру РФЗО"]
["3.2.1.5",null,null,"Лекови за хемофилију"]
["3.2.1.6",null,null,"Лекови за лечење ретких болести"]
["3.2.1.7",null,null,"Лекови ван листе лекова (без лекова за лечење ретких болести)"]
["3.2.2",null,null,"Крв и лабилни продукти од крви"]
["3.2.3",null,null,"Уградни материјал (3.2.3.1+3.2.3.2+3.2.3.3+3.2.3.4+3.2.3.5+3.2.3.6+3.2.3.7)",{"$f":"SUM(E30:E36)","v":0}]
["3.2.3.1",null,null,"Уградни материјал у ортопедији"]
["3.2.3.2",null,null,"Имплантанти у ортопедији"]
["3.2.3.3",null,null,"Уградни материјал у кардиохирургији"]
["3.2.3.4",null,null,"Пејсмекери и електроде"]
["3.2.3.5",null,null,"Стентови"]
["3.2.3.6",null,null,"Графтови"]
["3.2.3.7",null,null,"Остали уградни материјал"]
["3.2.4",null,null,"Санитетски и медицински потрошни материјал",962]
["3.2.5",null,null,"Реагенси",503]
["3.2.6",null,null,"Материјал за дијализу"]
["3.3",null,"022238","Материјал за домаћинство и угоститељство"]
["3.4",null,null,"Остали материјал за обављање делатности",16]
["4.",null,"022240","Залихе лекова на рецепт и помагала у апотекама"]
[]
["Напомена: Подаци у овом обрасцу морају бити сложени са подацима у БИЛАНСУ СТАЊА"]
[]
["ОБРАЗАЦ ПОПУНИО:",null,null,null,"ОДГОВОРНО ЛИЦЕ:"]
["______________________",null,null,null,"___________________"]
["Телефон:",null,"____________"]

{"sheet":"K9OOSO","index":9,"n_rows":33,"n_cols":5,"rows_kept":33,"cut":false,"hidden":false,"merged":[[10,0,10,1]]}
["РЕПУБЛИЧКИ ФОНД ЗА ЗДРАВСТВЕНО",null,null,null,"К9ООСО"]
["ОСИГУРАЊЕ - БЕОГРАД"]
["Јована Мариновића 2"]
[]
[null,null,"ОДСТУПАЊА ОД НОВЧАНОГ ТОКА У ПЕРИОДУ 01.01.- 31.12.2025. ГОДИНЕ"]
[]
[{"$f":"\"ФИЛИЈАЛА:   \" & Filijala","v":"ФИЛИЈАЛА:   09 ВАЉЕВО"}]
[{"$f":"\"ЗДРАВСТВЕНА УСТАНОВА:  \" & ZU","v":"ЗДРАВСТВЕНА УСТАНОВА:  100209001 ДЗ УБ"}]
[]
[null,null,null,null,"у хиљадама (000) динара"]
["Р. Бр.",null,"ОПИС","КОЛОНА УКУПНО","КОЛОНА 9 ООСО"]
[1,2,3,4,5]
["1.",null,"ПОЧЕТНО СТАЊЕ СРЕДСТАВА НА ДАН 01.01.2025.Г. ",{"$f":"D14+D15","v":2523},{"$f":"E14+E15","v":969}]
[null,"1.1.","Почетно стање средстава на подрачунима (група 121000)",2523,969]
[null,"1.2.","Почетно стање средстава у благајни (група 121000)"]
["2.",null,"НОВЧАНИ ПРИЛИВИ У ПЕРИОДУ 01.01.-31.12.2025.Г.",{"$f":"D17+D18+D19","v":426844},{"$f":"E17+E18+E19","v":394453}]
[null,"2.1.","Приходи и примања  који се исказују у обрасцу бр. 5.(класе 700000, 800000 и 900000)",426484,394453]
[null,"2.2.","Новчани приливи по основу наплаћеног ПДВ-а",360]
[null,"2.3.","Остали новчани приливи који нису исказани на класама у обрасцу бр. 5."]
["3.",null,"НОВЧАНИ ОДЛИВИ У ПЕРИОДУ 01.01.-31.12.2025.Г.",{"$f":"D21+D22+D23","v":428717},{"$f":"E21+E22+E23","v":395161}]
[null,"3.1.","Расходи и издаци који се исказују у обрасцу бр.5. (класе 400000, 500000 и 600000)",428258,395161]
[null,"3.2.","Новчани одливи по основу плаћеног ПДВ-а",385]
[null,"3.3.","Остали новчани одливи који нису исказани на класама у обрасцу бр. 5.",74]
["4.",null,"САЛДО СРЕДСТАВА НА ДАН 31.12.2025.г. (4 = (1+ 2- 3) = (4.1 + 4.2))",{"$f":"D13+D16-D20","v":650},{"$f":"E13+E16-E20","v":261}]
[null,"4.1.","Салдо средстава на подрачунима (група 121000)",650,261]
[null,"4.2.","Салдо средстава у благајни (група 121000)"]
[]
[null,null,{"$f":"+IF(D25+D26=D24,\"\",\"Грешка, збир 4.1 и 4.2 није једнак салду средстава у колони 4\")","v":""}]
[null,null,{"$f":"+IF(E25+E26=E24,\"\",\"Грешка, збир 4.1 и 4.2 није једнак салду средстава у колони 5\")","v":""}]
[null,null,{"$f":"+IF((ObrazacIB!E23+ObrazacIB!E147+ObrazacIB!E176)=K9OOSO!D17,\" \",\"Грешка, подаци о приходима и примањима у колони 4 нису усклађени са Обрасцем ИБ !!!\")","v":" "}]
[null,null,{"$f":"+IF((ObrazacIB!I23+ObrazacIB!I147+ObrazacIB!I176)=K9OOSO!E17,\" \",\"Грешка, подаци о приходима и примањима у колони 5 нису усклађени са Обрасцем ИБ !!!\")","v":" "}]
[null,null,{"$f":"+IF((ObrazacIB!E234+ObrazacIB!E430+ObrazacIB!E480-ObrazacIB!E310)=K9OOSO!D21,\" \",\"Грешка, подаци о расходима и издацима у колони 4 нису усклађени са Обрасцем ИБ !!!\")","v":" "}]
[null,null,{"$f":"+IF((ObrazacIB!I234+ObrazacIB!I430+ObrazacIB!I480)=K9OOSO!E21,\" \",\"Грешка, подаци о расходима и издацима у колони 5 нису усклађени са Обрасцем ИБ !!!\")","v":" "}]

{"sheet":"OZPR","index":10,"n_rows":308,"n_cols":10,"rows_kept":308,"cut":false,"hidden":false,"merged":[[17,9,19,9],[17,8,19,8],[36,9,38,9],[17,7,19,7],[36,7,38,7],[36,8,38,8],[17,6,19,6],[36,6,38,6],[36,4,38,4],[36,5,38,5],[17,5,19,5],[17,4,19,4],[36,1,38,1],[36,3,38,3],[17,0,19,0],[17,2,19,2],[36,2,38,2],[17,1,19,1],[36,0,38,0],[17,3,19,3]]}
["РЕПУБЛИЧКИ ФОНД ЗА ЗДРАВСТВЕНО",null,null,null,null,null,null,null,null,"ОЗПР"]
["ОСИГУРАЊЕ - БЕОГРАД"]
["Јована Мариновића 2"]
[]
[]
[]
[{"$f":"\"ФИЛИЈАЛА:   \" & Filijala","v":"ФИЛИЈАЛА:   09 ВАЉЕВО"}]
[{"$f":"\"ЗДРАВСТВЕНА УСТАНОВА:  \" & ZU","v":"ЗДРАВСТВЕНА УСТАНОВА:  100209001 ДЗ УБ"}]
[]
[]
[]
[]
[]
["ОБРАЗАЦ ЗА ПАРТИЦИПАЦИЈУ И РЕФУНДАЦИЈЕ"]
["у периоду од 01.01.2025. - 31.12.2025. године"]
["I. УКУПНИ ПРИХОДИ И ПРИМАЊА"]
[null,null,null,null,null,null,null,null,null,"у хиљадама (000) динара"]
["Ознака ОП","Број конта","Опис","Приходи по основу партиципације за услуге здравствене заштите и рефундација","Приходи по основу партиципације за  лекове издате на рецепт и помагала издатa на налог и рефундација","Приходи по основу укупне партиципације и рефундација","Приход од НСЗ","Приход од Фонда ПИО","Приход од Фонда СОВО","УКУПНО"]
[]
[]
[1,2,3,4,5,"6=4+5",7,8,9,"10=6+7+8+9"]
[5001,null,"ТЕКУЋИ ПРИХОДИ И ПРИМАЊА ОД ПРОДАЈЕ НЕФИНАНСИЈСКЕ ИМОВИНЕ (5002)",{"$f":"D23","v":724},{"$f":"E23","v":0},{"$f":"D22+E22","v":724},{"$f":"G23","v":0},{"$f":"H23","v":0},{"$f":"I23","v":0},{"$f":"+F22+G22+H22+I22","v":724}]
[5002,700000,"ТЕКУЋИ ПРИХОДИ (5003 + 5047 + 5057 + 5069 + 5094 + 5099 + 5103)",{"$f":"D24+D29","v":724},{"$f":"E24+E29","v":0},724,{"$f":"G24+G29","v":0},{"$f":"H24+H29","v":0},{"$f":"I24+I29","v":0},724]
[5094,770000,"МЕМОРАНДУМСКЕ СТАВКЕ ЗА РЕФУНДАЦИЈУ РАСХОДА (5095 + 5097)",{"$f":"D25+D27","v":0},{"$f":"E25+E27","v":0},0,{"$f":"G25+G27","v":0},{"$f":"H25+H27","v":0},{"$f":"I25+I27","v":0},0]
[5095,771000,"МЕМОРАНДУМСКЕ СТАВКЕ ЗА РЕФУНДАЦИЈУ РАСХОДА (5096)",{"$f":"D26","v":0},{"$f":"E26","v":0},0,{"$f":"+G26","v":0},{"$f":"H26","v":0},{"$f":"I26","v":0},0]
[5096,771100,"Меморандумске ставке за рефундацију расхода",null,null,0,null,null,null,0]
[5097,772000,"МЕМОРАНДУМСКЕ СТАВКЕ ЗА РЕФУНДАЦИЈУ РАСХОДА ИЗ ПРЕТХОДНЕ ГОДИНЕ (5098)",{"$f":"D28","v":0},{"$f":"E28","v":0},0,{"$f":"G28","v":0},{"$f":"H28","v":0},{"$f":"I28","v":0},0]
[5098,772100,"Меморандумске ставке за рефундацију расхода из претходне године",null,null,0,null,null,null,0]
[5099,780000,"ТРАНСФЕРИ ИЗМЕЂУ БУЏЕТСКИХ КОРИСНИКА НА ИСТОМ НИВОУ (5100)",{"$f":"D30","v":724},{"$f":"E30","v":0},724,{"$f":"G30","v":0},0,0,724]
[5100,781000,"ТРАНСФЕРИ ИЗМЕЂУ БУЏЕТСКИХ КОРИСНИКА НА ИСТОМ НИВОУ (5101 + 5102)",{"$f":"D31","v":724},{"$f":"E31","v":0},724,0,0,0,724]
[5101,781100,"Трансфери између буџетских корисника на истом нивоу",724,null,724,null,null,null,724]
[5171,null,"УКУПНИ ПРИХОДИ И ПРИМАЊА (5001)",{"$f":"D22","v":724},{"$f":"E22","v":0},724,{"$f":"G22","v":0},{"$f":"H22","v":0},{"$f":"I22","v":0},724]
[]
[]
["II. УКУПНИ РАСХОДИ И ИЗДАЦИ"]
[null,null,null,null,null,null,null,null,null,"у хиљадама (000) динара"]
["Ознака ОП","Број конта","Опис","Расходи из партиципације за услуге здравствене заштите и рефундација","Расходи из партиципације за  лекове издате на рецепт и помагала издатa на налог и рефундација","Расходи из укупне партиципације и рефундација","Расход од НСЗ","Расход од Фонда ПИО","Приход од Фонда СОВО","УКУПНО"]
[]
[]
[1,2,3,4,5,"6=4+5",7,8,9,"10=6+7+8+9"]
[5172,null,"ТЕКУЋИ РАСХОДИ И ИЗДАЦИ ЗА НЕФИНАНСИЈСКЕ ИМОВИНЕ (5173 + 5341)",{"$f":"D42+D210","v":743},0,{"$f":"D41+E41","v":743},0,0,0,{"$f":"+F41+G41+H41+I41","v":743}]
[5173,400000,"ТЕКУЋИ РАСХОДИ (5174 + 5196 + 5241 + 5256 + 5280 + 5293 + 5309 + 5324)",{"$f":"D43+D65+D110+D125+D149+D162+D178+D193","v":743},0,743,0,0,0,743]
[5174,410000,"РАСХОДИ ЗА ЗАПОСЛЕНЕ (5175 + 5177 + 5181 + 5183 + 5188 + 5190 + 5192 + 5194)",{"$f":"D44+D46+D50+D52+D57+D59+D61+D63","v":0},0,0,0,0,0,0]
[5175,411000,"ПЛАТЕ, ДОДАЦИ И НАКНАДЕ ЗАПОСЛЕНИХ (ЗАРАДЕ) (5176)",{"$f":"D45","v":0},0,0,0,0,0,0]
[5176,411100,"Плате, додаци и накнаде запослених",null,null,0,null,null,null,0]
[5177,412000,"СОЦИЈАЛНИ ДОПРИНОСИ НА ТЕРЕТ ПОСЛОДАВЦА (од 5178 до 5180)",{"$f":"SUM(D47:D49)","v":0},0,0,0,0,0,0]
[5178,412100,"Допринос за пензијско и инвалидско осигурање",null,null,0,null,null,null,0]
[5179,412200,"Допринос за здравствено осигурање",null,null,0,null,null,null,0]
[5180,412300,"Допринос за незапосленост",null,null,0,null,null,null,0]
[5181,413000,"НАКНАДЕ У НАТУРИ (5182)",{"$f":"D51","v":0},0,0,0,0,0,0]
[5182,413100,"Накнаде у натури",null,null,0,null,null,null,0]
[5183,414000,"СОЦИЈАЛНА ДАВАЊА ЗАПОСЛЕНИМА (од 5184 до 5187)",{"$f":"SUM(D53:D56)","v":0},0,0,0,0,0,0]
[5184,414100,"Исплата накнада за време одсуствовања с посла на терет фондова",null,null,0,null,null,null,0]
[5185,414200,"Расходи за образовање деце запослених",null,null,0,null,null,null,0]
[5186,414300,"Отпремнине и помоћи",null,null,0,null,null,null,0]
[5187,414400,"Помоћ у медицинском лечењу запосленог или чланова уже породице и друге помоћи запосленом",null,null,0,null,null,null,0]
[5188,415000,"НАКНАДА ТРОШКОВА ЗА ЗАПОСЛЕНЕ (5189)",{"$f":"D58","v":0},0,0,0,0,0,0]
[5189,415100,"Накнаде трошкова за запослене",null,null,0,null,null,null,0]
[5190,416000,"НАГРАДЕ ЗАПОСЛЕНИМА И ОСТАЛИ ПОСЕБНИ РАСХОДИ (5191)",{"$f":"D60","v":0},0,0,0,0,0,0]
[5191,416100,"Награде запосленима и остали посебни расходи",null,null,0,null,null,null,0]
[5192,417000,"ПОСЛАНИЧКИ ДОДАТАК (5193)",{"$f":"D62","v":0},0,0,0,0,0,0]
[5193,417100,"Посланички додатак",null,null,0,null,null,null,0]
[5194,418000,"СУДИЈСКИ ДОДАТАК (5195)",{"$f":"D64","v":0},0,0,0,0,0,0]
[5195,418100,"Судијски додатак",null,null,0,null,null,null,0]
[5196,420000,"КОРИШЋЕЊЕ УСЛУГА И РОБА (5197 + 5205 + 5211 + 5220 + 5228 + 5231) ",{"$f":"D66+D74+D80+D89+D97+D100","v":724},0,724,0,0,0,724]
[5197,421000,"СТАЛНИ ТРОШКОВИ (од 5198 до 5204)",{"$f":"SUM(D67:D73)","v":282},0,282,0,0,0,282]
[5198,421100,"Трошкови платног промета и банкарских услуга",3,null,3,null,null,null,3]
[5199,421200,"Енергетске услуге",null,null,0,null,null,null,0]
[5200,421300,"Комуналне услуге",179,null,179,null,null,null,179]
[5201,421400,"Услуге комуникација",34,null,34,null,null,null,34]
[5202,421500,"Трошкови осигурања",66,null,66,null,null,null,66]
[5203,421600,"Закуп имовине и опреме",null,null,0,null,null,null,0]
[5204,421900,"Остали трошкови",null,null,0,null,null,null,0]
[5205,422000,"ТРОШКОВИ ПУТОВАЊА (од 5206 до 5210)",{"$f":"SUM(D75:D79)","v":0},0,0,0,0,0,0]
[5206,422100,"Трошкови службених путовања у земљи",null,null,0,null,null,null,0]
[5207,422200,"Трошкови службених путовања у иностранство",null,null,0,null,null,null,0]
[5208,422300,"Трошкови путовања у оквиру редовног рада",null,null,0,null,null,null,0]
[5209,422400,"Трошкови путовања ученика",null,null,0,null,null,null,0]
[5210,422900,"Остали трошкови транспорта",null,null,0,null,null,null,0]
[5211,423000,"УСЛУГЕ ПО УГОВОРУ (од 5212 до 5219)",{"$f":"SUM(D81:D88)","v":92},0,92,0,0,0,92]
[5212,423100,"Административне услуге",null,null,0,null,null,null,0]
[5213,423200,"Компјутерске услуге",92,null,92,null,null,null,92]
[5214,423300,"Услуге образовања и усавршавања запослених",null,null,0,null,null,null,0]
[5215,423400,"Услуге информисања",null,null,0,null,null,null,0]
[5216,423500,"Стручне услуге",null,null,0,null,null,null,0]
[5217,423600,"Услуге за домаћинство и угоститељство",null,null,0,null,null,null,0]
[5218,423700,"Репрезентација",null,null,0,null,null,null,0]
[5219,423900,"Остале опште услуге",null,null,0,null,null,null,0]
[5220,424000,"СПЕЦИЈАЛИЗОВАНЕ УСЛУГЕ (од 5221 до 5227)",{"$f":"SUM(D90:D96)","v":11},0,11,0,0,0,11]
[5221,424100,"Пољопривредне услуге",null,null,0,null,null,null,0]
[5222,424200,"Услуге образовања, културе и спорта",null,null,0,null,null,null,0]
[5223,424300,"Медицинске услуге",11,null,11,null,null,null,11]
[5224,424400,"Услуге одржавања аутопутева",null,null,0,null,null,null,0]
[5225,424500,"Услуге одржавања националних паркова и природних површина",null,null,0,null,null,null,0]
[5226,424600,"Услуге очувања животне средине, науке и геодетске услуге",null,null,0,null,null,null,0]
[5227,424900,"Остале специјализоване услуге",null,null,0,null,null,null,0]
[5228,425000,"ТЕКУЋЕ ПОПРАВКЕ И ОДРЖАВАЊЕ (5229 + 5230)",{"$f":"D98+D99","v":166},0,166,0,0,0,166]
[5229,425100,"Текуће поправке и одржавање зграда и објеката",55,null,55,null,null,null,55]
[5230,425200,"Текуће поправке и одржавање опреме",111,null,111,null,null,null,111]
[5231,426000,"МАТЕРИЈАЛ (од 5232 до 5240)",{"$f":"SUM(D101:D109)","v":173},0,173,0,0,0,173]
[5232,426100,"Административни материјал",32,null,32,null,null,null,32]
[5233,426200,"Материјали за пољопривреду",null,null,0,null,null,null,0]
[5234,426300,"Материјали за образовање и усавршавање запослених",null,null,0,null,null,null,0]
[5235,426400,"Материјали за саобраћај",1,null,1,null,null,null,1]
[5236,426500,"Материјали за очување животне средине и науку",null,null,{"$f":"D105+E105","v":0},null,null,null,{"$f":"+F105+G105+H105+I105","v":0}]
[5237,426600,"Материјали за образовање, културу и спорт",null,null,0,null,null,null,0]
[5238,426700,"Медицински и лабораторијски материјали",null,null,0,null,null,null,0]
[5239,426800,"Материјали за одржавање хигијене и угоститељство",null,null,0,null,null,null,0]
[5240,426900,"Материјали за посебне намене",140,null,140,null,null,null,140]
[5241,430000,"АМОРТИЗАЦИЈА И УПОТРЕБА СРЕДСТАВА ЗА РАД (5242 + 5246 + 5248 + 5250 + 5254)",{"$f":"D111+D115+D117+D119+D123","v":0},0,0,0,0,0,0]
[5242,431000,"АМОРТИЗАЦИЈА НЕКРЕТНИНА И ОПРЕМЕ (од 5243 до 5245)",{"$f":"SUM(D112:D114)","v":0},0,0,0,0,0,0]
[5243,431100,"Амортизација зграда и грађевинскиx објеката",null,null,0,null,null,null,0]
[5244,431200,"Амортизација опреме",null,null,0,null,null,null,0]
[5245,431300,"Амортизација осталих некретнина и опреме",null,null,0,null,null,null,0]
[5246,432000,"АМОРТИЗАЦИЈА КУЛТИВИСАНЕ ИМОВИНЕ (5247)",{"$f":"D116","v":0},0,0,0,0,0,0]
[5247,432100,"Амортизација култивисане опреме",null,null,0,null,null,null,0]
[5248,433000,"УПОТРЕБА ДРАГОЦЕНОСТИ (5249)",{"$f":"D118","v":0},0,0,0,0,0,0]
[5249,433100,"Употреба драгоцености",null,null,0,null,null,null,0]
[5250,434000,"УПОТРЕБА ПРИРОДНЕ ИМОВИНЕ (од 5251 до 5253)",{"$f":"SUM(D120:D122)","v":0},0,0,0,0,0,0]
[5251,434100,"Употреба земљишта",null,null,0,null,null,null,0]
[5252,434200,"Употреба подземног блага",null,null,0,null,null,null,0]
[5253,434300,"Употреба шума и вода",null,null,0,null,null,null,0]
[5254,435000,"АМОРТИЗАЦИЈА НЕМАТЕРИЈАЛНЕ ИМОВИНЕ (5255)",{"$f":"D124","v":0},0,0,0,0,0,0]
[5255,435100,"Амортизација нематеријалне имовине",null,null,0,null,null,null,0]
[5256,440000,"ОТПЛАТА КАМАТА И ПРАТЕЋИ ТРОШКОВИ ЗАДУЖИВАЊА (5257 + 5267 + 5274 + 5276)",{"$f":"D126+D136+D143+D145","v":0},0,0,0,0,0,0]
[5257,441000,"ОТПЛАТЕ ДОМАЋИХ КАМАТА (од 5258 до 5266)",{"$f":"SUM(D127:D135)","v":0},0,0,0,0,0,0]
[5258,441100,"Отплата камата на домаће хартије од вредности",null,null,0,null,null,null,0]
[5259,441200,"Отплата камата осталим нивоима власти",null,null,0,null,null,null,0]
[5260,441300,"Отплата камата домаћим јавним финансијским институцијама",null,null,0,null,null,null,0]
[5261,441400,"Отплата камата домаћим пословним банкама",null,null,0,null,null,null,0]
[5262,441500,"Отплата камата осталим домаћим кредиторима",null,null,0,null,null,null,0]
[5263,441600,"Отплата камата домаћинствима у земљи",null,null,0,null,null,null,0]
[5264,441700,"Отплата камата на домаће финансијске деривате",null,null,0,null,null,null,0]
[5265,441800,"Отплата камата на домаће менице",null,null,0,null,null,null,0]
[5266,441900,"Финансијске промене на финансијским лизинзима",null,null,0,null,null,null,0]
[5267,442000,"ОТПЛАТА СТРАНИХ КАМАТА (од 5268 до 5273)",{"$f":"SUM(D137:D142)","v":0},0,0,0,0,0,0]
[5268,442100,"Отплата камата на хартије од вредности емитоване на иностраном финансијском тржишту",null,null,0,null,null,null,0]
[5269,442200,"Отплата камата страним владама",null,null,0,null,null,null,0]
[5270,442300,"Отплата камата мултилатералним институцијама",null,null,0,null,null,null,0]
[5271,442400,"Отплата камата страним пословним банкама",null,null,0,null,null,null,0]
[5272,442500,"Отплата камата осталим страним кредиторима",null,null,0,null,null,null,0]
[5273,442600,"Отплата камата на стране финансијске деривате",null,null,0,null,null,null,0]
[5274,443000,"ОТПЛАТА КАМАТА ПО ГАРАНЦИЈАМА (5275)",{"$f":"D144","v":0},0,0,0,0,0,0]
[5275,443100,"Отплата камата по гаранцијама",null,null,0,null,null,null,0]
[5276,444000,"ПРАТЕЋИ ТРОШКОВИ ЗАДУЖИВАЊА (од 5277 до 5279)",{"$f":"SUM(D146:D148)","v":0},0,0,0,0,0,0]
[5277,444100,"Негативне курсне разлике",null,null,0,null,null,null,0]
[5278,444200,"Казне за кашњење",null,null,0,null,null,null,0]
[5279,444300,"Остали пратећи трошкови задуживања",null,null,0,null,null,null,0]
[5280,450000,"СУБВЕНЦИЈЕ (5281 + 5284 + 5287 + 5290)",{"$f":"D150+D153+D156+D159","v":0},0,0,0,0,0,0]
[5281,451000,"СУБВЕНЦИЈЕ ЈАВНИМ НЕФИНАНСИЈСКИМ ПРЕДУЗЕЋИМА И ОРГАНИЗАЦИЈАМА (5282 + 5283)",{"$f":"D151+D152","v":0},0,0,0,0,0,0]
[5282,451100,"Текуће субвенције јавним нефинансијским предузећима и организацијама",null,null,0,null,null,null,0]
[5283,451200,"Капиталне субвенције јавним нефинансијским предузећима и организацијама",null,null,0,null,null,null,0]
[5284,452000,"СУБВЕНЦИЈЕ ПРИВАТНИМ ФИНАНСИЈСКИМ ИНСТИТУЦИЈАМА (5285 + 5286)",{"$f":"D154+D155","v":0},0,0,0,0,0,0]
[5285,452100,"Текуће субвенције приватним финансијским институцијама",null,null,0,null,null,null,0]
[5286,452200,"Капиталне субвенције приватним финансијским институцијама",null,null,0,null,null,null,0]
[5287,453000,"СУБВЕНЦИЈЕ ЈАВНИМ ФИНАНСИЈСКИМ ИНСТИТУЦИЈАМА (5288 + 5289)",{"$f":"D157+D158","v":0},0,0,0,0,0,0]
[5288,453100,"Текуће субвенције јавним финансијским институцијама",null,null,0,null,null,null,0]
[5289,453200,"Капиталне субвенције јавним финансијским институцијама",null,null,0,null,null,null,0]
[5290,454000,"СУБВЕНЦИЈЕ ПРИВАТНИМ ПРЕДУЗЕЋИМА (5291 + 5292)",{"$f":"D160+D161","v":0},0,0,0,0,0,0]
[5291,454100,"Текуће субвенције приватним предузећима",null,null,0,null,null,null,0]
[5292,454200,"Капиталне субвенције приватним предузећима",null,null,0,null,null,null,0]
[5293,460000,"ДОНАЦИЈЕ, ДОТАЦИЈЕ И ТРАНСФЕРИ (5294 + 5297 + 5300 + 5303 + 5306)",{"$f":"D163+D166+D169+D172+D175","v":0},0,0,0,0,0,0]
[5294,461000,"ДОНАЦИЈЕ СТРАНИМ ВЛАДАМА (5295 + 5296)",{"$f":"D164+D165","v":0},0,0,0,0,0,0]
[5295,461100,"Текуће донације страним владама",null,null,0,null,null,null,0]
[5296,461200,"Капиталне донације страним владама",null,null,0,null,null,null,0]
[5297,462000,"ДОТАЦИЈЕ МЕЂУНАРОДНИМ ОРГАНИЗАЦИЈАМА (5298 + 5299)",{"$f":"D167+D168","v":0},0,0,0,0,0,0]
[5298,462100,"Текуће дотације међународним организацијама",null,null,0,null,null,null,0]
[5299,462200,"Капиталне дотације међународним организацијама",null,null,0,null,null,null,0]
[5300,463000,"ТРАНСФЕРИ ОСТАЛИМ НИВОИМА ВЛАСТИ (5301 + 5302)",{"$f":"D170+D171","v":0},0,{"$f":"D169+E169","v":0},0,0,0,{"$f":"+F169+G169+H169+I169","v":0}]
[5301,463100,"Текући трансфери осталим нивоима власти",null,null,0,null,null,null,0]
[5302,463200,"Капитални трансфери осталим нивоима власти",null,null,0,null,null,null,0]
[5303,464000,"ДОТАЦИЈЕ ОРГАНИЗАЦИЈАМА ОБАВЕЗНОГ СОЦИЈАЛНОГ ОСИГУРАЊА (5304 + 5305)",{"$f":"D173+D174","v":0},0,0,0,0,0,0]
[5304,464100,"Текуће дотације организацијама обавезног социјалног осигурања",null,null,0,null,null,null,0]
[5305,464200,"Капиталне дотације организацијама обавезног социјалног осигурања",null,null,0,null,null,null,0]
[5306,465000,"ОСТАЛЕ ДОТАЦИЈЕ И ТРАНСФЕРИ (5307 + 5308)",{"$f":"D176+D177","v":0},0,0,0,0,0,0]
[5307,465100,"Остале текуће дотације и трансфери",null,null,0,null,null,null,0]
[5308,465200,"Остале капиталне дотације и трансфери",null,null,0,null,null,null,0]
[5309,470000,"СОЦИЈАЛНО ОСИГУРАЊЕ И СОЦИЈАЛНА ЗАШТИТА (5310 + 5314)",{"$f":"D179+D183","v":0},0,0,0,0,0,0]
[5310,471000,"ПРАВА ИЗ СОЦИЈАЛНОГ ОСИГУРАЊА (ОРГАНИЗАЦИЈЕ ОБАВЕЗНОГ СОЦИЈАЛНОГ ОСИГУРАЊА) (од 5311 до 5313)",{"$f":"SUM(D180:D182)","v":0},0,0,0,0,0,0]
[5311,471100,"Права из социјалног осигурања која се исплаћују непосредно домаћинствима",null,null,0,null,null,null,0]
[5312,471200,"Права из социјалног осигурања која се исплаћују непосредно пружаоцима услуга",null,null,0,null,null,null,0]
[5313,471900,"Трансфери другим организацијама обавезног социјалног осигурања за доприносе за осигурање",null,null,0,null,null,null,0]
[5314,472000,"НАКНАДЕ ЗА СОЦИЈАЛНУ ЗАШТИТУ ИЗ БУЏЕТА (од 5315 до 5323)",{"$f":"SUM(D184:D192)","v":0},0,0,0,0,0,0]
[5315,472100,"Накнаде из буџета у случају болести и инвалидности",null,null,0,null,null,null,0]
[5316,472200,"Накнаде из буџета за породиљско одсуство",null,null,0,null,null,null,0]
[5317,472300,"Накнаде из буџета за децу и породицу",null,null,0,null,null,null,0]
[5318,472400,"Накнаде из буџета за случај незапослености",null,null,0,null,null,null,0]
[5319,472500,"Старосне и породичне пензије из буџета",null,null,0,null,null,null,0]
[5320,472600,"Накнаде из буџета у случају смрти",null,null,0,null,null,null,0]
[5321,472700,"Накнаде из буџета за образовање, културу, науку и спорт",null,null,0,null,null,null,0]
[5322,472800,"Накнаде из буџета за становање и живот",null,null,0,null,null,null,0]
[5323,472900,"Остале накнаде из буџета",null,null,0,null,null,null,0]
[5324,480000,"ОСТАЛИ РАСХОДИ (5325 + 5328 + 5332 + 5334 + 5337 + 5339)",{"$f":"D194+D197+D201+D203+D206+D208","v":19},0,19,0,0,0,19]
[5325,481000,"ДОТАЦИЈЕ НЕВЛАДИНИМ ОРГАНИЗАЦИЈАМА (5326 + 5327)",{"$f":"D195+D196","v":0},0,0,0,0,0,0]
[5326,481100,"Дотације непрофитним организацијама које пружају помоћ домаћинствима",null,null,0,null,null,null,0]
[5327,481900,"Дотације осталим непрофитним институцијама",null,null,0,null,null,null,0]
[5328,482000,"ПОРЕЗИ, ОБАВЕЗНЕ ТАКСЕ,  КАЗНЕ, ПЕНАЛИ И КАМАТЕ (од 5329 до 5331)",{"$f":"SUM(D198:D200)","v":19},0,19,0,0,0,19]
[5329,482100,"Остали порези",19,null,19,null,null,null,19]
[5330,482200,"Обавезне таксе",null,null,0,null,null,null,0]
[5331,482300,"Новчане казне, пенали и камате",null,null,0,null,null,null,0]
[5332,483000,"НОВЧАНЕ КАЗНЕ И ПЕНАЛИ ПО РЕШЕЊУ СУДОВА (5333)",{"$f":"D202","v":0},0,0,0,0,0,0]
[5333,483100,"Новчане казне и пенали по решењу судова",null,null,0,null,null,null,0]
[5334,484000,"НАКНАДА ШТЕТЕ ЗА ПОВРЕДЕ ИЛИ ШТЕТУ НАСТАЛУ УСЛЕД ЕЛЕМЕНТАРНИХ НЕПОГОДА ИЛИ ДРУГИХ ПРИРОДНИХ УЗРОКА (5335 + 5336)",{"$f":"D204+D205","v":0},0,0,0,0,0,0]
[5335,484100,"Накнада штете за повреде или штету насталу услед елементарних непогода",null,null,0,null,null,null,0]
[5336,484200,"Накнада штете од дивљачи",null,null,0,null,null,null,0]
[5337,485000,"НАКНАДА ШТЕТЕ ЗА ПОВРЕДЕ ИЛИ ШТЕТУ НАНЕТУ ОД СТРАНЕ ДРЖАВНИХ ОРГАНА (5338)",{"$f":"D207","v":0},0,0,0,0,0,0]
[5338,485100,"Накнада штете за повреде или штету нанетих од стране државних органа",null,null,0,null,null,null,0]
[5339,489000,"РАСХОДИ КОЈИ СЕ ФИНАНСИРАЈУ ИЗ СРЕДСТАВА ЗА РЕАЛИЗАЦИЈУ НАЦИОНАЛНОГ ИНВЕСТИЦИОНОГ ПЛАНА (5340)",{"$f":"D209","v":0},0,0,0,0,0,0]
[5340,489100,"Расходи који се финансирају из средстава за реализацију националног инвестиционог плана",null,null,0,null,null,null,0]
[5341,500000,"ИЗДАЦИ ЗА НЕФИНАНСИЈСКУ ИМОВИНУ (5342 + 5364 + 5373 + 5376 + 5384)",{"$f":"D211+D233+D242+D245+D253","v":0},0,0,0,0,0,0]
[5342,510000,"ОСНОВНА СРЕДСТВА (5343 + 5348 + 5358 + 5360 + 5362)",{"$f":"D212+D217+D227+D229+D231","v":0},0,0,0,0,0,0]
[5343,511000,"ЗГРАДЕ И ГРАЂЕВИНСКИ ОБЈЕКТИ (од 5344 до 5347)",{"$f":"SUM(D213:D216)","v":0},0,0,0,0,0,0]
[5344,511100,"Куповина зграда и објеката",null,null,0,null,null,null,0]
[5345,511200,"Изградња зграда и објеката",null,null,0,null,null,null,0]
[5346,511300,"Капитално одржавање зграда и објеката",null,null,0,null,null,null,0]
[5347,511400,"Пројектно планирање",null,null,0,null,null,null,0]
[5348,512000,"МАШИНЕ И ОПРЕМА (од 5349 до 5357)",{"$f":"SUM(D218:D226)","v":0},0,0,0,0,0,0]
[5349,512100,"Опрема за саобраћај",null,null,0,null,null,null,0]
[5350,512200,"Административна опрема",null,null,0,null,null,null,0]
[5351,512300,"Опрема за пољопривреду",null,null,0,null,null,null,0]
[5352,512400,"Опрема за заштиту животне средине",null,null,0,null,null,null,0]
[5353,512500,"Медицинска и лабораторијска опрема",null,null,0,null,null,null,0]
[5354,512600,"Опрема за образовање, културу и спорт",null,null,0,null,null,null,0]
[5355,512700,"Опрема за војску",null,null,0,null,null,null,0]
[5356,512800,"Опрема за јавну безбедност",null,null,0,null,null,null,0]
[5357,512900,"Опрема за производњу, моторна, непокретна и немоторна опрема",null,null,0,null,null,null,0]
[5358,513000,"ОСТАЛЕ НЕКРЕТНИНЕ И ОПРЕМА (5359)",{"$f":"D228","v":0},0,0,0,0,0,0]
[5359,513100,"Остале некретнине и опрема",null,null,0,null,null,null,0]
[5360,514000,"КУЛТИВИСАНА ИМОВИНА (5361)",{"$f":"D230","v":0},0,0,0,0,0,0]
[5361,514100,"Култивисана имовина",null,null,0,null,null,null,0]
[5362,515000,"НЕМАТЕРИЈАЛНА ИМОВИНА (5363)",{"$f":"D232","v":0},0,0,0,0,0,0]
[5363,515100,"Нематеријална имовина",null,null,0,null,null,null,0]
[5364,520000,"ЗАЛИХЕ (5365 + 5367 + 5371)",{"$f":"D234+D236+D240","v":0},0,{"$f":"D233+E233","v":0},0,0,0,{"$f":"+F233+G233+H233+I233","v":0}]
[5365,521000,"РОБНЕ РЕЗЕРВЕ (5366)",{"$f":"D235","v":0},0,0,0,0,0,0]
[5366,521100,"Робне резерве",null,null,0,null,null,null,0]
[5367,522000,"ЗАЛИХЕ ПРОИЗВОДЊЕ (од 5368 до 5370)",{"$f":"SUM(D237:D239)","v":0},0,0,0,0,0,0]
[5368,522100,"Залихе материјала",null,null,0,null,null,null,0]
[5369,522200,"Залихе недовршене производње",null,null,0,null,null,null,0]
[5370,522300,"Залихе готових производа",null,null,0,null,null,null,0]
[5371,523000,"ЗАЛИХЕ РОБЕ ЗА ДАЉУ ПРОДАЈУ (5372)",{"$f":"D241","v":0},0,0,0,0,0,0]
[5372,523100,"Залихе робе за даљу продају",null,null,0,null,null,null,0]
[5373,530000,"ДРАГОЦЕНОСТИ (5374)",{"$f":"D243","v":0},0,0,0,0,0,0]
[5374,531000,"ДРАГОЦЕНОСТИ (5375)",0,0,0,0,0,0,0]
[5375,531100,"Драгоцености",null,null,0,null,null,null,0]
[5376,540000,"ПРИРОДНА ИМОВИНА (5377 + 5379 + 5381)",{"$f":"D246+D248+D250","v":0},0,0,0,0,0,0]
[5377,541000,"ЗЕМЉИШТЕ (5378)",{"$f":"D247","v":0},0,0,0,0,0,0]
[5378,541100,"Земљиште",null,null,0,null,null,null,0]
[5379,542000,"РУДНА БОГАТСТВА (5380)",{"$f":"D249","v":0},0,0,0,0,0,0]
[5380,542100,"Копови",null,null,0,null,null,null,0]
[5381,543000,"ШУМЕ И ВОДЕ (5382 + 5383)",{"$f":"D251+D252","v":0},0,0,0,0,0,0]
[5382,543100,"Шуме",null,null,0,null,null,null,0]
[5383,543200,"Воде",null,null,0,null,null,null,0]
[5384,550000,"НЕФИНАНСИЈСКА ИМОВИНА КОЈА СЕ ФИНАНСИРА ИЗ СРЕДСТАВА ЗА РЕАЛИЗАЦИЈУ НАЦИОНАЛНОГ ИНВЕСТИЦИОНОГ ПЛАНА (5385)",{"$f":"D254","v":0},0,0,0,0,0,0]
[5385,551000,"НЕФИНАНСИЈСКА ИМОВИНА КОЈА СЕ ФИНАНСИРА ИЗ СРЕДСТАВА ЗА РЕАЛИЗАЦИЈУ НАЦИОНАЛНОГ ИНВЕСТИЦИОНОГ ПЛАНА (5386)",0,0,0,0,0,0,0]
[5386,551100,"Нефинансијска имовина која се финансира из средстава за реализацију националног инвестиционог плана",null,null,0,null,null,null,0]
[5387,600000,"ИЗДАЦИ ЗА ОТПЛАТУ ГЛАВНИЦЕ И НАБАВКУ ФИНАНСИЈСКЕ ИМОВИНЕ (5388 + 5413)",{"$f":"D257+D282","v":0},0,0,0,0,0,0]
[5388,610000,"ОТПЛАТА ГЛАВНИЦЕ (5389 + 5399 + 5407 + 5409 + 5411)",{"$f":"D258+D268+D276+D278+D280","v":0},0,0,0,0,0,0]
[5389,611000,"ОТПЛАТА ГЛАВНИЦЕ ДОМАЋИМ КРЕДИТОРИМА (од 5390 до 5398)",{"$f":"SUM(D259:D267)","v":0},0,0,0,0,0,0]
[5390,611100,"Отплата главнице на домаће хартије од вредности, изузев акција",null,null,0,null,null,null,0]
[5391,611200,"Отплата главнице осталим нивоима власти",null,null,0,null,null,null,0]
[5392,611300,"Отплата главнице домаћим јавним финансијским институцијама",null,null,0,null,null,null,0]
[5393,611400,"Отплата главнице домаћим пословним банкама",null,null,0,null,null,null,0]
[5394,611500,"Отплата главнице осталим домаћим кредиторима",null,null,0,null,null,null,0]
[5395,611600,"Отплата главнице домаћинствима у земљи",null,null,0,null,null,null,0]
[5396,611700,"Отплата главнице на домаће финансијске деривате",null,null,0,null,null,null,0]
[5397,611800,"Отплата домаћих меница",null,null,0,null,null,null,0]
[5398,611900,"Исправка унутрашњег дуга",null,null,0,null,null,null,0]
[5399,612000,"ОТПЛАТА ГЛАВНИЦЕ СТРАНИМ КРЕДИТОРИМА (од 5400 до 5406)",{"$f":"SUM(D269:D275)","v":0},0,0,0,0,0,0]
[5400,612100,"Отплата главнице на хартије од вредности, изузев акција, емитоване на иностраном финансијском тржишту",null,null,0,null,null,null,0]
[5401,612200,"Отплата главнице страним владама",null,null,0,null,null,null,0]
[5402,612300,"Отплата главнице мултилатералним институцијама",null,null,0,null,null,null,0]
[5403,612400,"Отплате главнице страним пословним банкама",null,null,0,null,null,null,0]
[5404,612500,"Отплате главнице осталим страним кредиторима",null,null,0,null,null,null,0]
[5405,612600,"Отплата главнице на стране финансијске деривате",null,null,0,null,null,null,0]
[5406,612900,"Исправка спољног дуга",null,null,0,null,null,null,0]
[5407,613000,"ОТПЛАТА ГЛАВНИЦЕ ПО ГАРАНЦИЈАМА (5408)",{"$f":"D277","v":0},0,0,0,0,0,0]
[5408,613100,"Отплата главнице по гаранцијама",null,null,0,null,null,null,0]
[5409,614000,"ОТПЛАТА ГЛАВНИЦЕ ЗА ФИНАНСИЈСКИ ЛИЗИНГ (5410)",{"$f":"D279","v":0},0,0,0,0,0,0]
[5410,614100,"Отплата главнице за финансијски лизинг",null,null,0,null,null,null,0]
[5411,615000,"ОТПЛАТА ГАРАНЦИЈА ПО КОМЕРЦИЈАЛНИМ ТРАНСАКЦИЈАМА (5412)",{"$f":"D281","v":0},0,0,0,0,0,0]
[5412,615100,"Отплата гаранција по комерцијалним трансакцијама",null,null,0,null,null,null,0]
[5413,620000,"НАБАВКА ФИНАНСИЈСКЕ ИМОВИНЕ (5414 + 5424 + 5433)",{"$f":"D283+D293+D302","v":0},0,0,0,0,0,0]
[5414,621000,"НАБАВКА ДОМАЋЕ ФИНАНСИЈСКЕ ИМОВИНЕ (од 5415 до 5423)",{"$f":"SUM(D284:D292)","v":0},0,0,0,0,0,0]
[5415,621100,"Набавка домаћих хартија од вредности, изузев акција",null,null,0,null,null,null,0]
[5416,621200,"Кредити осталим нивоима власти",null,null,0,null,null,null,0]
[5417,621300,"Кредити домаћим јавним финансијским институцијама",null,null,0,null,null,null,0]
[5418,621400,"Кредити домаћим пословним банкама",null,null,0,null,null,null,0]
[5419,621500,"Кредити домаћим нефинансијским јавним институцијама",null,null,0,null,null,null,0]
[5420,621600,"Кредити физичким лицима и домаћинствима у земљи",null,null,0,null,null,null,0]
[5421,621700,"Кредити невладиним организацијама у земљи",null,null,0,null,null,null,0]
[5422,621800,"Кредити домаћим нефинансијским приватним предузећима",null,null,0,null,null,null,0]
[5423,621900,"Набавка домаћих акција и осталог капитала",null,null,0,null,null,null,0]
[5424,622000,"НАБАВКА СТРАНЕ ФИНАНСИЈСКЕ ИМОВИНЕ (од 5425 до 5432)",{"$f":"SUM(D294:D301)","v":0},0,0,0,0,0,0]
[5425,622100,"Набавка страних хартија од вредности, изузев акција",null,null,0,null,null,null,0]
[5426,622200,"Кредити страним владама",null,null,0,null,null,null,0]
[5427,622300,"Кредити међународним организацијама",null,null,0,null,null,null,0]
[5428,622400,"Кредити страним пословним банкама",null,null,{"$f":"D297+E297","v":0},null,null,null,{"$f":"+F297+G297+H297+I297","v":0}]
[5429,622500,"Кредити страним нефинансијским институцијама",null,null,0,null,null,null,0]
[5430,622600,"Кредити страним невладиним организацијама",null,null,0,null,null,null,0]
[5431,622700,"Набавка страних акција и осталог капитала",null,null,0,null,null,null,0]
[5432,622800,"Куповина стране валуте",null,null,0,null,null,null,0]
[5433,623000,"НАБАВКА ФИНАНСИЈСКЕ ИМОВИНЕ КОЈА СЕ ФИНАНСИРА ИЗ СРЕДСТАВА ЗА РЕАЛИЗАЦИЈУ НАЦИОНАЛНОГ ИНВЕСТИЦИОНОГ ПЛАНА (5434)",{"$f":"D303","v":0},0,0,0,0,0,0]
[5434,623100,"Набавка финансијске имовине која се финансира из средстава за реализацију националног инвестиционог плана ",null,null,0,null,null,null,0]
[5435,null,"УКУПНИ РАСХОДИ И ИЗДАЦИ (5172 + 5387)",{"$f":"D41+D256","v":743},0,743,0,0,0,743]
[]
[]
[null,"ОБРАЗАЦ ПОПУНИО:",null,null,null,null,null,null,"ОДГОВОРНО ЛИЦЕ:"]
[null,"______________________",null,null,null,null,null,null,"___________________"]

{"sheet":"Transferi","index":11,"n_rows":26,"n_cols":6,"rows_kept":26,"cut":false,"hidden":false,"merged":[[4,0,4,5],[8,0,8,5],[15,0,15,5],[17,0,17,2]]}
["РЕПУБЛИЧКИ ФОНД ЗА ЗДРАВСТВЕНО",null,null,null,null,"ТР"]
["ОСИГУРАЊЕ - БЕОГРАД"]
["Јована Мариновића 2"]
[]
[]
[]
[{"$f":"\"ФИЛИЈАЛА:   \" & Filijala","v":"ФИЛИЈАЛА:   09 ВАЉЕВО"}]
[{"$f":"\"ЗДРАВСТВЕНА УСТАНОВА:  \" & ZU","v":"ЗДРАВСТВЕНА УСТАНОВА:  100209001 ДЗ УБ"}]
["ТРАНСФЕРИ ИЗМЕЂУ БУЏЕТСКИХ КОРИСНИКА НА ИСТОМ НИВОУ - конто 781100 (ООСО)\nу периоду од 01.01.2025. - 31.12.2025. године"]
[null,null,null,null,null,"у хиљадама (000) динара"]
["Р.  бр.","Назив","Трансфери за услуге здравствене заштите","Трансфери за лекове издате на рецепт","Трансфери за помагала издата на налог","УКУПНО"]
[null,0,1,2,3,"4=1+2+3"]
["1","781100 - Трансфери између буџетских корисника на истом нивоу (ООСО)",null,null,null,{"$f":"C13+D13+E13","v":0}]
[]
["Напомена: 1. Износ исказан у колони 4 - УКУПНО увећан за укупну партиципацију из обрасца ОЗПР (колона 6) мора бити једнак износу на ОП 5101 у колони 9 Обрасца 5."]
["                 2. У колону 1 - Трансфери за услуге здравствене заштите уноси се износ трансфера за здравствене услуге примарне и стоматолошке здравствене заштите\n                     у здравственим установама које имају апотеку у саставу."]
[]
["РАСХОДИ ЗА ЛЕКОВЕ ИЗДАТЕ НА РЕЦЕПТ И ПОМАГАЛА ИЗДАТА НА НАЛОГ\nу периоду од 01.01.2025. - 31.12.2025. године"]
[]
[null,null,"у хиљадама (000) динара"]
["Р.  бр.","Назив","Лекови издати на рецепт и помагала издата на налог"]
[null,0,1]
["1","426751 - Лекови на рецепт"]
[]
[]
["Напомена: Образац ТР попуњавају само апотеке и здравствене установе које у свом саставу имају апотеку."]

{"sheet":"TransferiFP","index":12,"n_rows":19,"n_cols":9,"rows_kept":19,"cut":false,"hidden":false,"merged":[[4,0,4,5],[9,1,9,8],[11,0,12,0],[11,1,12,1],[11,2,12,2],[11,3,11,6],[11,7,12,7],[11,8,12,8]]}
["РЕПУБЛИЧКИ ФОНД ЗА ЗДРАВСТВЕНО",null,null,null,null,null,null,null,"ТР-ФП"]
["ОСИГУРАЊЕ - БЕОГРАД"]
["Јована Мариновића 2"]
[]
[]
[]
[{"$f":"\"ФИЛИЈАЛА:   \" & Filijala","v":"ФИЛИЈАЛА:   09 ВАЉЕВО"}]
[{"$f":"\"ЗДРАВСТВЕНА УСТАНОВА:  \" & ZU","v":"ЗДРАВСТВЕНА УСТАНОВА:  100209001 ДЗ УБ"}]
[]
[null,"ИЗНОС ПЛАНИРАНИХ ТРАНСФЕРА ИЗМЕЂУ БУЏЕТСКИХ КОРИСНИКА НА ИСТОМ НИВОУ"]
[null,null,null,null,null,null,null,null,"у хиљадама (000) динара"]
["Р.  бр.","Назив","Укупно                   ","Приходи и примања из буџета",null,null,null,"Из донација и помоћи","Из осталих извора"]
[null,null,null,"Републике","Аутономне покрајине","Општине / \nграда","ООСО"]
[null,0,1,2,3,4,5,6,7]
["1","781100 - Трансфери између буџетских корисника на истом нивоу",{"$f":"SUM(D15:I15)","v":408950},7700,null,null,401250]
[]
[null,"Напомена: Податак исказан у колони 1 мора да буде једнак податку исказаном на ОП позицији 5101  у колони 4 Обрасца ИБ"]
[]
[null,{"$f":"+IF(C15=ObrazacIB!D138,\"\",\"Грешка, износ у колони 1 није усклађен са Обрасцем ИБ!!!\")","v":""}]

{"sheet":"BO","index":13,"n_rows":24,"n_cols":8,"rows_kept":24,"cut":false,"hidden":false,"merged":[[4,0,4,7],[5,3,5,4]]}
["РЕПУБЛИЧКИ ФОНД ЗА ЗДРАВСТВЕНО",null,null,null,null,null,null,"БО"]
["ОСИГУРАЊЕ - БЕОГРАД"]
["Јована Мариновића 2"]
[]
["ОБРАЗАЦ БО - ИСПЛАЋЕНА И РЕФУНДИРАНА СРЕДСТВА КОЈА СЕ ОДНОСЕ НА НАКНАДЕ КОЈЕ СЕ ЕВИДЕНТИРАЈУ У ОКВИРУ ГРУПЕ 414100"]
[null,null,null,"у периоду од 01.01.2025. - 31.12.2025. године"]
[{"$f":"\"ФИЛИЈАЛА:   \" & Filijala","v":"ФИЛИЈАЛА:   09 ВАЉЕВО"}]
[{"$f":"\"ЗДРАВСТВЕНА УСТАНОВА:  \" & ZU","v":"ЗДРАВСТВЕНА УСТАНОВА:  100209001 ДЗ УБ"}]
[]
[null,null,null,null,null,null,null,"у хиљадама (000) динара"]
["Р.  бр.","Извор финансирања","771100 исказан у обрасцу 5ГО","Пренета средства за накнаде које нису исказане у приходима (сторниран расход извршен у текућој години)","Укупно пренета средства за накнаде","Исплате накнада исказаних у обрасцу 5ГО на 414100","Исплате накнада  које нису исказане у расходима","Укупно исплаћене накнаде"]
[null,0,1,2,"3=1+2",4,5,"6=4+5"]
["1","УКУПНА СРЕДСТВА (1.1-1.5)",{"$f":"C14+C15+C16+C17+C18","v":0},2168,2168,50,2168,2218]
["1.1","РФЗО",null,2168,{"$f":"C14+D14","v":2168},null,2168,{"$f":"F14+G14","v":2168}]
["1.2","ФОНД ПИО",null,null,{"$f":"C15+D15","v":0},null,null,{"$f":"F15+G15","v":0}]
["1.3","СЕКРЕТАРИЈАТ ЗА СОЦИЈАЛНУ И ДЕЧИЈУ ЗАШТИТУ",null,null,{"$f":"C16+D16","v":0},null,null,{"$f":"F16+G16","v":0}]
["1.4","ОПШТИНА / ГРАД",null,null,{"$f":"C17+D17","v":0},null,null,{"$f":"F17+G17","v":0}]
["1.5","ОСТАЛО",null,null,{"$f":"C18+D18","v":0},50,null,{"$f":"F18+G18","v":50}]
[]
["Напомена: Овим обрасцем обухваћена су средства за:"]
["* накнаде за боловање преко 30 дана које рефундира РФЗО"]
["* накнаде за породиљско одсуство које рефундира Секретаријат за социјалну и дечију заштиту"]
["* накнаде за инвалиде II категорије које рефундира Фонд ПИО"]
["* накнаде за 35% за трудничко боловање"]

{"sheet":"Krv1","index":14,"n_rows":27,"n_cols":9,"rows_kept":27,"cut":false,"hidden":false,"merged":[[19,8,20,8],[4,0,4,8],[8,0,8,8],[15,0,15,8],[17,0,17,8],[19,0,20,0],[19,1,20,1],[19,2,20,2],[19,3,20,3],[19,4,20,4],[19,5,19,7]]}
["РЕПУБЛИЧКИ ФОНД ЗА ЗДРАВСТВЕНО",null,null,null,null,null,null,null,"КРВ 1"]
["ОСИГУРАЊЕ - БЕОГРАД"]
["Јована Мариновића 2"]
[]
[]
[]
[{"$f":"\"ФИЛИЈАЛА:   \" & Filijala","v":"ФИЛИЈАЛА:   09 ВАЉЕВО"}]
[{"$f":"\"ЗДРАВСТВЕНА УСТАНОВА:  \" & ZU","v":"ЗДРАВСТВЕНА УСТАНОВА:  100209001 ДЗ УБ"}]
["ТРАНСФЕРИ РЕПУБЛИЧКОГ ФОНДА ЗА КРВ И ЛАБИЛНЕ ПРОДУКТЕ ОД КРВИ ЗДРАВСТВЕНИМ УСТАНОВАМА ЗА ОСИГУРАНА ЛИЦА РЕПУБЛИЧКОГ ФОНДА- конто 781100 (ООСО) у периоду од 01.01.2025. - 31.12.2025. године                                                                                                                                                                                                                                                                                                                                                   "]
[null,null,"у хиљадама (000) динара"]
["Р.  бр.","Назив","Трансфери за крв и лабилне продукте од крви"]
[null,0,1]
["1","781100 - Трансфери за крв и лабилне продукте од крви за осигурана лица Републичког фонда"]
[]
[]
[]
[]
["РАСХОДИ ЗА КРВ И ЛАБИЛНЕ ПРОДУКТЕ ОД КРВИ ЗА ОСИГУРАНА ЛИЦА РЕПУБЛИЧКОГ ФОНДА у периоду од 01.01.2025. - 31.12.2025. године"]
[null,null,null,null,null,null,null,null,"у хиљадама (000) динара"]
["Р.  бр.","Назив","Институт за трансфузију крви Београд","Завод за трансфузију крви Нови Сад","Завод за трансфузију крви Ниш","Остали",null,null,"Укупно"]
[null,null,null,null,null,"ЗУ од којих је набављена крв","Остали добављачи","Укупно остали"]
[null,0,1,2,3,4,5,"6=4+5","7 = 1+2+3+6"]
["1","426700 - Крв и лабилни продукти од крви",null,null,null,null,null,{"$f":"F23+G23","v":0},{"$f":"C23+D23+E23+H23","v":0}]
[]
[]
["Напомена 1: Средства за КПП 076 и за испоручену крв за осигурана лица Републичког фонда приликом пружања услуга ван уговорене накнаде"]
["Напомена 2: Уз образац Крв 1 здравствена установа треба да достави и обавештење на које се установе и у ком износу односи податак исказан у колонама 4 и 5"]

{"sheet":"Krv2a","index":15,"n_rows":369,"n_cols":4,"rows_kept":369,"cut":false,"hidden":false,"merged":[[4,0,4,5],[8,0,8,3]]}
["РЕПУБЛИЧКИ ФОНД ЗА ЗДРАВСТВЕНО",null,null,"КРВ 2а"]
["ОСИГУРАЊЕ - БЕОГРАД"]
["Јована Мариновића 2"]
[]
[]
[]
[{"$f":"\"ФИЛИЈАЛА:   \" & Filijala","v":"ФИЛИЈАЛА:   09 ВАЉЕВО"}]
[{"$f":"\"ЗДРАВСТВЕНА УСТАНОВА:  \" & ZU","v":"ЗДРАВСТВЕНА УСТАНОВА:  100209001 ДЗ УБ"}]
["ОСТВАРЕНИ ПРИХОДИ ОД ЗДРАВСТВЕНИХ УСТАНОВА ИЗ ПЛАНА МРЕЖЕ ПО ОСНОВУ ПРОДАЈЕ КРВИ И ЛАБИЛНИХ ПРОДУКАТА ОД КРВИ ЗА ОСИГУРАНА ЛИЦА РЕПУБЛИЧКОГ ФОНДА у периоду од 01.01.2025. - 31.12.2025. године"]
[null,null,null,"у хиљадама (000) динара"]
[null,"Р.  бр.","781100 - Остварени приходи од здравствених установа из плана мреже по основу продаје крви и лабилних продуката од крви за осигурана лица Републичког фонда","Износ"]
[null,null,1,2]
[null,"1","100201001 Дом здравља \"Др Јанош Хаџи\", Бачка Топола"]
[null,"2","100201002 Дом здравља \"Др Мартон Шандор\", Мали Иђош"]
[null,"3","100201004 Завод за јавно здравље Суботица"]
[null,"4","100201005 Апотека Суботица"]
[null,"5","100201006 Дом здравља Суботица"]
[null,"6","100201007 Општа болница Суботица"]
[null,"7","100202001 Дом здравља  Житиште"]
[null,"8","100202003 Дом здравља Нови Бечеј"]
[null,"9","100202004 Дом здравља Сечањ"]
[null,"10","100202005 Дом здравља Нова Црња"]
[null,"11","100202007 Специјална болница \"Русанда\" Меленци"]
[null,"12","100202008 Специјална болница за плућне болести \"Др Васа Савић\", Зрењанин"]
[null,"13","100202009 Завод за јавно здравље Зрењанин"]
[null,"14","100202010 Апотека Зрењанин"]
[null,"15","100202011 Дом здравља \"Др Бошко Вребалов\" Зрењанин"]
[null,"16","100202012 Општа болница \"Ђ. Јовановић\" Зрењанин"]
[null,"17","100203001 Дом здравља Ада"]
[null,"18","100203002 Дом здравља Кањижа"]
[null,"19","100203003 Дом здравља Нови Кнежевац"]
[null,"20","100203004 Дом здравља Чока"]
[null,"21","100203007 Специјална болница \"Свети Врачеви\", Нови Кнежевац"]
[null,"22","100203008 Специјална болница за рехабилитацију \" Бања Кањижа \""]
[null,"23","100203009 Завод за јавно здравље Кикинда"]
[null,"24","100203010 Апотека Кикинда"]
[null,"25","100203011 Дом здравља Кикинда"]
[null,"26","100203012 Општа болница Кикинда"]
[null,"27","100203013 Дом здравља Сента"]
[null,"28","100203014 Општа болница Сента"]
[null,"29","100203015 Апотека Сента"]
[null,"30","100204001 Дом здравља Алибунар"]
[null,"31","100204002 Дом здравља Бела Црква"]
[null,"32","100204003 Дом здравља Ковачица"]
[null,"33","100204004 Дом здравља \"Ковин\", Ковин"]
[null,"34","100204005 Дом здравља Опово"]
[null,"35","100204006 Дом здравља \"1.Октобар\", Пландиште"]
[null,"36","100204009 Специјална болница за плућне болести \"Др Будислав Бабић\" Бела Црква"]
[null,"37","100204010 Специјална болница за психијатријске болести \"Др Славољуб Бакаловић\" Вршац"]
[null,"38","100204011 Неуропсихијатријска болница \"Ковин\", Ковин"]
[null,"39","100204012 Завод за јавно здравље Панчево"]
[null,"40","100204014 Апотека Вршац"]
[null,"41","100204015 Дом здравља Вршац"]
[null,"42","100204016 Општа болница Вршац"]
[null,"43","100204017 Дом здравља Панчево"]
[null,"44","100204018 Општа болница Панчево"]
[null,"45","100205001 Дом здравља Апатин"]
[null,"46","100205002 Дом здравља Кула"]
[null,"47","100205003 Дом здравља \"Каменко Гагрчин\", Оџаци"]
[null,"48","100205005 Завод за јавно здравље Сомбор"]
[null,"49","100205006 Апотека Сомбор"]
[null,"50","100205007 Дом здравља \"Др Ђорђе Лазић\" Сомбор"]
[null,"51","100205008 Општа болница \"Др Радивој Симоновић\" Сомбор"]
[null,"52","100205009 Специјална болница за рехабилитацију\"Јунаковић\"Апатин"]
[null,"53","100206001 Дом здравља Бач"]
[null,"54","100206002 Дом здравља \"Др Младен Стојановић\", Бачка Паланка"]
[null,"55","100206003 Дом здравља Бачки Петровац"]
[null,"56","100206004 Дом здравља \"Др Душан Савић-Дода\" Беочин"]
[null,"57","100206005 Дом здравља Бечеј"]
[null,"58","100206006 Дом здравља Жабаљ"]
[null,"59","100206007 Дом здравља \"Др Ђорђе Бастић\", Србобран"]
[null,"60","100206008 Дом здравља Темерин"]
[null,"61","100206009 Дом здравља Тител"]
[null,"62","100206010 Дом здравља \"Нови Сад\""]
[null,"63","100206012 Завод за трансфузију крви Војводине"]
[null,"64","100206013 Специјална болница за реуматске болести Нови Сад"]
[null,"65","100206014 Институт за јавно здравље Војводине"]
[null,"66","100206015 Институт за онкологију  Војводине, Сремска Каменица"]
[null,"67","100206016 Институт за плућне болести Војводине, Сремска Каменица"]
[null,"68","100206017 Институт за кардиоваскуларне болести Војводине, Сремска Каменица"]
[null,"69","100206018 Институт за здравствену заштиту деце и омладине Војводине, Нови Сад"]
[null,"70","100206019 Клиника за стоматологију Војводине, Нови Сад"]
[null,"71","100206020 Универзитетски клинички центар Војводине Нови Сад"]
[null,"72","100206021 Завод за здравствену заштиту радника Нови Сад"]
[null,"73","100206022 Завод за здравствену заштиту студената Нови Сад"]
[null,"74","100206023 Пастеров завод Нови Сад"]
[null,"75","100206024 Апотека Нови Сад"]
[null,"76","100206025 Завод за ургентну медицину, Нови Сад"]
[null,"77","100206026 Дом здравља \"Вељко Влаховић\" Врбас"]
[null,"78","100206027 Општа болница \"Врбас\" Врбас"]
[null,"79","100206028 Апотека Врбас"]
[null,"80","100206029 Војномедицински центар Нови Сад"]
[null,"81","100207001 Дом здравља \"Милорад Мика Павловић\", Инђија"]
[null,"82","100207002 Дом здравља \"Др Драган Фундук\", Пећинци"]
[null,"83","100207003 Дом здравља Рума"]
[null,"84","100207004 Дом здравља \"Јован Јовановић-Змај\", Стара Пазова"]
[null,"85","100207005 Дом здравља Шид"]
[null,"86","100207007 Специјална болница \"Др Боривоје Гњатић\""]
[null,"87","100207008 Завод за јавно здравље Сремска Митровица"]
[null,"88","100207009 Специјална болница за рехабилитацију Термал Врдник"]
[null,"89","100207010 Апотека Сремска Митровица"]
[null,"90","100207011 Дом здравља Ириг"]
[null,"91","100207012 Дом здравља Сремска Митровица"]
[null,"92","100207013 Општа болница Сремска Митровица"]
[null,"93","100208001 Дом здравља Богатић"]
[null,"94","100208002 Дом здравља Љубовија"]
[null,"95","100208005 Специјална болница за рехабилитацију Бања Ковиљача"]
[null,"96","100208006 Завод за јавно здравље Шабац"]
[null,"97","100208007 Здравствена установа \"Апотека Лозница\""]
[null,"98","100208009 Општа болница Шабац"]
[null,"99","100208010 Дом здравља Шабац"]
[null,"100","100208011 Дом здравља Владимирци"]
[null,"101","100208012 Дом здравља \"Др Даринка Лукић\" Коцељева"]
[null,"102","100208014 Дом здравља Крупањ"]
[null,"103","100208015 Дом здравља Мали Зворник"]
[null,"104","100208017 Здравствени центар Лозница"]
[null,"105","100208018 Здравствени центар Шабац"]
[null,"106","100209001 Дом здравља Уб"]
[null,"107","100209003 Здравствена  установа  Апотека Ваљево"]
[null,"108","100209004 Дом здравља Лајковац"]
[null,"109","100209005 Завод за јавно здравље Ваљево"]
[null,"110","100209008 Дом здравља Осечина"]
[null,"111","100209009 Дом здравља Љиг"]
[null,"112","100209010 Дом здравља Мионица"]
[null,"113","100209012 Здравствени центар Ваљево"]
[null,"114","100210002 Општа болница \"Стефан Високи\", Смедеревска Паланка"]
[null,"115","100210003 СЗУ Апотека Здравље"]
[null,"116","100210004 Апотека Смедерево"]
[null,"117","100210005 Дом здравља Велика Плана"]
[null,"118","100210006 Дом здравља Смедеревска Паланка"]
[null,"119","100210007 Апотека \"Медица\" Велика Плана"]
[null,"120","100210008 Општа болница Свети Лука, Смедерево"]
[null,"121","100210009 Дом здравља Смедерево"]
[null,"122","100210010 Здравствени центар Свети Лука, Смедерево"]
[null,"123","100211001 Дом здравља Велико Градиште"]
[null,"124","100211002 Дом здравља Жагубица"]
[null,"125","100211005 Завод за јавно здравље Пожаревац"]
[null,"126","100211006 Здравствена установа Апотека Пожаревац"]
[null,"127","100211007 Дом здравља Жабари"]
[null,"128","100211008 Дом здравља Голубац"]
[null,"129","100211009 Дом здравља Кучево"]
[null,"130","100211010 Дом здравља Мало Црниће"]
[null,"131","100211011 Дом здравља Пожаревац"]
[null,"132","100211012 Општа болница Пожаревац"]
[null,"133","100211013 Дом здравља Петровац на Млави"]
[null,"134","100211014 Општа болница Петровац на Млави"]
[null,"135","100212001 Дом здравља Крагујевац"]
[null,"136","100212002 Дом здравља Баточина"]
[null,"137","100212003 Дом здравља \"Даница и Коста Шамановић\", Кнић"]
[null,"138","100212004 Дом здравља Лапово"]
[null,"139","100212005 Дом здравља \"Милоје Хаџић - Шуле\", Рача"]
[null,"140","100212006 Дом здравља \"Свети Ђорђе\", Топола"]
[null,"141","100212007 Здравствени центар Аранђеловац"]
[null,"142","100212008 Завод за денталну медицину Крагујевац"]
[null,"143","100212009 Специјална болница за рехабилитацију Буковицка бања Аранђеловац"]
[null,"144","100212010 Универзитетски клинички центар Крагујевац"]
[null,"145","100212011 Институт за јавно здравље Крагујевац"]
[null,"146","100212012 Апотека Крагујевац"]
[null,"147","100212013 Апотека \"Шумадија\" Аранђеловац"]
[null,"148","100212014 Завод за ургентну медецину Крагујевац"]
[null,"149","100213001 Дом здравља Деспотовац"]
[null,"150","100213002 Дом здравља Свилајнац"]
[null,"151","100213005 Завод за јавно здравље Ћуприја \"Поморавље\""]
[null,"152","100213007 Дом здравља Рековац"]
[null,"153","100213008 Дом здравља Јагодина"]
[null,"154","100213009 Општа болница Јагодина"]
[null,"155","100213010 Здравствена установа апотека Јагодина"]
[null,"156","100213011 Дом здравља Ћуприја"]
[null,"157","100213012 Општа болница Ћуприја"]
[null,"158","100213014 Дом здравља Параћин"]
[null,"159","100213015 Апотека Параћин"]
[null,"160","100213016 Општа болница Параћин"]
[null,"161","100214002 Здравствени центар Неготин"]
[null,"162","100214003 Здравствени центар Кладово"]
[null,"163","100214006 Дом здравља Др Верољуб Цакић Мајданпек"]
[null,"164","100214007 Општа болница Мајданпек"]
[null,"165","100214008 Дом здравља Бор"]
[null,"166","100214009 Општа болница Бор"]
[null,"167","100214010 Здравствени центар Бор"]
[null,"168","100215001 Дом здравља Бољевац"]
[null,"169","100215002 Здравствени центар Књажевац"]
[null,"170","100215003 Здравствени центар Зајечар"]
[null,"171","100215004 Специјална болница за рехабилитацију Гамзиград"]
[null,"172","100215005 Завод за јавно здравље \"Тимок\" Зајечар"]
[null,"173","100215006 Апотека Зајечар"]
[null,"174","100216001 Здравствени центар Ужице"]
[null,"175","100216003 Спец. болница за болести штитасте жлезде и болести метаболизма \"Златибор\""]
[null,"176","100216004 Завод за јавно здравље Ужице"]
[null,"177","100216005 Апотека Ужице"]
[null,"178","100217003 Специјална болница за рехабилитацију Ивањица"]
[null,"179","100217004 Завод за јавно здравље Чачак"]
[null,"180","100217005 Апотека Чачак"]
[null,"181","100217007 Дом здравља Горњи Милановац"]
[null,"182","100217008 Општа болница Горњи Милановац"]
[null,"183","100217009 Дом здравља \"Чачак\", Чачак"]
[null,"184","100217010 Дом здравља Ивањица"]
[null,"185","100217011 Дом здравља Лучани"]
[null,"186","100217012 Општа болница Чачак"]
[null,"187","100217013 Здравствени центар Горњи Милановац"]
[null,"188","100218001 Дом здравља Рашка"]
[null,"189","100218004 Завод за јавно здравље Краљево"]
[null,"190","100218005 Специјална болница \"Новопазарска Бања\""]
[null,"191","100218006 Завод за специјалну рехабилитацију Врњачка Бања"]
[null,"192","100218007 Специјална болница за рехабилитацију \"Агенс\" Матарушка Бања"]
[null,"193","100218008 Апотека Краљево"]
[null,"194","100218009 Дом здравља Тутин"]
[null,"195","100218010 Дом здравља Врњачка Бања"]
[null,"196","100218011 Специјална болница за интерне болести Врњачка Бања"]
[null,"197","100218012 Дом здравља Нови Пазар"]
[null,"198","100218013 Општа болница Нови Пазар"]
[null,"199","100218014 Дом здравља Краљево"]
[null,"200","100218015 Општа болница Студеница Краљево"]
[null,"201","100218016 Завод за јавно здравље Нови Пазар"]
[null,"202","100218017 Апотекарска установа Нови Пазар"]
[null,"203","100219001 Дом здравља \"Др Сава Станојевић\", Трстеник"]
[null,"204","100219003 Специјална болница за рехабилитацију \"Рибарска Бања\""]
[null,"205","100219004 Завод за јавно здравље Крушевац"]
[null,"206","100219005 Апотека Крушевац"]
[null,"207","100219006 Дом здравља Брус"]
[null,"208","100219007 Дом здравља \"Др Добривоје Гер Поповић\", Александровац"]
[null,"209","100219008 Дом здравља Ћићевац"]
[null,"210","100219009 Дом здравља \"Др Властимир Годић\" Варварин"]
[null,"211","100219012 Општа болница Крушевац"]
[null,"212","100219013 Дом здравља Крушевац"]
[null,"213","100220001 Дом здравља Гаџин Хан"]
[null,"214","100220002 Дом здравља Дољевац"]
[null,"215","100220003 Дом здравља \"Др Љубинко Ђорђевић\", Сврљиг"]
[null,"216","100220004 Дом здравља Соко Бања"]
[null,"217","100220005 Дом здравља Ниш"]
[null,"218","100220006 Дом здравља Мерошина"]
[null,"219","100220007 Дом здравља Ражањ"]
[null,"220","100220009 Специјална псхијатријска болница \"Горња Топоница\""]
[null,"221","100220010 Специјална болница за неспец. плућне болести \"Сокобања\""]
[null,"222","100220011 Специјална болница за плућне болести Озрен, Сокобања"]
[null,"223","100220012 Завод за ургентну медицину Ниш"]
[null,"224","100220013 Завод за здравствену заштиту радника Ниш"]
[null,"225","100220014 Завод за здравствену заштиту студената Ниш"]
[null,"226","100220015 Завод за плућне болести и туберкулозу Ниш"]
[null,"227","100220016 Завод за трансфузију крви "]
[null,"228","100220017 Завод за судску медицину Ниш"]
[null,"229","100220018 Институт за лечење и рехабилитацију Нишка Бања, Ниш"]
[null,"230","100220019 Универзитетски клинички центар Ниш"]
[null,"231","100220020 Клиника за денталну медицину Ниш"]
[null,"232","100220021 Институт за јавно здравље Ниш"]
[null,"233","100220022 Апотека Ниш"]
[null,"234","100220024 Војна болница Ниш"]
[null,"235","100220028 Здравствени центар Алексинац"]
[null,"236","100221001 Дом здравља Куршумлија"]
[null,"237","100221002 Дом здравља Блаце"]
[null,"238","100221005 Аптоека Прокупље"]
[null,"239","100221006 Дом здравља Житорађа"]
[null,"240","100221009 Здравствени центар Прокупље"]
[null,"241","100222001 Дом здравља Бела Паланка"]
[null,"242","100222003 Завод за јавно здравље Пирот"]
[null,"243","100222004 Апотека Пирот"]
[null,"244","100222005 Дом здравља \"Др Јован Ристић\", Бабушница"]
[null,"245","100222006 Дом здравља Димитровград"]
[null,"246","100222007 Дом здравља Пирот"]
[null,"247","100222008 Општа болница Пирот"]
[null,"248","100223001 Дом здравља Бојник"]
[null,"249","100223003 Завод за јавно здравље Лесковац"]
[null,"250","100223004 Апотека Лесковац"]
[null,"251","100223005 Дом здравља Лебане"]
[null,"252","100223006 Специјална болница за рехабилаитацију Гејзер, Сијаринска Бања"]
[null,"253","100223007 Дом здравља Власотинце"]
[null,"254","100223008 Дом здравља Лесковац"]
[null,"255","100223009 Општа болница Лесковац"]
[null,"256","100223010 Дом здравља Медвеђа"]
[null,"257","100224001 Здравствени центар Врање"]
[null,"258","100224002 Здравствени центар Сурдулица"]
[null,"259","100224003 Специјална болница  за плућне болести и туберкулозу Сурдулица"]
[null,"260","100224004 Специјална болница за рехабилаитацију Бујановац, Бујановачка Бања"]
[null,"261","100224005 Специјална болница за рехабилитацију Врањска Бања"]
[null,"262","100224006 Завод за јавно здравње Врање"]
[null,"263","100224007 Апотека Врање"]
[null,"264","100224008 Дом здравља Владичин Хан"]
[null,"265","100224009 Дом здравља Бујановац"]
[null,"266","100224010 Дом Здравља Босилеград"]
[null,"267","100224011 Апотека Бујановац"]
[null,"268","100224012 Дом здравља Прешево"]
[null,"269","100224013 Дом здравља Трговиште"]
[null,"270","100225001 Дом зравља Грачаница"]
[null,"271","100225002 Дом здравља Доња Гуштерица"]
[null,"272","100225003 Дом Здравља Косово Поље"]
[null,"273","100225004 Дом здравља Обилић"]
[null,"274","100225005 ДомЗдравља Штрпце"]
[null,"275","100225006 Клиничко болнички центар Приштина"]
[null,"276","100225008 Здравствени центар Призрен"]
[null,"277","100225009 Дом здравља Приштина"]
[null,"278","100225010 Дом здравља Драгаш"]
[null,"279","100225012 Дом здравља Исток"]
[null,"280","100225013 Здравствени центар Пећ"]
[null,"281","100225014 Специјална болница за плућне болести Пећ"]
[null,"282","100225015 Здравствени центар Ђаковица"]
[null,"283","100225016 Апотекарса установа Пећ"]
[null,"284","100225017 Завод за специјализовану рехабилитацију Исток"]
[null,"285","100225018 Апотекарска установа Приштина"]
[null,"286","100225019 Апотекарска установа Призрен"]
[null,"287","100228001 Дом здравља Звечан"]
[null,"288","100228004 Завод за јавно здравње - Приштина"]
[null,"289","100228005 Дом здравља Зубин Поток"]
[null,"290","100228006 Клиничко болнички центар Косовска Митровица"]
[null,"291","100228007 Апотекарска установа Косовска Митровица"]
[null,"292","100229002 Здравствени центар Гњилане"]
[null,"293","100229003 Апотекарска установа Гњилане"]
[null,"294","100230001 Дом здравља \"Др Милорад Влајковић\" Барајево"]
[null,"295","100230002 Дом здравља Вождовац"]
[null,"296","100230003 Дом здравља Врачар"]
[null,"297","100230004 Дом здравља Гроцка"]
[null,"298","100230005 Дом здравља \"Звездара\""]
[null,"299","100230006 Дом здравља Земун"]
[null,"300","100230007 Дом здравља \"Др Ђорђе Ковачевић\", Лазаревац"]
[null,"301","100230008 Дом здравља Младеновац"]
[null,"302","100230009 Дом здравља Нови Београд"]
[null,"303","100230010 Дом здравља Обреновац"]
[null,"304","100230011 Дом здравља \"Др Милутин Ивковић\", Палилула"]
[null,"305","100230012 Дом здравља Раковица"]
[null,"306","100230013 Дом здравља Савски Венац"]
[null,"307","100230014 Дом здравља Сопот"]
[null,"308","100230015 Дом здравља Стари Град, Београд"]
[null,"309","100230016 Дом здравља \" Др Симо Милошевић\", Чукарица"]
[null,"310","100230017 Специјална болница за интерне болести Младеновац"]
[null,"311","100230018 Спец. болница за церебралну парализу и развојну неурологију, Београд"]
[null,"312","100230019 Институт за неонатологију, Београд"]
[null,"313","100230020 Спец. болница за цереброваскуларна обољења \"Свети Сава\" Београд"]
[null,"314","100230021 Завод за ургентну медицину Београд"]
[null,"315","100230022 Градски завод за кожне и венеричне болести Београд"]
[null,"316","100230023 Градски завод за геронтологију и палијативно збрињавање, Београд"]
[null,"317","100230024 Градски завод за јавно здравље Београд"]
[null,"318","100230025 Градски завод за антитуберкулозну заштиту и болести плућа Београд"]
[null,"319","100230026 Завод за ендемску нефропатију, Лазаревац"]
[null,"320","100230027 Завод за здравствену заштиту студената, Београд"]
[null,"321","100230028 Завод за здравствену заштиту радника МУП-а"]
[null,"322","100230029 Завод за биоциде и медицинску екологију"]
[null,"323","100230030 Специјална болница за рехабилитацију и ортопедску протетику, Београд"]
[null,"324","100230031 Институт за трансфузију крви Србије"]
[null,"325","100230032 Специјална болница за болести зависности"]
[null,"326","100230033 Завод за психофизичке поремећаје и говорну патологију Београд"]
[null,"327","100230034 Институт за ортопедско - хируршке болести \"Бањица\", Београд"]
[null,"328","100230035 Институт за неуропсихијатријске болести \"Др Лаза Лазаревић\""]
[null,"329","100230036 Институт за кардиоваскуларне болести \"Дедиње\""]
[null,"330","100230037 Институт за здравствену заштиту мајке и детета Србије \"Др Вукан Чупић\", Н.Београд"]
[null,"331","100230038 Институт за ментално здравље Београд"]
[null,"332","100230039 Институт за онкологију и радијологију Србије, Београд"]
[null,"333","100230040 Институт за реуматологију Београд"]
[null,"334","100230041 Институт за рехабилитацију Србије, Београд"]
[null,"335","100230042 Клиника за рехабилитацију \"Др Мирослав Зотовић\""]
[null,"336","100230043 Клиника за неурологију и психијатрију за децу и омладину, Београд"]
[null,"337","100230044 Универзитетска дечја клиника, Београд"]
[null,"338","100230045 Гинеколошко акушерска клиника \" Народни фронт\", Београд"]
[null,"339","100230047 Клиничко-болнички центар Бежанијска Коса"]
[null,"340","100230048 Клиничко-болнички центар \"Др Драгиша Мишовић\" Дедиње"]
[null,"341","100230049 Клиничко болнички центар Земун"]
[null,"342","100230050 Клиничко болнички центар Звездара, Београд"]
[null,"343","100230051 Универзитетски клинички центар Србије"]
[null,"344","100230052 Апотека Београд"]
[null,"345","100230053 Институт за јавно здравље Србије \"др Милан Јовановић Батут\""]
[null,"346","100230054 Институт за вирусологију, вакцине и серуме Торлак"]
[null,"347","100230055 Војномедицинска академија"]
[null,"348","100230057 Институт за медицину рада Србије Др Драгомир Карајовић"]
[null,"349","100230059 Дом здравља Сурчин"]
[null,"350","100312001 Застава - Завод за здравствену заштиту радника, Крагујевац"]
[null,null,"УКУПНО:",{"$f":"SUM(D13:D362)","v":0}]
[]
[]
[]
[]
["Саставио:",null,null,"Директор здравствене установе:"]
["______________________",null,null,"______________________________"]

{"sheet":"Krv2b","index":16,"n_rows":284,"n_cols":4,"rows_kept":284,"cut":false,"hidden":false,"merged":[[4,0,4,6],[9,0,9,3],[12,0,14,0],[12,1,14,1],[12,2,14,2],[12,3,14,3]]}
["РЕПУБЛИЧКИ ФОНД ЗА ЗДРАВСТВЕНО",null,null,"КРВ 2б"]
["ОСИГУРАЊЕ - БЕОГРАД"]
["Јована Мариновића 2"]
[]
[]
[]
[{"$f":"\"ФИЛИЈАЛА:   \" & Filijala","v":"ФИЛИЈАЛА:   09 ВАЉЕВО"}]
[{"$f":"\"ЗДРАВСТВЕНА УСТАНОВА:  \" & ZU","v":"ЗДРАВСТВЕНА УСТАНОВА:  100209001 ДЗ УБ"}]
[]
["ИЗВРШЕНИ РАСХОДИ ИЗ ОСТВАРЕНИХ ПРИХОДА ОД ПРОДАЈЕ КРВИ \nИ ЛАБИЛНИХ ПРОДУКАТА ОД КРВИ \nу периоду од 01.01.2025. - 31.12.2025. године"]
[]
[null,null,null,"у хиљадама (000) динара"]
["Ознака ОП","Број конта","Опис","Износ"]
[]
[]
[1,2,3,4]
[5172,null,"ТЕКУЋИ РАСХОДИ И ИЗДАЦИ ЗА НЕФИНАНСИЈСКЕ ИМОВИНЕ (5173 + 5341)",{"$f":"D18+D186","v":0}]
[5173,400000,"ТЕКУЋИ РАСХОДИ (5174 + 5196 + 5241 + 5256 + 5280 + 5293 + 5309 + 5324)",{"$f":"D19+D41+D86+D101+D125+D138+D154+D169","v":0}]
[5174,410000,"РАСХОДИ ЗА ЗАПОСЛЕНЕ (5175 + 5177 + 5181 + 5183 + 5188 + 5190 + 5192 + 5194)",{"$f":"D20+D22+D26+D28+D33+D35+D37+D39","v":0}]
[5175,411000,"ПЛАТЕ, ДОДАЦИ И НАКНАДЕ ЗАПОСЛЕНИХ (ЗАРАДЕ) (5176)",{"$f":"D21","v":0}]
[5176,411100,"Плате, додаци и накнаде запослених"]
[5177,412000,"СОЦИЈАЛНИ ДОПРИНОСИ НА ТЕРЕТ ПОСЛОДАВЦА (од 5178 до 5180)",{"$f":"SUM(D23:D25)","v":0}]
[5178,412100,"Допринос за пензијско и инвалидско осигурање"]
[5179,412200,"Допринос за здравствено осигурање"]
[5180,412300,"Допринос за незапосленост"]
[5181,413000,"НАКНАДЕ У НАТУРИ (5182)",{"$f":"D27","v":0}]
[5182,413100,"Накнаде у натури"]
[5183,414000,"СОЦИЈАЛНА ДАВАЊА ЗАПОСЛЕНИМА (од 5184 до 5187)",{"$f":"SUM(D29:D32)","v":0}]
[5184,414100,"Исплата накнада за време одсуствовања с посла на терет фондова"]
[5185,414200,"Расходи за образовање деце запослених"]
[5186,414300,"Отпремнине и помоћи"]
[5187,414400,"Помоћ у медицинском лечењу запосленог или чланова уже породице и друге помоћи запосленом"]
[5188,415000,"НАКНАДА ТРОШКОВА ЗА ЗАПОСЛЕНЕ (5189)",{"$f":"D34","v":0}]
[5189,415100,"Накнаде трошкова за запослене"]
[5190,416000,"НАГРАДЕ ЗАПОСЛЕНИМА И ОСТАЛИ ПОСЕБНИ РАСХОДИ (5191)",{"$f":"D36","v":0}]
[5191,416100,"Награде запосленима и остали посебни расходи"]
[5192,417000,"ПОСЛАНИЧКИ ДОДАТАК (5193)",{"$f":"D38","v":0}]
[5193,417100,"Посланички додатак"]
[5194,418000,"СУДИЈСКИ ДОДАТАК (5195)",{"$f":"D40","v":0}]
[5195,418100,"Судијски додатак"]
[5196,420000,"КОРИШЋЕЊЕ УСЛУГА И РОБА (5197 + 5205 + 5211 + 5220 + 5228 + 5231) ",{"$f":"D42+D50+D56+D65+D73+D76","v":0}]
[5197,421000,"СТАЛНИ ТРОШКОВИ (од 5198 до 5204)",{"$f":"SUM(D43:D49)","v":0}]
[5198,421100,"Трошкови платног промета и банкарских услуга"]
[5199,421200,"Енергетске услуге"]
[5200,421300,"Комуналне услуге"]
[5201,421400,"Услуге комуникација"]
[5202,421500,"Трошкови осигурања"]
[5203,421600,"Закуп имовине и опреме"]
[5204,421900,"Остали трошкови"]
[5205,422000,"ТРОШКОВИ ПУТОВАЊА (од 5206 до 5210)",{"$f":"SUM(D51:D55)","v":0}]
[5206,422100,"Трошкови службених путовања у земљи"]
[5207,422200,"Трошкови службених путовања у иностранство"]
[5208,422300,"Трошкови путовања у оквиру редовног рада"]
[5209,422400,"Трошкови путовања ученика"]
[5210,422900,"Остали трошкови транспорта"]
[5211,423000,"УСЛУГЕ ПО УГОВОРУ (од 5212 до 5219)",{"$f":"SUM(D57:D64)","v":0}]
[5212,423100,"Административне услуге"]
[5213,423200,"Компјутерске услуге"]
[5214,423300,"Услуге образовања и усавршавања запослених"]
[5215,423400,"Услуге информисања"]
[5216,423500,"Стручне услуге"]
[5217,423600,"Услуге за домаћинство и угоститељство"]
[5218,423700,"Репрезентација"]
[5219,423900,"Остале опште услуге"]
[5220,424000,"СПЕЦИЈАЛИЗОВАНЕ УСЛУГЕ (од 5221 до 5227)",{"$f":"SUM(D66:D72)","v":0}]
[5221,424100,"Пољопривредне услуге"]
[5222,424200,"Услуге образовања, културе и спорта"]
[5223,424300,"Медицинске услуге"]
[5224,424400,"Услуге одржавања аутопутева"]
[5225,424500,"Услуге одржавања националних паркова и природних површина"]
[5226,424600,"Услуге очувања животне средине, науке и геодетске услуге"]
[5227,424900,"Остале специјализоване услуге"]
[5228,425000,"ТЕКУЋЕ ПОПРАВКЕ И ОДРЖАВАЊЕ (5229 + 5230)",{"$f":"D74+D75","v":0}]
[5229,425100,"Текуће поправке и одржавање зграда и објеката"]
[5230,425200,"Текуће поправке и одржавање опреме"]
[5231,426000,"МАТЕРИЈАЛ (од 5232 до 5240)",{"$f":"SUM(D77:D85)","v":0}]
[5232,426100,"Административни материјал"]
[5233,426200,"Материјали за пољопривреду"]
[5234,426300,"Материјали за образовање и усавршавање запослених"]
[5235,426400,"Материјали за саобраћај"]
[5236,426500,"Материјали за очување животне средине и науку"]
[5237,426600,"Материјали за образовање, културу и спорт"]
[5238,426700,"Медицински и лабораторијски материјали"]
[5239,426800,"Материјали за одржавање хигијене и угоститељство"]
[5240,426900,"Материјали за посебне намене"]
[5241,430000,"АМОРТИЗАЦИЈА И УПОТРЕБА СРЕДСТАВА ЗА РАД (5242 + 5246 + 5248 + 5250 + 5254)",{"$f":"D87+D91+D93+D95+D99","v":0}]
[5242,431000,"АМОРТИЗАЦИЈА НЕКРЕТНИНА И ОПРЕМЕ (од 5243 до 5245)",{"$f":"SUM(D88:D90)","v":0}]
[5243,431100,"Амортизација зграда и грађевинскиx објеката"]
[5244,431200,"Амортизација опреме"]
[5245,431300,"Амортизација осталих некретнина и опреме"]
[5246,432000,"АМОРТИЗАЦИЈА КУЛТИВИСАНЕ ИМОВИНЕ (5247)",{"$f":"D92","v":0}]
[5247,432100,"Амортизација култивисане опреме"]
[5248,433000,"УПОТРЕБА ДРАГОЦЕНОСТИ (5249)",{"$f":"D94","v":0}]
[5249,433100,"Употреба драгоцености"]
[5250,434000,"УПОТРЕБА ПРИРОДНЕ ИМОВИНЕ (од 5251 до 5253)",{"$f":"SUM(D96:D98)","v":0}]
[5251,434100,"Употреба земљишта"]
[5252,434200,"Употреба подземног блага"]
[5253,434300,"Употреба шума и вода"]
[5254,435000,"АМОРТИЗАЦИЈА НЕМАТЕРИЈАЛНЕ ИМОВИНЕ (5255)",{"$f":"D100","v":0}]
[5255,435100,"Амортизација нематеријалне имовине"]
[5256,440000,"ОТПЛАТА КАМАТА И ПРАТЕЋИ ТРОШКОВИ ЗАДУЖИВАЊА (5257 + 5267 + 5274 + 5276)",{"$f":"D102+D112+D119+D121","v":0}]
[5257,441000,"ОТПЛАТЕ ДОМАЋИХ КАМАТА (од 5258 до 5266)",{"$f":"SUM(D103:D111)","v":0}]
[5258,441100,"Отплата камата на домаће хартије од вредности"]
[5259,441200,"Отплата камата осталим нивоима власти"]
[5260,441300,"Отплата камата домаћим јавним финансијским институцијама"]
[5261,441400,"Отплата камата домаћим пословним банкама"]
[5262,441500,"Отплата камата осталим домаћим кредиторима"]
[5263,441600,"Отплата камата домаћинствима у земљи"]
[5264,441700,"Отплата камата на домаће финансијске деривате"]
[5265,441800,"Отплата камата на домаће менице"]
[5266,441900,"Финансијске промене на финансијским лизинзима"]
[5267,442000,"ОТПЛАТА СТРАНИХ КАМАТА (од 5268 до 5273)",{"$f":"SUM(D113:D118)","v":0}]
[5268,442100,"Отплата камата на хартије од вредности емитоване на иностраном финансијском тржишту"]
[5269,442200,"Отплата камата страним владама"]
[5270,442300,"Отплата камата мултилатералним институцијама"]
[5271,442400,"Отплата камата страним пословним банкама"]
[5272,442500,"Отплата камата осталим страним кредиторима"]
[5273,442600,"Отплата камата на стране финансијске деривате"]
[5274,443000,"ОТПЛАТА КАМАТА ПО ГАРАНЦИЈАМА (5275)",{"$f":"D120","v":0}]
[5275,443100,"Отплата камата по гаранцијама"]
[5276,444000,"ПРАТЕЋИ ТРОШКОВИ ЗАДУЖИВАЊА (од 5277 до 5279)",{"$f":"SUM(D122:D124)","v":0}]
[5277,444100,"Негативне курсне разлике"]
[5278,444200,"Казне за кашњење"]
[5279,444300,"Остали пратећи трошкови задуживања"]
[5280,450000,"СУБВЕНЦИЈЕ (5281 + 5284 + 5287 + 5290)",{"$f":"D126+D129+D132+D135","v":0}]
[5281,451000,"СУБВЕНЦИЈЕ ЈАВНИМ НЕФИНАНСИЈСКИМ ПРЕДУЗЕЋИМА И ОРГАНИЗАЦИЈАМА (5282 + 5283)",{"$f":"D127+D128","v":0}]
[5282,451100,"Текуће субвенције јавним нефинансијским предузећима и организацијама"]
[5283,451200,"Капиталне субвенције јавним нефинансијским предузећима и организацијама"]
[5284,452000,"СУБВЕНЦИЈЕ ПРИВАТНИМ ФИНАНСИЈСКИМ ИНСТИТУЦИЈАМА (5285 + 5286)",{"$f":"D130+D131","v":0}]
[5285,452100,"Текуће субвенције приватним финансијским институцијама"]
[5286,452200,"Капиталне субвенције приватним финансијским институцијама"]
[5287,453000,"СУБВЕНЦИЈЕ ЈАВНИМ ФИНАНСИЈСКИМ ИНСТИТУЦИЈАМА (5288 + 5289)",{"$f":"D133+D134","v":0}]
[5288,453100,"Текуће субвенције јавним финансијским институцијама"]
[5289,453200,"Капиталне субвенције јавним финансијским институцијама"]
[5290,454000,"СУБВЕНЦИЈЕ ПРИВАТНИМ ПРЕДУЗЕЋИМА (5291 + 5292)",{"$f":"D136+D137","v":0}]
[5291,454100,"Текуће субвенције приватним предузећима"]
[5292,454200,"Капиталне субвенције приватним предузећима"]
[5293,460000,"ДОНАЦИЈЕ, ДОТАЦИЈЕ И ТРАНСФЕРИ (5294 + 5297 + 5300 + 5303 + 5306)",{"$f":"D139+D142+D145+D148+D151","v":0}]
[5294,461000,"ДОНАЦИЈЕ СТРАНИМ ВЛАДАМА (5295 + 5296)",{"$f":"D140+D141","v":0}]
[5295,461100,"Текуће донације страним владама"]
[5296,461200,"Капиталне донације страним владама"]
[5297,462000,"ДОТАЦИЈЕ МЕЂУНАРОДНИМ ОРГАНИЗАЦИЈАМА (5298 + 5299)",{"$f":"D143+D144","v":0}]
[5298,462100,"Текуће дотације међународним организацијама"]
[5299,462200,"Капиталне дотације међународним организацијама"]
[5300,463000,"ТРАНСФЕРИ ОСТАЛИМ НИВОИМА ВЛАСТИ (5301 + 5302)",{"$f":"D146+D147","v":0}]
[5301,463100,"Текући трансфери осталим нивоима власти"]
[5302,463200,"Капитални трансфери осталим нивоима власти"]
[5303,464000,"ДОТАЦИЈЕ ОРГАНИЗАЦИЈАМА ОБАВЕЗНОГ СОЦИЈАЛНОГ ОСИГУРАЊА (5304 + 5305)",{"$f":"D149+D150","v":0}]
[5304,464100,"Текуће дотације организацијама обавезног социјалног осигурања"]
[5305,464200,"Капиталне дотације организацијама обавезног социјалног осигурања"]
[5306,465000,"ОСТАЛЕ ДОТАЦИЈЕ И ТРАНСФЕРИ (5307 + 5308)",{"$f":"D152+D153","v":0}]
[5307,465100,"Остале текуће дотације и трансфери"]
[5308,465200,"Остале капиталне дотације и трансфери"]
[5309,470000,"СОЦИЈАЛНО ОСИГУРАЊЕ И СОЦИЈАЛНА ЗАШТИТА (5310 + 5314)",{"$f":"D155+D159","v":0}]
[5310,471000,"ПРАВА ИЗ СОЦИЈАЛНОГ ОСИГУРАЊА (ОРГАНИЗАЦИЈЕ ОБАВЕЗНОГ СОЦИЈАЛНОГ ОСИГУРАЊА) (од 5311 до 5313)",{"$f":"SUM(D156:D158)","v":0}]
[5311,471100,"Права из социјалног осигурања која се исплаћују непосредно домаћинствима"]
[5312,471200,"Права из социјалног осигурања која се исплаћују непосредно пружаоцима услуга"]
[5313,471900,"Трансфери другим организацијама обавезног социјалног осигурања за доприносе за осигурање"]
[5314,472000,"НАКНАДЕ ЗА СОЦИЈАЛНУ ЗАШТИТУ ИЗ БУЏЕТА (од 5315 до 5323)",{"$f":"SUM(D160:D168)","v":0}]
[5315,472100,"Накнаде из буџета у случају болести и инвалидности"]
[5316,472200,"Накнаде из буџета за породиљско одсуство"]
[5317,472300,"Накнаде из буџета за децу и породицу"]
[5318,472400,"Накнаде из буџета за случај незапослености"]
[5319,472500,"Старосне и породичне пензије из буџета"]
[5320,472600,"Накнаде из буџета у случају смрти"]
[5321,472700,"Накнаде из буџета за образовање, културу, науку и спорт"]
[5322,472800,"Накнаде из буџета за становање и живот"]
[5323,472900,"Остале накнаде из буџета"]
[5324,480000,"ОСТАЛИ РАСХОДИ (5325 + 5328 + 5332 + 5334 + 5337 + 5339)",{"$f":"D170+D173+D177+D179+D182+D184","v":0}]
[5325,481000,"ДОТАЦИЈЕ НЕВЛАДИНИМ ОРГАНИЗАЦИЈАМА (5326 + 5327)",{"$f":"D171+D172","v":0}]
[5326,481100,"Дотације непрофитним организацијама које пружају помоћ домаћинствима"]
[5327,481900,"Дотације осталим непрофитним институцијама"]
[5328,482000,"ПОРЕЗИ, ОБАВЕЗНЕ ТАКСЕ И КАЗНЕ (од 5329 до 5331)",{"$f":"SUM(D174:D176)","v":0}]
[5329,482100,"Остали порези"]
[5330,482200,"Обавезне таксе"]
[5331,482300,"Новчане казне и пенали"]
[5332,483000,"НОВЧАНЕ КАЗНЕ И ПЕНАЛИ ПО РЕШЕЊУ СУДОВА (5333)",{"$f":"D178","v":0}]
[5333,483100,"Новчане казне и пенали по решењу судова"]
[5334,484000,"НАКНАДА ШТЕТЕ ЗА ПОВРЕДЕ ИЛИ ШТЕТУ НАСТАЛУ УСЛЕД ЕЛЕМЕНТАРНИХ НЕПОГОДА ИЛИ ДРУГИХ ПРИРОДНИХ УЗРОКА (5335 + 5336)",{"$f":"D180+D181","v":0}]
[5335,484100,"Накнада штете за повреде или штету насталу услед елементарних непогода"]
[5336,484200,"Накнада штете од дивљачи"]
[5337,485000,"НАКНАДА ШТЕТЕ ЗА ПОВРЕДЕ ИЛИ ШТЕТУ НАНЕТУ ОД СТРАНЕ ДРЖАВНИХ ОРГАНА (5338)",{"$f":"D183","v":0}]
[5338,485100,"Накнада штете за повреде или штету нанетих од стране државних органа"]
[5339,489000,"РАСХОДИ КОЈИ СЕ ФИНАНСИРАЈУ ИЗ СРЕДСТАВА ЗА РЕАЛИЗАЦИЈУ НАЦИОНАЛНОГ ИНВЕСТИЦИОНОГ ПЛАНА (5340)",{"$f":"D185","v":0}]
[5340,489100,"Расходи који се финансирају из средстава за реализацију националног инвестиционог плана"]
[5341,500000,"ИЗДАЦИ ЗА НЕФИНАНСИЈСКУ ИМОВИНУ (5342 + 5364 + 5373 + 5376 + 5384)",{"$f":"D187+D209+D218+D221+D229","v":0}]
[5342,510000,"ОСНОВНА СРЕДСТВА (5343 + 5348 + 5358 + 5360 + 5362)",{"$f":"D188+D193+D203+D205+D207","v":0}]
[5343,511000,"ЗГРАДЕ И ГРАЂЕВИНСКИ ОБЈЕКТИ (од 5344 до 5347)",{"$f":"SUM(D189:D192)","v":0}]
[5344,511100,"Куповина зграда и објеката"]
[5345,511200,"Изградња зграда и објеката"]
[5346,511300,"Капитално одржавање зграда и објеката"]
[5347,511400,"Пројектно планирање"]
[5348,512000,"МАШИНЕ И ОПРЕМА (од 5349 до 5357)",{"$f":"SUM(D194:D202)","v":0}]
[5349,512100,"Опрема за саобраћај"]
[5350,512200,"Административна опрема"]
[5351,512300,"Опрема за пољопривреду"]
[5352,512400,"Опрема за заштиту животне средине"]
[5353,512500,"Медицинска и лабораторијска опрема"]
[5354,512600,"Опрема за образовање, културу и спорт"]
[5355,512700,"Опрема за војску"]
[5356,512800,"Опрема за јавну безбедност"]
[5357,512900,"Опрема за производњу, моторна, непокретна и немоторна опрема"]
[5358,513000,"ОСТАЛЕ НЕКРЕТНИНЕ И ОПРЕМА (5359)",{"$f":"D204","v":0}]
[5359,513100,"Остале некретнине и опрема"]
[5360,514000,"КУЛТИВИСАНА ИМОВИНА (5361)",{"$f":"D206","v":0}]
[5361,514100,"Култивисана имовина"]
[5362,515000,"НЕМАТЕРИЈАЛНА ИМОВИНА (5363)",{"$f":"D208","v":0}]
[5363,515100,"Нематеријална имовина"]
[5364,520000,"ЗАЛИХЕ (5365 + 5367 + 5371)",{"$f":"D210+D212+D216","v":0}]
[5365,521000,"РОБНЕ РЕЗЕРВЕ (5366)",{"$f":"D211","v":0}]
[5366,521100,"Робне резерве"]
[5367,522000,"ЗАЛИХЕ ПРОИЗВОДЊЕ (од 5368 до 5370)",{"$f":"SUM(D213:D215)","v":0}]
[5368,522100,"Залихе материјала"]
[5369,522200,"Залихе недовршене производње"]
[5370,522300,"Залихе готових производа"]
[5371,523000,"ЗАЛИХЕ РОБЕ ЗА ДАЉУ ПРОДАЈУ (5372)",{"$f":"D217","v":0}]
[5372,523100,"Залихе робе за даљу продају"]
[5373,530000,"ДРАГОЦЕНОСТИ (5374)",{"$f":"D219","v":0}]
[5374,531000,"ДРАГОЦЕНОСТИ (5375)",{"$f":"D220","v":0}]
[5375,531100,"Драгоцености"]
[5376,540000,"ПРИРОДНА ИМОВИНА (5377 + 5379 + 5381)",{"$f":"D222+D224+D226","v":0}]
[5377,541000,"ЗЕМЉИШТЕ (5378)",{"$f":"D223","v":0}]
[5378,541100,"Земљиште"]
[5379,542000,"РУДНА БОГАТСТВА (5380)",{"$f":"D225","v":0}]
[5380,542100,"Копови"]
[5381,543000,"ШУМЕ И ВОДЕ (5382 + 5383)",{"$f":"D227+D228","v":0}]
[5382,543100,"Шуме"]
[5383,543200,"Воде"]
[5384,550000,"НЕФИНАНСИЈСКА ИМОВИНА КОЈА СЕ ФИНАНСИРА ИЗ СРЕДСТАВА ЗА РЕАЛИЗАЦИЈУ НАЦИОНАЛНОГ ИНВЕСТИЦИОНОГ ПЛАНА (5385)",{"$f":"D230","v":0}]
[5385,551000,"НЕФИНАНСИЈСКА ИМОВИНА КОЈА СЕ ФИНАНСИРА ИЗ СРЕДСТАВА ЗА РЕАЛИЗАЦИЈУ НАЦИОНАЛНОГ ИНВЕСТИЦИОНОГ ПЛАНА (5386)",{"$f":"D231","v":0}]
[5386,551100,"Нефинансијска имовина која се финансира из средстава за реализацију националног инвестиционог плана"]
[5387,600000,"ИЗДАЦИ ЗА ОТПЛАТУ ГЛАВНИЦЕ И НАБАВКУ ФИНАНСИЈСКЕ ИМОВИНЕ (5388 + 5413)",{"$f":"D233+D258","v":0}]
[5388,610000,"ОТПЛАТА ГЛАВНИЦЕ (5389 + 5399 + 5407 + 5409 + 5411)",{"$f":"D234+D244+D252+D254+D256","v":0}]
[5389,611000,"ОТПЛАТА ГЛАВНИЦЕ ДОМАЋИМ КРЕДИТОРИМА (од 5390 до 5398)",{"$f":"SUM(D235:D243)","v":0}]
[5390,611100,"Отплата главнице на домаће хартије од вредности, изузев акција"]
[5391,611200,"Отплата главнице осталим нивоима власти"]
[5392,611300,"Отплата главнице домаћим јавним финансијским институцијама"]
[5393,611400,"Отплата главнице домаћим пословним банкама"]
[5394,611500,"Отплата главнице осталим домаћим кредиторима"]
[5395,611600,"Отплата главнице домаћинствима у земљи"]
[5396,611700,"Отплата главнице на домаће финансијске деривате"]
[5397,611800,"Отплата домаћих меница"]
[5398,611900,"Исправка унутрашњег дуга"]
[5399,612000,"ОТПЛАТА ГЛАВНИЦЕ СТРАНИМ КРЕДИТОРИМА (од 5400 до 5406)",{"$f":"SUM(D245:D251)","v":0}]
[5400,612100,"Отплата главнице на хартије од вредности, изузев акција, емитоване на иностраном финансијском тржишту"]
[5401,612200,"Отплата главнице страним владама"]
[5402,612300,"Отплата главнице мултилатералним институцијама"]
[5403,612400,"Отплате главнице страним пословним банкама"]
[5404,612500,"Отплате главнице осталим страним кредиторима"]
[5405,612600,"Отплата главнице на стране финансијске деривате"]
[5406,612900,"Исправка спољног дуга"]
[5407,613000,"ОТПЛАТА ГЛАВНИЦЕ ПО ГАРАНЦИЈАМА (5408)",{"$f":"D253","v":0}]
[5408,613100,"Отплата главнице по гаранцијама"]
[5409,614000,"ОТПЛАТА ГЛАВНИЦЕ ЗА ФИНАНСИЈСКИ ЛИЗИНГ (5410)",{"$f":"D255","v":0}]
[5410,614100,"Отплата главнице за финансијски лизинг"]
[5411,615000,"ОТПЛАТА ГАРАНЦИЈА ПО КОМЕРЦИЈАЛНИМ ТРАНСАКЦИЈАМА (5412)",{"$f":"D257","v":0}]
[5412,615100,"Отплата гаранција по комерцијалним трансакцијама"]
[5413,620000,"НАБАВКА ФИНАНСИЈСКЕ ИМОВИНЕ (5414 + 5424 + 5433)",{"$f":"D259+D269+D278","v":0}]
[5414,621000,"НАБАВКА ДОМАЋЕ ФИНАНСИЈСКЕ ИМОВИНЕ (од 5415 до 5423)",{"$f":"SUM(D260:D268)","v":0}]
[5415,621100,"Набавка домаћих хартија од вредности, изузев акција"]
[5416,621200,"Кредити осталим нивоима власти"]
[5417,621300,"Кредити домаћим јавним финансијским институцијама"]
[5418,621400,"Кредити домаћим пословним банкама"]
[5419,621500,"Кредити домаћим нефинансијским јавним институцијама"]
[5420,621600,"Кредити физичким лицима и домаћинствима у земљи"]
[5421,621700,"Кредити невладиним организацијама у земљи"]
[5422,621800,"Кредити домаћим нефинансијским приватним предузећима"]
[5423,621900,"Набавка домаћих акција и осталог капитала"]
[5424,622000,"НАБАВКА СТРАНЕ ФИНАНСИЈСКЕ ИМОВИНЕ (од 5425 до 5432)",{"$f":"SUM(D270:D277)","v":0}]
[5425,622100,"Набавка страних хартија од вредности, изузев акција"]
[5426,622200,"Кредити страним владама"]
[5427,622300,"Кредити међународним организацијама"]
[5428,622400,"Кредити страним пословним банкама"]
[5429,622500,"Кредити страним нефинансијским институцијама"]
[5430,622600,"Кредити страним невладиним организацијама"]
[5431,622700,"Набавка страних акција и осталог капитала"]
[5432,622800,"Куповина стране валуте"]
[5433,623000,"НАБАВКА ФИНАНСИЈСКЕ ИМОВИНЕ КОЈА СЕ ФИНАНСИРА ИЗ СРЕДСТАВА ЗА РЕАЛИЗАЦИЈУ НАЦИОНАЛНОГ ИНВЕСТИЦИОНОГ ПЛАНА (5434)",{"$f":"D279","v":0}]
[5434,623100,"Набавка финансијске имовине која се финансира из средстава за реализацију националног инвестиционог плана "]
[5435,null,"УКУПНИ РАСХОДИ И ИЗДАЦИ (5172 + 5387)",{"$f":"D17+D232","v":0}]
[]
[]
["Саставио:",null,null,"Директор здравствене установе:"]
["______________________",null,null,"______________________________"]

{"sheet":"DP","index":17,"n_rows":52,"n_cols":6,"rows_kept":52,"cut":false,"hidden":false,"merged":[[4,1,4,5]]}
["РЕПУБЛИЧКИ ФОНД ЗА ЗДРАВСТВЕНО",null,null,null,null,"ДП"]
["ОСИГУРАЊЕ - БЕОГРАД"]
["Јована Мариновића 2"]
[]
[null,"ДИРЕКТНА ПЛАЋАЊА\nу периоду од 01.01.2025. - 31.12.2025. године"]
[]
[{"$f":"\"ФИЛИЈАЛА:   \" & Filijala","v":"ФИЛИЈАЛА:   09 ВАЉЕВО"}]
[{"$f":"\"ЗДРАВСТВЕНА УСТАНОВА:  \" & ZU","v":"ЗДРАВСТВЕНА УСТАНОВА:  100209001 ДЗ УБ"}]
[null,null,null,null,null,"у хиљадама (000) динара"]
[null,"Р.  бр.","Конто","ИЗНОС НЕРЕАЛИЗОВАНИХ ОБРАЧУНСКИХ НАЛОГА ЗАКЉУЧНО СА 31.12.2024. КОЈИ СУ РЕАЛИЗОВАНИ У ПЕРИОДУ 01.01.-31.12.2025. ГОДИНE","ИЗНОС РЕАЛИЗОВАНИХ ОБРАЧУНСКИХ НАЛОГА У 2025. ГОДИНИ ЗА ПЕРИОД 01.01.-31.12.2025. ГОДИНЕ","ИЗНОС НЕРЕАЛИЗОВАНИХ ОБРАЧУНСКИХ НАЛОГА У 2025. ГОДИНИ ЗАКЉУЧНО СА 31.12.2025. ГОДИНЕ"]
[null,1,2,3,4,5]
[null,"1","421200 - Енергетске услуге",{"$f":"+D13+D14","v":0},{"$f":"+E13+E14","v":4355},{"$f":"+F13+F14","v":0}]
[null,null,"06C - Енергенти у ЗУ - примарна ЗЗ",null,4355]
[null,null,"07C - Енергенти у ЗУ - секундарна и терцијарна ЗЗ"]
[null,"2","423100 - Комуналне услуге",{"$f":"+D16","v":0},{"$f":"+E16","v":0},{"$f":"+F16","v":0}]
[null,null,"07E -  Накнада за материјалне и остале трошкове - секундарна и терцијарна ЗЗ"]
[null,"3","423600 - Услуге за домаћинство и угоститељство",{"$f":"+D18","v":0},{"$f":"+E18","v":0},{"$f":"+F18","v":0}]
[null,null,"07D - Исхрана болесника - секундарна и терцијарна ЗЗ"]
[null,4,"426700 - Медицински и лабораторијски материјали",{"$f":"SUM(D20:D51)","v":0},{"$f":"SUM(E20:E51)","v":23181},{"$f":"SUM(F20:F51)","v":0}]
[null,null,"062 - Лекови у ЗУ - примарна ЗЗ",null,10733]
[null,null,"064 - Санитетски и медицински потрошни материјал - примарна ЗЗ",null,8026]
[null,null,"065 - Реагенси - примарна ЗЗ",null,4422]
[null,null,"071 - Лекови у ЗУ - секундарна и терцијарна ЗЗ"]
[null,null,"073 - Цитостатици са Листе лекова"]
[null,null,"074 - Лекови са Ц Листе лекова"]
[null,null,"075 - Лекови за хемофилију"]
[null,null,"076 - Крв и лабилни продукти од крви"]
[null,null,"077 - Уградни материјал у ортопедији"]
[null,null,"078 - Имплантати у ортопедији "]
[null,null,"079 - Уградни материјал у кардиохирургији"]
[null,null,"07V -  Варијабилни део накнаде по основу ДСГ учинка и показатеља квалитета"]
[null,null,"080 - Дијализни материјал"]
[null,null,"081 - Пејсмејкери и електроде"]
[null,null,"082 - Стентови"]
[null,null,"083 - Графтови"]
[null,null,"084 - Остали уградни материјал"]
[null,null,"085 - Санитетски и медицински потрошни материјал - секундарна и терцијарна ЗЗ"]
[null,null,"086 - Реагенси - секундарна и терцијарна ЗЗ"]
[null,null,"920 - Лекови ван листе лекова за лечење ретких урођених болести метаболизма"]
[null,null,"922 - Трансплантација срца"]
[null,null,"925 - Механичка екстракција тромба"]
[null,null,"926 - Лекови ван листе лекова за лечење ретких тумора"]
[null,null,"927 - Лекови за лечење хередитарног ангиоедема"]
[null,null,"930 - Off label лекови"]
[null,null,"958 - Лекови ван листе лекова"]
[null,null,"961 - Трансплантације бубрега"]
[null,null,"962 - Трансплантације јетре"]
[null,null,"963 - Трансплантације костне сржи"]
[null,null,"980 - Ендоваскуларно лечење интракранијалних анеуризми"]
[null,null,"986 - Октреотид и ланреотид"]
[null,null,"994 - Перкутана вертебропластика"]
[null,null,"Укупно:",{"$f":"+D12+D15+D17+D19","v":0},{"$f":"+E12+E15+E17+E19","v":27536},{"$f":"+F12+F15+F17+F19","v":0}]

{"sheet":"Asignacije","index":18,"n_rows":46,"n_cols":6,"rows_kept":46,"cut":false,"hidden":false,"merged":[[4,1,4,5]]}
["РЕПУБЛИЧКИ ФОНД ЗА ЗДРАВСТВЕНО",null,null,null,null,"АС"]
["ОСИГУРАЊЕ - БЕОГРАД"]
["Јована Мариновића 2"]
[]
[null,"АСИГНАЦИЈЕ\nу периоду од 01.01.2025. - 31.12.2025. године"]
[]
[{"$f":"\"ФИЛИЈАЛА:   \" & Filijala","v":"ФИЛИЈАЛА:   09 ВАЉЕВО"}]
[{"$f":"\"ЗДРАВСТВЕНА УСТАНОВА:  \" & ZU","v":"ЗДРАВСТВЕНА УСТАНОВА:  100209001 ДЗ УБ"}]
[null,null,null,null,null,"у хиљадама (000) динара"]
[null,"Р.  бр.","Конто","ИЗНОС НЕРЕАЛИЗОВАНИХ ОБРАЧУНСКИХ НАЛОГА ЗАКЉУЧНО СА 31.12.2024. КОЈИ СУ РЕАЛИЗОВАНИ У ПЕРИОДУ 01.01.-31.12.2025. ГОДИНE","ИЗНОС РЕАЛИЗОВАНИХ ОБРАЧУНСКИХ НАЛОГА У 2025. ГОДИНИ ЗА ПЕРИОД 01.01.-31.12.2025. ГОДИНЕ","ИЗНОС НЕРЕАЛИЗОВАНИХ ОБРАЧУНСКИХ НАЛОГА У 2025. ГОДИНИ ЗАКЉУЧНО СА 31.12.2025. ГОДИНЕ"]
[null,1,2,3,4,5]
[null,"1","012 - Лекови на рецепт"]
[null,"2","013 - Помагала у апотекама"]
[null,"3","020 - Амбулантно-поликлиничке услуге у РХ"]
[null,"4","021 - Стационарна рехабилитација у РХ"]
[null,"5","05E - Остали директни и индиректни трошкови - стоматолошка ЗЗ"]
[null,"6","062 - Лекови у ЗУ - примарна ЗЗ"]
[null,"7","064 - Санитетски и медицински потрошни материјал - примарна ЗЗ"]
[null,"8","065 - Реагенси - примарна ЗЗ"]
[null,"9","06C - Енергенти у ЗУ - примарна ЗЗ"]
[null,"10","06E - Накнада за материјалне и остале трошкове - примарна ЗЗ"]
[null,"11","071 - Лекови у ЗУ - секундарна и терцијарна ЗЗ"]
[null,"12","073 - Цитостатици са Листе лекова"]
[null,"13","076 - Крв и лабилни продукти од крви"]
[null,"14","077 - Уградни материјал у ортопедији"]
[null,"15","078 - Имплантати у ортопедији "]
[null,"16","07C - Енергенти у ЗУ - секундарна и терцијарна ЗЗ"]
[null,"17","07D - Исхрана болесника - секундарна и терцијарна ЗЗ"]
[null,"18","07E -  Накнада за материјалне и остале трошкове - секундарна и терцијарна ЗЗ"]
[null,"19","07V-30 - Лекови у ЗУ - варијабилни"]
[null,"20","07V-31 - Санитетски и медицински потрошни материјал - варијабини"]
[null,"21","07V-32 - Енергенти - варијабилни"]
[null,"22","07V-33 - Накнада за материјалне и остале трошкове - варијабилни"]
[null,"23","07V-35 - Реагенси - варијабилни"]
[null,"24","080 - Дијализни материјал"]
[null,"25","084 - Остали уградни материјал"]
[null,"26","085 - Санитетски и медицински потрошни материјал - секундарна и терцијарна ЗЗ"]
[null,"27","086 - Реагенси - секундарна и терцијарна ЗЗ"]
[null,"28","087 - Лекови ван Листе лекова - секундарна и терцијарна ЗЗ"]
[null,"29","919 - Медицински гасови - примарна ЗЗ"]
[null,"30","930 - Off label лекови"]
[null,"31","931 - Медицински гасови - секундарна и терцијарна ЗЗ"]
[null,"32","958 - Лекови ван листе лекова"]
[null,"33","981 - Дијeтетски производи за оболеле од фенилкетонурије и гликогенозе"]
[null,"34","986 - Октреотид и ланреотид"]
[null,null,"Укупно:",{"$f":"SUM(D12:D45)","v":0},{"$f":"SUM(E12:E45)","v":0},{"$f":"SUM(F12:F45)","v":0}]

{"sheet":"VP","index":19,"n_rows":300,"n_cols":10,"rows_kept":300,"cut":false,"hidden":false,"merged":[[299,7,299,9],[18,3,19,3],[298,0,298,1],[27,8,28,8],[27,9,28,9],[18,4,18,7],[298,7,298,9],[17,3,17,9],[26,0,28,0],[18,9,19,9],[17,2,19,2],[13,0,13,9],[14,0,14,9],[26,1,28,1],[26,2,28,2],[26,3,26,9],[27,3,28,3],[17,1,19,1],[27,4,27,7],[18,8,19,8],[17,0,19,0]]}
["РЕПУБЛИЧКИ ФОНД ЗА ЗДРАВСТВЕНО",null,null,null,null,null,null,null,null,"ВП"]
["ОСИГУРАЊЕ - БЕОГРАД"]
["Јована Мариновића 2"]
[]
[]
[]
[{"$f":"\"ФИЛИЈАЛА:   \" & Filijala","v":"ФИЛИЈАЛА:   09 ВАЉЕВО"}]
[{"$f":"\"ЗДРАВСТВЕНА УСТАНОВА:  \" & ZU","v":"ЗДРАВСТВЕНА УСТАНОВА:  100209001 ДЗ УБ"}]
[]
[]
[]
[]
[]
["КОРИШЋЕНИ НЕРАСПОРЕЂЕНИ ВИШАК ПРИХОДА И ПРИМАЊА ИЗ РАНИЈИХ ГОДИНА"]
["у периоду од 01.01.2025. - 31.12.2025. године"]
[]
["I НЕРАСПОРЕЂЕНИ ВИШАК ПРИХОДА И ПРИМАЊА ИЗ РАНИЈИХ ГОДИНА",null,null,null,null,null,null,null,null,"у хиљадама (000) динара"]
["Ознака ОП","Број конта","Опис","НЕРАСПОРЕЂЕНИ ВИШАК ПРИХОДА И ПРИМАЊА ИЗ РАНИЈИХ ГОДИНА"]
[null,null,null,"Укупно           \n(од 5 до 10)","Приходи и примања из буџета",null,null,null,"Из донација и помоћи","Из осталих извора"]
[null,null,null,null,"Републике","Аутономне покрајине","Општине / \nграда","ООСО"]
[1,2,3,4,5,6,7,8,9,10]
[null,null,"НЕРАСПОРЕЂЕНИ ВИШАК ПРИХОДА И ПРИМАЊА ИЗ РАНИЈИХ ГОДИНА",{"$f":"SUM(E22:J22)","v":1924},null,null,null,861,null,1063]
[]
[]
[]
["II ИЗВРШЕНИ РАСХОДИ И ИЗДАЦИ ИЗ НЕРАСПОРЕЂЕНОГ ВИШКА ПРИХОДА И ПРИМАЊА ИЗ РАНИЈИХ ГОДИНА",null,null,null,null,null,null,null,null,"у хиљадама (000) динара"]
["Ознака ОП","Број конта","Опис","Износ извршених расхода и издатака"]
[null,null,null,"Укупно           \n(од 5 до 10)","Расходи и издаци на терет буџета",null,null,null,"Из донација и помоћи","Из осталих извора"]
[null,null,null,null,"Републике ","Аутономне покрајине","Општине / \nграда","ООСО"]
[1,2,3,4,5,6,7,8,9,10]
[5172,null,"ТЕКУЋИ РАСХОДИ И ИЗДАЦИ ЗА НЕФИНАНСИЈСКЕ ИМОВИНЕ (5173 + 5341)",{"$f":"SUM(E31:J31)","v":1924},{"$f":"E32+E200","v":0},0,0,861,0,1063]
[5173,400000,"ТЕКУЋИ РАСХОДИ (5174 + 5196 + 5241 + 5256 + 5280 + 5293 + 5309 + 5324)",1557,{"$f":"E33+E55+E100+E115+E139+E152+E168+E183","v":0},0,0,861,0,696]
[5174,410000,"РАСХОДИ ЗА ЗАПОСЛЕНЕ (5175 + 5177 + 5181 + 5183 + 5188 + 5190 + 5192 + 5194)",0,{"$f":"E34+E36+E40+E42+E47+E49+E51+E53","v":0},0,0,0,0,0]
[5175,411000,"ПЛАТЕ, ДОДАЦИ И НАКНАДЕ ЗАПОСЛЕНИХ (ЗАРАДЕ) (5176)",0,{"$f":"E35","v":0},0,0,0,0,0]
[5176,411100,"Плате, додаци и накнаде запослених",0]
[5177,412000,"СОЦИЈАЛНИ ДОПРИНОСИ НА ТЕРЕТ ПОСЛОДАВЦА (од 5178 до 5180)",0,{"$f":"SUM(E37:E39)","v":0},0,0,0,0,0]
[5178,412100,"Допринос за пензијско и инвалидско осигурање",0]
[5179,412200,"Допринос за здравствено осигурање",0]
[5180,412300,"Допринос за незапосленост",0]
[5181,413000,"НАКНАДЕ У НАТУРИ (5182)",0,{"$f":"E41","v":0},0,0,0,0,0]
[5182,413100,"Накнаде у натури",0]
[5183,414000,"СОЦИЈАЛНА ДАВАЊА ЗАПОСЛЕНИМА (од 5184 до 5187)",0,{"$f":"SUM(E43:E46)","v":0},0,0,0,0,0]
[5184,414100,"Исплата накнада за време одсуствовања с посла на терет фондова",0]
[5185,414200,"Расходи за образовање деце запослених",0]
[5186,414300,"Отпремнине и помоћи",0]
[5187,414400,"Помоћ у медицинском лечењу запосленог или чланова уже породице и друге помоћи запосленом",0]
[5188,415000,"НАКНАДА ТРОШКОВА ЗА ЗАПОСЛЕНЕ (5189)",0,{"$f":"E48","v":0},0,0,0,0,0]
[5189,415100,"Накнаде трошкова за запослене",0]
[5190,416000,"НАГРАДЕ ЗАПОСЛЕНИМА И ОСТАЛИ ПОСЕБНИ РАСХОДИ (5191)",0,{"$f":"E50","v":0},0,0,0,0,0]
[5191,416100,"Награде запосленима и остали посебни расходи",0]
[5192,417000,"ПОСЛАНИЧКИ ДОДАТАК (5193)",0,{"$f":"E52","v":0},0,0,0,0,0]
[5193,417100,"Посланички додатак",0]
[5194,418000,"СУДИЈСКИ ДОДАТАК (5195)",0,{"$f":"E54","v":0},0,0,0,0,0]
[5195,418100,"Судијски додатак",0]
[5196,420000,"КОРИШЋЕЊЕ УСЛУГА И РОБА (5197 + 5205 + 5211 + 5220 + 5228 + 5231) ",1421,{"$f":"E56+E64+E70+E79+E87+E90","v":0},0,0,725,0,696]
[5197,421000,"СТАЛНИ ТРОШКОВИ (од 5198 до 5204)",619,{"$f":"SUM(E57:E63)","v":0},0,0,349,0,270]
[5198,421100,"Трошкови платног промета и банкарских услуга",1,null,null,null,1]
[5199,421200,"Енергетске услуге",348,null,null,null,348]
[5200,421300,"Комуналне услуге",270,null,null,null,null,null,270]
[5201,421400,"Услуге комуникација",0]
[5202,421500,"Трошкови осигурања",0]
[5203,421600,"Закуп имовине и опреме",0]
[5204,421900,"Остали трошкови",0]
[5205,422000,"ТРОШКОВИ ПУТОВАЊА (од 5206 до 5210)",0,{"$f":"SUM(E65:E69)","v":0},0,0,0,0,0]
[5206,422100,"Трошкови службених путовања у земљи",0]
[5207,422200,"Трошкови службених путовања у иностранство",0]
[5208,422300,"Трошкови путовања у оквиру редовног рада",0]
[5209,422400,"Трошкови путовања ученика",0]
[5210,422900,"Остали трошкови транспорта",0]
[5211,423000,"УСЛУГЕ ПО УГОВОРУ (од 5212 до 5219)",28,{"$f":"SUM(E71:E78)","v":0},0,0,0,0,28]
[5212,423100,"Административне услуге",0]
[5213,423200,"Компјутерске услуге",28,null,null,null,null,null,28]
[5214,423300,"Услуге образовања и усавршавања запослених",0]
[5215,423400,"Услуге информисања",0]
[5216,423500,"Стручне услуге",0]
[5217,423600,"Услуге за домаћинство и угоститељство",0]
[5218,423700,"Репрезентација",0]
[5219,423900,"Остале опште услуге",0]
[5220,424000,"СПЕЦИЈАЛИЗОВАНЕ УСЛУГЕ (од 5221 до 5227)",0,{"$f":"SUM(E80:E86)","v":0},0,0,0,0,0]
[5221,424100,"Пољопривредне услуге",0]
[5222,424200,"Услуге образовања, културе и спорта",0]
[5223,424300,"Медицинске услуге",0]
[5224,424400,"Услуге одржавања аутопутева",0]
[5225,424500,"Услуге одржавања националних паркова и природних површина",0]
[5226,424600,"Услуге очувања животне средине, науке и геодетске услуге",0]
[5227,424900,"Остале специјализоване услуге",0]
[5228,425000,"ТЕКУЋЕ ПОПРАВКЕ И ОДРЖАВАЊЕ (5229 + 5230)",12,{"$f":"E88+E89","v":0},0,0,12,0,0]
[5229,425100,"Текуће поправке и одржавање зграда и објеката",0]
[5230,425200,"Текуће поправке и одржавање опреме",12,null,null,null,12]
[5231,426000,"МАТЕРИЈАЛ (од 5232 до 5240)",762,{"$f":"SUM(E91:E99)","v":0},0,0,364,0,398]
[5232,426100,"Административни материјал",0]
[5233,426200,"Материјали за пољопривреду",0]
[5234,426300,"Материјали за образовање и усавршавање запослених",0]
[5235,426400,"Материјали за саобраћај",566,null,null,null,350,null,216]
[5236,426500,"Материјали за очување животне средине и науку",{"$f":"SUM(E95:J95)","v":0}]
[5237,426600,"Материјали за образовање, културу и спорт",0]
[5238,426700,"Медицински и лабораторијски материјали",8,null,null,null,8]
[5239,426800,"Материјали за одржавање хигијене и угоститељство",182,null,null,null,null,null,182]
[5240,426900,"Материјали за посебне намене",6,null,null,null,6]
[5241,430000,"АМОРТИЗАЦИЈА И УПОТРЕБА СРЕДСТАВА ЗА РАД (5242 + 5246 + 5248 + 5250 + 5254)",0,{"$f":"E101+E105+E107+E109+E113","v":0},0,0,0,0,0]
[5242,431000,"АМОРТИЗАЦИЈА НЕКРЕТНИНА И ОПРЕМЕ (од 5243 до 5245)",0,{"$f":"SUM(E102:E104)","v":0},0,0,0,0,0]
[5243,431100,"Амортизација зграда и грађевинскиx објеката",0]
[5244,431200,"Амортизација опреме",0]
[5245,431300,"Амортизација осталих некретнина и опреме",0]
[5246,432000,"АМОРТИЗАЦИЈА КУЛТИВИСАНЕ ИМОВИНЕ (5247)",0,{"$f":"E106","v":0},0,0,0,0,0]
[5247,432100,"Амортизација култивисане опреме",0]
[5248,433000,"УПОТРЕБА ДРАГОЦЕНОСТИ (5249)",0,{"$f":"E108","v":0},0,0,0,0,0]
[5249,433100,"Употреба драгоцености",0]
[5250,434000,"УПОТРЕБА ПРИРОДНЕ ИМОВИНЕ (од 5251 до 5253)",0,{"$f":"SUM(E110:E112)","v":0},0,0,0,0,0]
[5251,434100,"Употреба земљишта",0]
[5252,434200,"Употреба подземног блага",0]
[5253,434300,"Употреба шума и вода",0]
[5254,435000,"АМОРТИЗАЦИЈА НЕМАТЕРИЈАЛНЕ ИМОВИНЕ (5255)",0,{"$f":"E114","v":0},0,0,0,0,0]
[5255,435100,"Амортизација нематеријалне имовине",0]
[5256,440000,"ОТПЛАТА КАМАТА И ПРАТЕЋИ ТРОШКОВИ ЗАДУЖИВАЊА (5257 + 5267 + 5274 + 5276)",0,{"$f":"E116+E126+E133+E135","v":0},0,0,0,0,0]
[5257,441000,"ОТПЛАТЕ ДОМАЋИХ КАМАТА (од 5258 до 5266)",0,{"$f":"SUM(E117:E125)","v":0},0,0,0,0,0]
[5258,441100,"Отплата камата на домаће хартије од вредности",0]
[5259,441200,"Отплата камата осталим нивоима власти",0]
[5260,441300,"Отплата камата домаћим јавним финансијским институцијама",0]
[5261,441400,"Отплата камата домаћим пословним банкама",0]
[5262,441500,"Отплата камата осталим домаћим кредиторима",0]
[5263,441600,"Отплата камата домаћинствима у земљи",0]
[5264,441700,"Отплата камата на домаће финансијске деривате",0]
[5265,441800,"Отплата камата на домаће менице",0]
[5266,441900,"Финансијске промене на финансијским лизинзима",0]
[5267,442000,"ОТПЛАТА СТРАНИХ КАМАТА (од 5268 до 5273)",0,{"$f":"SUM(E127:E132)","v":0},0,0,0,0,0]
[5268,442100,"Отплата камата на хартије од вредности емитоване на иностраном финансијском тржишту",0]
[5269,442200,"Отплата камата страним владама",0]
[5270,442300,"Отплата камата мултилатералним институцијама",0]
[5271,442400,"Отплата камата страним пословним банкама",0]
[5272,442500,"Отплата камата осталим страним кредиторима",0]
[5273,442600,"Отплата камата на стране финансијске деривате",0]
[5274,443000,"ОТПЛАТА КАМАТА ПО ГАРАНЦИЈАМА (5275)",0,{"$f":"E134","v":0},0,0,0,0,0]
[5275,443100,"Отплата камата по гаранцијама",0]
[5276,444000,"ПРАТЕЋИ ТРОШКОВИ ЗАДУЖИВАЊА (од 5277 до 5279)",0,{"$f":"SUM(E136:E138)","v":0},0,0,0,0,0]
[5277,444100,"Негативне курсне разлике",0]
[5278,444200,"Казне за кашњење",0]
[5279,444300,"Остали пратећи трошкови задуживања",0]
[5280,450000,"СУБВЕНЦИЈЕ (5281 + 5284 + 5287 + 5290)",0,{"$f":"E140+E143+E146+E149","v":0},0,0,0,0,0]
[5281,451000,"СУБВЕНЦИЈЕ ЈАВНИМ НЕФИНАНСИЈСКИМ ПРЕДУЗЕЋИМА И ОРГАНИЗАЦИЈАМА (5282 + 5283)",0,{"$f":"E141+E142","v":0},0,0,0,0,0]
[5282,451100,"Текуће субвенције јавним нефинансијским предузећима и организацијама",0]
[5283,451200,"Капиталне субвенције јавним нефинансијским предузећима и организацијама",0]
[5284,452000,"СУБВЕНЦИЈЕ ПРИВАТНИМ ФИНАНСИЈСКИМ ИНСТИТУЦИЈАМА (5285 + 5286)",0,{"$f":"E144+E145","v":0},0,0,0,0,0]
[5285,452100,"Текуће субвенције приватним финансијским институцијама",0]
[5286,452200,"Капиталне субвенције приватним финансијским институцијама",0]
[5287,453000,"СУБВЕНЦИЈЕ ЈАВНИМ ФИНАНСИЈСКИМ ИНСТИТУЦИЈАМА (5288 + 5289)",0,{"$f":"E147+E148","v":0},0,0,0,0,0]
[5288,453100,"Текуће субвенције јавним финансијским институцијама",0]
[5289,453200,"Капиталне субвенције јавним финансијским институцијама",0]
[5290,454000,"СУБВЕНЦИЈЕ ПРИВАТНИМ ПРЕДУЗЕЋИМА (5291 + 5292)",0,{"$f":"E150+E151","v":0},0,0,0,0,0]
[5291,454100,"Текуће субвенције приватним предузећима",0]
[5292,454200,"Капиталне субвенције приватним предузећима",0]
[5293,460000,"ДОНАЦИЈЕ, ДОТАЦИЈЕ И ТРАНСФЕРИ (5294 + 5297 + 5300 + 5303 + 5306)",136,{"$f":"E153+E156+E159+E162+E165","v":0},0,0,136,0,0]
[5294,461000,"ДОНАЦИЈЕ СТРАНИМ ВЛАДАМА (5295 + 5296)",0,{"$f":"E154+E155","v":0},0,0,0,0,0]
[5295,461100,"Текуће донације страним владама",0]
[5296,461200,"Капиталне донације страним владама",0]
[5297,462000,"ДОТАЦИЈЕ МЕЂУНАРОДНИМ ОРГАНИЗАЦИЈАМА (5298 + 5299)",0,{"$f":"E157+E158","v":0},0,0,0,0,0]
[5298,462100,"Текуће дотације међународним организацијама",0]
[5299,462200,"Капиталне дотације међународним организацијама",0]
[5300,463000,"ТРАНСФЕРИ ОСТАЛИМ НИВОИМА ВЛАСТИ (5301 + 5302)",{"$f":"SUM(E159:J159)","v":0},{"$f":"E160+E161","v":0},0,0,0,0,0]
[5301,463100,"Текући трансфери осталим нивоима власти",0]
[5302,463200,"Капитални трансфери осталим нивоима власти",0]
[5303,464000,"ДОТАЦИЈЕ ОРГАНИЗАЦИЈАМА ОБАВЕЗНОГ СОЦИЈАЛНОГ ОСИГУРАЊА (5304 + 5305)",0,{"$f":"E163+E164","v":0},0,0,0,0,0]
[5304,464100,"Текуће дотације организацијама обавезног социјалног осигурања",0]
[5305,464200,"Капиталне дотације организацијама обавезног социјалног осигурања",0]
[5306,465000,"ОСТАЛЕ ДОТАЦИЈЕ И ТРАНСФЕРИ (5307 + 5308)",136,{"$f":"E166+E167","v":0},0,0,136,0,0]
[5307,465100,"Остале текуће дотације и трансфери",136,null,null,null,136]
[5308,465200,"Остале капиталне дотације и трансфери",0]
[5309,470000,"СОЦИЈАЛНО ОСИГУРАЊЕ И СОЦИЈАЛНА ЗАШТИТА (5310 + 5314)",0,{"$f":"E169+E173","v":0},0,0,0,0,0]
[5310,471000,"ПРАВА ИЗ СОЦИЈАЛНОГ ОСИГУРАЊА (ОРГАНИЗАЦИЈЕ ОБАВЕЗНОГ СОЦИЈАЛНОГ ОСИГУРАЊА) (од 5311 до 5313)",0,{"$f":"SUM(E170:E172)","v":0},0,0,0,0,0]
[5311,471100,"Права из социјалног осигурања која се исплаћују непосредно домаћинствима",0]
[5312,471200,"Права из социјалног осигурања која се исплаћују непосредно пружаоцима услуга",0]
[5313,471900,"Трансфери другим организацијама обавезног социјалног осигурања за доприносе за осигурање",0]
[5314,472000,"НАКНАДЕ ЗА СОЦИЈАЛНУ ЗАШТИТУ ИЗ БУЏЕТА (од 5315 до 5323)",0,{"$f":"SUM(E174:E182)","v":0},0,0,0,0,0]
[5315,472100,"Накнаде из буџета у случају болести и инвалидности",0]
[5316,472200,"Накнаде из буџета за породиљско одсуство",0]
[5317,472300,"Накнаде из буџета за децу и породицу",0]
[5318,472400,"Накнаде из буџета за случај незапослености",0]
[5319,472500,"Старосне и породичне пензије из буџета",0]
[5320,472600,"Накнаде из буџета у случају смрти",0]
[5321,472700,"Накнаде из буџета за образовање, културу, науку и спорт",0]
[5322,472800,"Накнаде из буџета за становање и живот",0]
[5323,472900,"Остале накнаде из буџета",0]
[5324,480000,"ОСТАЛИ РАСХОДИ (5325 + 5328 + 5332 + 5334 + 5337 + 5339)",0,{"$f":"E184+E187+E191+E193+E196+E198","v":0},0,0,0,0,0]
[5325,481000,"ДОТАЦИЈЕ НЕВЛАДИНИМ ОРГАНИЗАЦИЈАМА (5326 + 5327)",0,{"$f":"E185+E186","v":0},0,0,0,0,0]
[5326,481100,"Дотације непрофитним организацијама које пружају помоћ домаћинствима",0]
[5327,481900,"Дотације осталим непрофитним институцијама",0]
[5328,482000,"ПОРЕЗИ, ОБАВЕЗНЕ ТАКСЕ, КАЗНЕ, ПЕНАЛИ И КАМАТЕ (од 5329 до 5331)",0,{"$f":"SUM(E188:E190)","v":0},0,0,0,0,0]
[5329,482100,"Остали порези",0]
[5330,482200,"Обавезне таксе",0]
[5331,482300,"Новчане казне, пенали и камате",0]
[5332,483000,"НОВЧАНЕ КАЗНЕ И ПЕНАЛИ ПО РЕШЕЊУ СУДОВА (5333)",0,{"$f":"E192","v":0},0,0,0,0,0]
[5333,483100,"Новчане казне и пенали по решењу судова",0]
[5334,484000,"НАКНАДА ШТЕТЕ ЗА ПОВРЕДЕ ИЛИ ШТЕТУ НАСТАЛУ УСЛЕД ЕЛЕМЕНТАРНИХ НЕПОГОДА ИЛИ ДРУГИХ ПРИРОДНИХ УЗРОКА (5335 + 5336)",0,{"$f":"E194+E195","v":0},0,0,0,0,0]
[5335,484100,"Накнада штете за повреде или штету насталу услед елементарних непогода",0]
[5336,484200,"Накнада штете од дивљачи",0]
[5337,485000,"НАКНАДА ШТЕТЕ ЗА ПОВРЕДЕ ИЛИ ШТЕТУ НАНЕТУ ОД СТРАНЕ ДРЖАВНИХ ОРГАНА (5338)",0,{"$f":"E197","v":0},0,0,0,0,0]
[5338,485100,"Накнада штете за повреде или штету нанетих од стране државних органа",0]
[5339,489000,"РАСХОДИ КОЈИ СЕ ФИНАНСИРАЈУ ИЗ СРЕДСТАВА ЗА РЕАЛИЗАЦИЈУ НАЦИОНАЛНОГ ИНВЕСТИЦИОНОГ ПЛАНА (5340)",0,{"$f":"E199","v":0},0,0,0,0,0]
[5340,489100,"Расходи који се финансирају из средстава за реализацију националног инвестиционог плана",0]
[5341,500000,"ИЗДАЦИ ЗА НЕФИНАНСИЈСКУ ИМОВИНУ (5342 + 5364 + 5373 + 5376 + 5384)",367,{"$f":"E201+E223+E232+E235+E243","v":0},0,0,0,0,367]
[5342,510000,"ОСНОВНА СРЕДСТВА (5343 + 5348 + 5358 + 5360 + 5362)",367,{"$f":"E202+E207+E217+E219+E221","v":0},0,0,0,0,367]
[5343,511000,"ЗГРАДЕ И ГРАЂЕВИНСКИ ОБЈЕКТИ (од 5344 до 5347)",0,{"$f":"SUM(E203:E206)","v":0},0,0,0,0,0]
[5344,511100,"Куповина зграда и објеката",0]
[5345,511200,"Изградња зграда и објеката",0]
[5346,511300,"Капитално одржавање зграда и објеката",0]
[5347,511400,"Пројектно планирање",0]
[5348,512000,"МАШИНЕ И ОПРЕМА (од 5349 до 5357)",87,{"$f":"SUM(E208:E216)","v":0},0,0,0,0,87]
[5349,512100,"Опрема за саобраћај",0]
[5350,512200,"Административна опрема",87,null,null,null,null,null,87]
[5351,512300,"Опрема за пољопривреду",0]
[5352,512400,"Опрема за заштиту животне средине",0]
[5353,512500,"Медицинска и лабораторијска опрема",0]
[5354,512600,"Опрема за образовање, културу и спорт",0]
[5355,512700,"Опрема за војску",0]
[5356,512800,"Опрема за јавну безбедност",0]
[5357,512900,"Опрема за производњу, моторна, непокретна и немоторна опрема",0]
[5358,513000,"ОСТАЛЕ НЕКРЕТНИНЕ И ОПРЕМА (5359)",280,{"$f":"E218","v":0},0,0,0,0,280]
[5359,513100,"Остале некретнине и опрема",280,null,null,null,null,null,280]
[5360,514000,"КУЛТИВИСАНА ИМОВИНА (5361)",0,{"$f":"E220","v":0},0,0,0,0,0]
[5361,514100,"Култивисана имовина",0]
[5362,515000,"НЕМАТЕРИЈАЛНА ИМОВИНА (5363)",0,{"$f":"E222","v":0},0,0,0,0,0]
[5363,515100,"Нематеријална имовина",0]
[5364,520000,"ЗАЛИХЕ (5365 + 5367 + 5371)",{"$f":"SUM(E223:J223)","v":0},{"$f":"E224+E226+E230","v":0},0,0,0,0,0]
[5365,521000,"РОБНЕ РЕЗЕРВЕ (5366)",0,{"$f":"E225","v":0},0,0,0,0,0]
[5366,521100,"Робне резерве",0]
[5367,522000,"ЗАЛИХЕ ПРОИЗВОДЊЕ (од 5368 до 5370)",0,{"$f":"SUM(E227:E229)","v":0},0,0,0,0,0]
[5368,522100,"Залихе материјала",0]
[5369,522200,"Залихе недовршене производње",0]
[5370,522300,"Залихе готових производа",0]
[5371,523000,"ЗАЛИХЕ РОБЕ ЗА ДАЉУ ПРОДАЈУ (5372)",0,{"$f":"E231","v":0},0,0,0,0,0]
[5372,523100,"Залихе робе за даљу продају",0]
[5373,530000,"ДРАГОЦЕНОСТИ (5374)",0,{"$f":"E233","v":0},0,0,0,0,0]
[5374,531000,"ДРАГОЦЕНОСТИ (5375)",0,0,0,0,0,0,0]
[5375,531100,"Драгоцености",0]
[5376,540000,"ПРИРОДНА ИМОВИНА (5377 + 5379 + 5381)",0,{"$f":"E236+E238+E240","v":0},0,0,0,0,0]
[5377,541000,"ЗЕМЉИШТЕ (5378)",0,{"$f":"E237","v":0},0,0,0,0,0]
[5378,541100,"Земљиште",0]
[5379,542000,"РУДНА БОГАТСТВА (5380)",0,{"$f":"E239","v":0},0,0,0,0,0]
[5380,542100,"Копови",0]
[5381,543000,"ШУМЕ И ВОДЕ (5382 + 5383)",0,{"$f":"E241+E242","v":0},0,0,0,0,0]
[5382,543100,"Шуме",0]
[5383,543200,"Воде",0]
[5384,550000,"НЕФИНАНСИЈСКА ИМОВИНА КОЈА СЕ ФИНАНСИРА ИЗ СРЕДСТАВА ЗА РЕАЛИЗАЦИЈУ НАЦИОНАЛНОГ ИНВЕСТИЦИОНОГ ПЛАНА (5385)",0,{"$f":"E244","v":0},0,0,0,0,0]
[5385,551000,"НЕФИНАНСИЈСКА ИМОВИНА КОЈА СЕ ФИНАНСИРА ИЗ СРЕДСТАВА ЗА РЕАЛИЗАЦИЈУ НАЦИОНАЛНОГ ИНВЕСТИЦИОНОГ ПЛАНА (5386)",0,0,0,0,0,0,0]
[5386,551100,"Нефинансијска имовина која се финансира из средстава за реализацију националног инвестиционог плана",0]
[5387,600000,"ИЗДАЦИ ЗА ОТПЛАТУ ГЛАВНИЦЕ И НАБАВКУ ФИНАНСИЈСКЕ ИМОВИНЕ (5388 + 5413)",0,{"$f":"E247+E272","v":0},0,0,0,0,0]
[5388,610000,"ОТПЛАТА ГЛАВНИЦЕ (5389 + 5399 + 5407 + 5409 + 5411)",0,{"$f":"E248+E258+E266+E268+E270","v":0},0,0,0,0,0]
[5389,611000,"ОТПЛАТА ГЛАВНИЦЕ ДОМАЋИМ КРЕДИТОРИМА (од 5390 до 5398)",0,{"$f":"SUM(E249:E257)","v":0},0,0,0,0,0]
[5390,611100,"Отплата главнице на домаће хартије од вредности, изузев акција",0]
[5391,611200,"Отплата главнице осталим нивоима власти",0]
[5392,611300,"Отплата главнице домаћим јавним финансијским институцијама",0]
[5393,611400,"Отплата главнице домаћим пословним банкама",0]
[5394,611500,"Отплата главнице осталим домаћим кредиторима",0]
[5395,611600,"Отплата главнице домаћинствима у земљи",0]
[5396,611700,"Отплата главнице на домаће финансијске деривате",0]
[5397,611800,"Отплата домаћих меница",0]
[5398,611900,"Исправка унутрашњег дуга",0]
[5399,612000,"ОТПЛАТА ГЛАВНИЦЕ СТРАНИМ КРЕДИТОРИМА (од 5400 до 5406)",0,{"$f":"SUM(E259:E265)","v":0},0,0,0,0,0]
[5400,612100,"Отплата главнице на хартије од вредности, изузев акција, емитоване на иностраном финансијском тржишту",0]
[5401,612200,"Отплата главнице страним владама",0]
[5402,612300,"Отплата главнице мултилатералним институцијама",0]
[5403,612400,"Отплате главнице страним пословним банкама",0]
[5404,612500,"Отплате главнице осталим страним кредиторима",0]
[5405,612600,"Отплата главнице на стране финансијске деривате",0]
[5406,612900,"Исправка спољног дуга",0]
[5407,613000,"ОТПЛАТА ГЛАВНИЦЕ ПО ГАРАНЦИЈАМА (5408)",0,{"$f":"E267","v":0},0,0,0,0,0]
[5408,613100,"Отплата главнице по гаранцијама",0]
[5409,614000,"ОТПЛАТА ГЛАВНИЦЕ ЗА ФИНАНСИЈСКИ ЛИЗИНГ (5410)",0,{"$f":"E269","v":0},0,0,0,0,0]
[5410,614100,"Отплата главнице за финансијски лизинг",0]
[5411,615000,"ОТПЛАТА ГАРАНЦИЈА ПО КОМЕРЦИЈАЛНИМ ТРАНСАКЦИЈАМА (5412)",0,0,0,0,0,0,0]
[5412,615100,"Отплата гаранција по комерцијалним трансакцијама",0]
[5413,620000,"НАБАВКА ФИНАНСИЈСКЕ ИМОВИНЕ (5414 + 5424 + 5433)",0,{"$f":"E273+E283+E292","v":0},0,0,0,0,0]
[5414,621000,"НАБАВКА ДОМАЋЕ ФИНАНСИЈСКЕ ИМОВИНЕ (од 5415 до 5423)",0,{"$f":"SUM(E274:E282)","v":0},0,0,0,0,0]
[5415,621100,"Набавка домаћих хартија од вредности, изузев акција",0]
[5416,621200,"Кредити осталим нивоима власти",0]
[5417,621300,"Кредити домаћим јавним финансијским институцијама",0]
[5418,621400,"Кредити домаћим пословним банкама",0]
[5419,621500,"Кредити домаћим нефинансијским јавним институцијама",0]
[5420,621600,"Кредити физичким лицима и домаћинствима у земљи",0]
[5421,621700,"Кредити невладиним организацијама у земљи",0]
[5422,621800,"Кредити домаћим нефинансијским приватним предузећима",0]
[5423,621900,"Набавка домаћих акција и осталог капитала",0]
[5424,622000,"НАБАВКА СТРАНЕ ФИНАНСИЈСКЕ ИМОВИНЕ (од 5425 до 5432)",0,{"$f":"SUM(E284:E291)","v":0},0,0,0,0,0]
[5425,622100,"Набавка страних хартија од вредности, изузев акција",0]
[5426,622200,"Кредити страним владама",0]
[5427,622300,"Кредити међународним организацијама",0]
[5428,622400,"Кредити страним пословним банкама",0]
[5429,622500,"Кредити страним нефинансијским институцијама",0]
[5430,622600,"Кредити страним невладиним организацијама",{"$f":"SUM(E289:J289)","v":0}]
[5431,622700,"Набавка страних акција и осталог капитала",0]
[5432,622800,"Куповина стране валуте",0]
[5433,623000,"НАБАВКА ФИНАНСИЈСКЕ ИМОВИНЕ КОЈА СЕ ФИНАНСИРА ИЗ СРЕДСТАВА ЗА РЕАЛИЗАЦИЈУ НАЦИОНАЛНОГ ИНВЕСТИЦИОНОГ ПЛАНА (5434)",0,{"$f":"E293","v":0},0,0,0,0,0]
[5434,623100,"Набавка финансијске имовине која се финансира из средстава за реализацију националног инвестиционог плана ",0]
[5435,null,"УКУПНИ РАСХОДИ И ИЗДАЦИ (5172 + 5387)",1924,{"$f":"E31+E246","v":0},0,0,861,0,1063]
[]
["НАПОМЕНА: Здравствене установе исказују коришћени нераспоређени вишак прихода и примања из ранијих година (извор финансирања 13 у складу са класификацијом извора финансирања)"]
[]
[]
["Саставио:",null,null,null,null,null,null,"Директор здравствене установе:"]
["__________________________________",null,null,null,null,null,null,"______________________________________"]

{"sheet":"KontrolaF","index":20,"n_rows":30,"n_cols":8,"rows_kept":30,"cut":false,"hidden":false,"merged":[[0,6,0,7],[29,3,29,5],[11,3,11,5],[21,3,21,5]]}
["Matični broj","Naziv ustanove","R.Br.",null,null,null,"Odstupanja"]
[{"$f":"MaticniBroj","v":"17211692"},{"$f":"NazivKorisnika","v":"Дом здравља Уб"},null,null,1,null,"u 000 decimal","u 000 din"]
[null,null,null,null,"u decimal din","u 000 din"]
[null,null,"2","4712 iz CB                                                   --->",null,{"$f":"ROUND(E4/1000,5)","v":0}]
[]
[null,null,"3","7811 iz OZPR","--->",{"$f":"OZPR!J31","v":724}]
[]
[null,null,"4","ZBIR = 2 + 3",null,{"$f":"F4+F6","v":724}]
[]
[null,null,"5","781100 iz obrasca 5","--->",{"$f":"ObrazacIB!I138","v":394157}]
[]
[null,null,"6","RAZLIKA = 4 - 5",null,null,{"$f":"F8-F10","v":-393433},{"$f":"G12","v":-393433}]
[]
[null,null,"7","PRERAČUNATI PDV","--->"]
[]
[null,null,"8","PDV iz participacije","--->",{"$f":"OZPR!E31*0.1","v":0}]
[]
[null,null,"9","ZBIR = 7 + 8",null,{"$f":"F14+F16","v":0}]
[]
[null,null,"10","PDV iz K9","--->",{"$f":"K9OOSO!E22","v":0}]
[]
[null,null,"11","Odstupanje = 9 - 10",null,null,{"$f":"F18-F20","v":0},{"$f":"Odstupanje_1","v":0}]
[]
[null,null,"12","Asignacije","--->",0]
[]
[null,null,"13","Realizovane asignacije iz prethodne godine","--->",0]
[]
[null,null,"14","Obrazloženo odstupanje","--->",0]
[]
[null,null,"15","Konačno odstupanje =  11 - 12 - 13 - 14",null,null,{"$f":"H22-F24-F26-F28","v":0},{"$f":"G30","v":0}]

{"sheet":"Kontrola","index":21,"n_rows":4,"n_cols":1,"rows_kept":4,"cut":false,"hidden":false,"merged":[]}
["Logicka Kontrola"]
[]
["Nema gresaka!!!!!"]
["Kraj kontrole"]